Workbook

Sheet Main
B10: 2020-04-29
B12: Sheet No. | C12: Template Name | D12: Summary
B13: 1 | C13: Future Intra | D13: For Intraday trading in F&O segment
B14: 2 | C14: Cash Intra | D14: For Intraday trading in cash market segment
B15: 3 | C15: Mid-cap Intra | D15: For Intraday trading in Mid-cap stocks
B16: 4 | C16: Bulk Deals | D16: Reveals Bulk Deals carried on NSE & BSE
B17: 5 | C17: Call Tracker
K27: `

Sheet Future Intra
M5: Back to Main Page
A6: FOR INTRA DAY TRADING | L6: =Main!B10 -> 2020-04-29
A9: Sr.no | B9: Sector | C9: Scrip | D9: CLOSE RATE | E9: Pivot Point | F9: Supports | I9: Resistances
B10: Sector | D10: Point | E10: Point | F10: S1 | G10: S2 | H10: S3 | I10: R1 | J10: R2 | K10: R3 | L10: HIGH | M10: LOW | N10: OI | O10: % Change in OI
A11: 1 | B11: Index | C11: BANKNIFTY | D11: 20676.10 | E11: 20555.70 | F11: 20362.40 | G11: 20048.70 | H11: 19855.40 | I11: 20869.40 | J11: 21062.70 | K11: 21376.40 | L11: 20749 | M11: 20242 | N11: 1419060 | O11: 6.09%
A12: 2 | B12: Index | C12: NIFTY | D12: 9397.75 | E12: 9358.63 | F12: 9296.27 | G12: 9194.78 | H12: 9132.42 | I12: 9460.12 | J12: 9522.48 | K12: 9623.97 | L12: 9421 | M12: 9257.15 | N12: 11174475 | O12: 2.69%
A13: 3 | B13: Index | C13: NIFTYIT | D13: 13099.00 | E13: 13082.67 | F13: 13055.33 | G13: 13011.67 | H13: 12984.33 | I13: 13126.33 | J13: 13153.67 | K13: 13197.33 | L13: 13110 | M13: 13039 | N13: 2300 | O13: 2.22%
A14: 4 | B14: Cement | C14: ACC | D14: 1127.30 | E14: 1136.67 | F14: 1113.33 | G14: 1099.37 | H14: 1076.03 | I14: 1150.63 | J14: 1173.97 | K14: 1187.93 | L14: 1160 | M14: 1122.7 | N14: 1775600 | O14: 6.17%
A15: 5 | B15: Others | C15: ADANIENT | D15: 139.05 | E15: 138.65 | F15: 135.40 | G15: 131.75 | H15: 128.50 | I15: 142.30 | J15: 145.55 | K15: 149.20 | L15: 141.9 | M15: 135 | N15: 21352000 | O15: 2.05%
A16: 6 | B16: Others | C16: ADANIPORTS | D16: 273.05 | E16: 272.50 | F16: 270.35 | G16: 267.65 | H16: 265.50 | I16: 275.20 | J16: 277.35 | K16: 280.05 | L16: 274.65 | M16: 269.8 | N16: 34075000 | O16: -6.16%
A17: 7 | B17: Power | C17: ADANIPOWER | D17: 30.15 | E17: 29.88 | F17: 29.12 | G17: 28.08 | H17: 27.32 | I17: 30.92 | J17: 31.68 | K17: 32.72 | L17: 30.65 | M17: 28.85 | N17: 76420000 | O17: 2.98%
A18: 8 | B18: Automobile | C18: AMARAJABAT | D18: 545.90 | E18: 547.78 | F18: 540.47 | G18: 535.03 | H18: 527.72 | I18: 553.22 | J18: 560.53 | K18: 565.97 | L18: 555.1 | M18: 542.35 | N18: 1101600 | O18: -8.32%
A19: 9 | B19: Cement | C19: AMBUJACEM | D19: 167.95 | E19: 171.38 | F19: 163.92 | G19: 159.88 | H19: 152.42 | I19: 175.42 | J19: 182.88 | K19: 186.92 | L19: 178.85 | M19: 167.35 | N19: 19930000 | O19: -10.61%
A20: 10 | B20: Others | C20: APOLLOHOSP | D20: 1424.10 | E20: 1431.85 | F20: 1408.70 | G20: 1393.30 | H20: 1370.15 | I20: 1447.25 | J20: 1470.40 | K20: 1485.80 | L20: 1455 | M20: 1416.45 | N20: 905500 | O20: -2.21%
A21: 11 | B21: Automobile | C21: APOLLOTYRE | D21: 89.70 | E21: 90.47 | F21: 88.53 | G21: 87.37 | H21: 85.43 | I21: 91.63 | J21: 93.57 | K21: 94.73 | L21: 92.4 | M21: 89.3 | N21: 5298000 | O21: -6.56%
A22: 12 | B22: Automobile | C22: ASHOKLEY | D22: 44.55 | E22: 44.53 | F22: 43.67 | G22: 42.78 | H22: 41.92 | I22: 45.42 | J22: 46.28 | K22: 47.17 | L22: 45.4 | M22: 43.65 | N22: 37280000 | O22: 3.14%
A23: 13 | B23: FMCG | C23: ASIANPAINT | D23: 1815.55 | E23: 1826.27 | F23: 1789.53 | G23: 1763.52 | H23: 1726.78 | I23: 1852.28 | J23: 1889.02 | K23: 1915.03 | L23: 1863 | M23: 1800.25 | N23: 5694000 | O23: -6.18%
A24: 14 | B24: Pharma | C24: AUROPHARMA | D24: 620.90 | E24: 626.67 | F24: 610.23 | G24: 599.57 | H24: 583.13 | I24: 637.33 | J24: 653.77 | K24: 664.43 | L24: 643.1 | M24: 616 | N24: 10205000 | O24: -4.28%
A25: 15 | B25: Banking | C25: AXISBANK | D25: 456.45 | E25: 450.08 | F25: 441.17 | G25: 425.88 | H25: 416.97 | I25: 465.37 | J25: 474.28 | K25: 489.57 | L25: 459 | M25: 434.8 | N25: 50875200 | O25: -0.44%
A26: 16 | B26: Automobile | C26: BAJAJ-AUTO | D26: 2469.70 | E26: 2481.15 | F26: 2422.30 | G26: 2374.90 | H26: 2316.05 | I26: 2528.55 | J26: 2587.40 | K26: 2634.80 | L26: 2540 | M26: 2433.75 | N26: 1428750 | O26: -7.31%
A27: 17 | B27: Finance | C27: BAJAJFINSV | D27: 4860.15 | E27: 4778.95 | F27: 4651.85 | G27: 4443.55 | H27: 4316.45 | I27: 4987.25 | J27: 5114.35 | K27: 5322.65 | L27: 4906.05 | M27: 4570.65 | N27: 756125 | O27: 5.00%
A28: 18 | B28: Finance | C28: BAJFINANCE | D28: 2234.05 | E28: 2172.02 | F28: 2095.03 | G28: 1956.02 | H28: 1879.03 | I28: 2311.03 | J28: 2388.02 | K28: 2527.03 | L28: 2249 | M28: 2033 | N28: 6412000 | O28: 11.50%
A29: 19 | B29: Automobile | C29: BALKRISIND | D29: 919.95 | E29: 914.08 | F29: 904.22 | G29: 888.48 | H29: 878.62 | I29: 929.82 | J29: 939.68 | K29: 955.42 | L29: 923.95 | M29: 898.35 | N29: 786400 | O29: -3.91%
A30: 20 | B30: Banking | C30: BANDHANBNK | D30: 222.30 | E30: 220.27 | F30: 215.38 | G30: 208.47 | H30: 203.58 | I30: 227.18 | J30: 232.07 | K30: 238.98 | L30: 225.15 | M30: 213.35 | N30: 12668400 | O30: 5.73%
A31: 21 | B31: Banking | C31: BANKBARODA | D31: 47.45 | E31: 47.30 | F31: 46.95 | G31: 46.45 | H31: 46.10 | I31: 47.80 | J31: 48.15 | K31: 48.65 | L31: 47.65 | M31: 46.8 | N31: 45975600 | O31: 2.78%
A32: 22 | B32: FMCG | C32: BATAINDIA | D32: 1320.10 | E32: 1319.57 | F32: 1294.53 | G32: 1268.97 | H32: 1243.93 | I32: 1345.13 | J32: 1370.17 | K32: 1395.73 | L32: 1344.6 | M32: 1294 | N32: 1387650 | O32: -3.11%
A33: 23 | B33: Capital_Goods | C33: BEL | D33: 73.30 | E33: 73.50 | F33: 72.50 | G33: 71.70 | H33: 70.70 | I33: 74.30 | J33: 75.30 | K33: 76.10 | L33: 74.5 | M33: 72.7 | N33: 22968000 | O33: -10.81%
A34: 24 | B34: FMCG | C34: BERGEPAINT | D34: 530.25 | E34: 533.58 | F34: 520.52 | G34: 510.78 | H34: 497.72 | I34: 543.32 | J34: 556.38 | K34: 566.12 | L34: 546.65 | M34: 523.85 | N34: 4873000 | O34: 0.09%
A35: 25 | B35: Automobile | C35: BHARATFORG | D35: 267.10 | E35: 269.60 | F35: 260.95 | G35: 254.80 | H35: 246.15 | I35: 275.75 | J35: 284.40 | K35: 290.55 | L35: 278.25 | M35: 263.45 | N35: 7195500 | O35: -0.95%
A36: 26 | B36: Telecom | C36: BHARTIARTL | D36: 486.05 | E36: 489.28 | F36: 481.32 | G36: 476.58 | H36: 468.62 | I36: 494.02 | J36: 501.98 | K36: 506.72 | L36: 497.25 | M36: 484.55 | N36: 56598027 | O36: -3.11%
A37: 27 | B37: Capital_Goods | C37: BHEL | D37: 21.00 | E37: 20.92 | F37: 20.68 | G37: 20.37 | H37: 20.13 | I37: 21.23 | J37: 21.47 | K37: 21.78 | L37: 21.15 | M37: 20.6 | N37: 57626400 | O37: -5.23%
A38: 28 | B38: Pharma | C38: BIOCON | D38: 352.35 | E38: 355.30 | F38: 345.20 | G38: 338.05 | H38: 327.95 | I38: 362.45 | J38: 372.55 | K38: 379.70 | L38: 365.4 | M38: 348.15 | N38: 15226000 | O38: -4.98%
A39: 29 | B39: Automobile | C39: BOSCHLTD | D39: 10018.15 | E39: 10102.43 | F39: 9869.82 | G39: 9721.48 | H39: 9488.87 | I39: 10250.77 | J39: 10483.38 | K39: 10631.72 | L39: 10335.05 | M39: 9954.1 | N39: 132760 | O39: 0.94%
A40: 30 | B40: Oil_Gas | C40: BPCL | D40: 359.65 | E40: 363.13 | F40: 351.02 | G40: 342.38 | H40: 330.27 | I40: 371.77 | J40: 383.88 | K40: 392.52 | L40: 375.25 | M40: 354.5 | N40: 16383600 | O40: 3.38%
A41: 31 | B41: FMCG | C41: BRITANNIA | D41: 3158.25 | E41: 3171.17 | F41: 3105.63 | G41: 3053.02 | H41: 2987.48 | I41: 3223.78 | J41: 3289.32 | K41: 3341.93 | L41: 3236.7 | M41: 3118.55 | N41: 1343000 | O41: -11.91%
A42: 32 | B42: Pharma | C42: CADILAHC | D42: 325.85 | E42: 329.82 | F42: 320.63 | G42: 315.42 | H42: 306.23 | I42: 335.03 | J42: 344.22 | K42: 349.43 | L42: 339 | M42: 324.6 | N42: 7904600 | O42: -13.90%
A43: 33 | B43: Banking | C43: CANBK | D43: 84.35 | E43: 83.97 | F43: 81.53 | G43: 78.72 | H43: 76.28 | I43: 86.78 | J43: 89.22 | K43: 92.03 | L43: 86.4 | M43: 81.15 | N43: 8905000 | O43: 11.20%
A44: 34 | B44: Textile | C44: CENTURYTEX | D44: 289.55 | E44: 288.50 | F44: 282.60 | G44: 275.65 | H44: 269.75 | I44: 295.45 | J44: 301.35 | K44: 308.30 | L44: 294.4 | M44: 281.55 | N44: 2361000 | O44: -2.65%
A45: 35 | B45: Power | C45: CESC | D45: 608.20 | E45: 599.95 | F45: 586.30 | G45: 564.40 | H45: 550.75 | I45: 621.85 | J45: 635.50 | K45: 657.40 | L45: 613.6 | M45: 578.05 | N45: 1601600 | O45: -2.44%
A46: 36 | B46: Finance | C46: CHOLAFIN | D46: 147.60 | E46: 143.93 | F46: 139.42 | G46: 131.23 | H46: 126.72 | I46: 152.12 | J46: 156.63 | K46: 164.82 | L46: 148.45 | M46: 135.75 | N46: 7532500 | O46: 11.10%
A47: 37 | B47: Pharma | C47: CIPLA | D47: 599.75 | E47: 604.03 | F47: 588.12 | G47: 576.48 | H47: 560.57 | I47: 615.67 | J47: 631.58 | K47: 643.22 | L47: 619.95 | M47: 592.4 | N47: 14041500 | O47: -2.10%
A48: 38 | B48: Others | C48: COALINDIA | D48: 135.40 | E48: 136.27 | F48: 133.13 | G48: 130.87 | H48: 127.73 | I48: 138.53 | J48: 141.67 | K48: 143.93 | L48: 139.4 | M48: 134 | N48: 28007100 | O48: -0.56%
A49: 39 | B49: FMCG | C49: COLPAL | D49: 1510.15 | E49: 1519.55 | F49: 1482.05 | G49: 1453.95 | H49: 1416.45 | I49: 1547.65 | J49: 1585.15 | K49: 1613.25 | L49: 1557.05 | M49: 1491.45 | N49: 2243500 | O49: -2.05%
A50: 40 | B50: Others | C50: CONCOR | D50: 357.55 | E50: 358.72 | F50: 350.83 | G50: 344.12 | H50: 336.23 | I50: 365.43 | J50: 373.32 | K50: 380.03 | L50: 366.6 | M50: 352 | N50: 3859047 | O50: -0.36%
A51: 41 | B51: Capital_Goods | C51: CUMMINSIND | D51: 385.35 | E51: 379.27 | F51: 371.08 | G51: 356.82 | H51: 348.63 | I51: 393.53 | J51: 401.72 | K51: 415.98 | L51: 387.45 | M51: 365 | N51: 1280700 | O51: 6.67%
A52: 42 | B52: FMCG | C52: DABUR | D52: 487.65 | E52: 487.68 | F52: 483.22 | G52: 478.78 | H52: 474.32 | I52: 492.12 | J52: 496.58 | K52: 501.02 | L52: 492.15 | M52: 483.25 | N52: 12182500 | O52: -1.67%
A53: 43 | B53: Pharma | C53: DIVISLAB | D53: 2361.00 | E53: 2382.33 | F53: 2328.32 | G53: 2295.63 | H53: 2241.62 | I53: 2415.02 | J53: 2469.03 | K53: 2501.72 | L53: 2436.35 | M53: 2349.65 | N53: 2278400 | O53: 0.04%
A54: 44 | B54: Realty | C54: DLF | D54: 137.80 | E54: 136.67 | F54: 134.83 | G54: 131.87 | H54: 130.03 | I54: 139.63 | J54: 141.47 | K54: 144.43 | L54: 138.5 | M54: 133.7 | N54: 28842000 | O54: 0.48%
A55: 45 | B55: Pharma | C55: DRREDDY | D55: 3953.75 | E55: 3958.87 | F55: 3890.03 | G55: 3826.32 | H55: 3757.48 | I55: 4022.58 | J55: 4091.42 | K55: 4155.13 | L55: 4027.7 | M55: 3895.15 | N55: 2594500 | O55: -2.98%
A56: 46 | B56: Automobile | C56: EICHERMOT | D56: 14314.10 | E56: 14267.10 | F56: 14160.20 | G56: 14006.30 | H56: 13899.40 | I56: 14421.00 | J56: 14527.90 | K56: 14681.80 | L56: 14374 | M56: 14113.2 | N56: 265500 | O56: -2.46%
A57: 47 | B57: Finance | C57: EQUITAS | D57: 53.45 | E57: 51.73 | F57: 49.72 | G57: 45.98 | H57: 43.97 | I57: 55.47 | J57: 57.48 | K57: 61.22 | L57: 53.75 | M57: 48 | N57: 10123400 | O57: 22.03%
A58: 48 | B58: Automobile | C58: ESCORTS | D58: 711.55 | E58: 702.55 | F58: 686.40 | G58: 661.25 | H58: 645.10 | I58: 727.70 | J58: 743.85 | K58: 769.00 | L58: 718.7 | M58: 677.4 | N58: 2152700 | O58: 18.18%
A59: 49 | B59: Automobile | C59: EXIDEIND | D59: 146.15 | E59: 147.08 | F59: 143.77 | G59: 141.38 | H59: 138.07 | I59: 149.47 | J59: 152.78 | K59: 155.17 | L59: 150.4 | M59: 144.7 | N59: 5095300 | O59: 4.83%
A60: 50 | B60: Banking | C60: FEDERALBNK | D60: 46.75 | E60: 46.50 | F60: 44.70 | G60: 42.65 | H60: 40.85 | I60: 48.55 | J60: 50.35 | K60: 52.40 | L60: 48.3 | M60: 44.45 | N60: 49126000 | O60: 2.20%
A61: 51 | B61: Oil_Gas | C61: GAIL | D61: 84.55 | E61: 83.77 | F61: 82.48 | G61: 80.42 | H61: 79.13 | I61: 85.83 | J61: 87.12 | K61: 89.18 | L61: 85.05 | M61: 81.7 | N61: 29246322 | O61: -2.04%
A62: 52 | B62: Pharma | C62: GLENMARK | D62: 327.10 | E62: 332.73 | F62: 318.97 | G62: 310.83 | H62: 297.07 | I62: 340.87 | J62: 354.63 | K62: 362.77 | L62: 346.5 | M62: 324.6 | N62: 4211200 | O62: -6.99%
A63: 53 | B63: Infrastructure | C63: GMRINFRA | D63: 16.90 | E63: 16.90 | F63: 16.75 | G63: 16.60 | H63: 16.45 | I63: 17.05 | J63: 17.20 | K63: 17.35 | L63: 17.05 | M63: 16.75 | N63: 63045000 | O63: -8.97%
A64: 54 | B64: FMCG | C64: GODREJCP | D64: 535.20 | E64: 534.08 | F64: 526.32 | G64: 517.43 | H64: 509.67 | I64: 542.97 | J64: 550.73 | K64: 559.62 | L64: 541.85 | M64: 525.2 | N64: 6908000 | O64: -0.90%
A65: 55 | B65: Cement | C65: GRASIM | D65: 497.75 | E65: 500.92 | F65: 491.83 | G65: 485.92 | H65: 476.83 | I65: 506.83 | J65: 515.92 | K65: 521.83 | L65: 510 | M65: 495 | N65: 17921250 | O65: -2.47%
A66: 56 | B66: Others | C66: HAVELLS | D66: 534.65 | E66: 534.38 | F66: 526.52 | G66: 518.38 | H66: 510.52 | I66: 542.52 | J66: 550.38 | K66: 558.52 | L66: 542.25 | M66: 526.25 | N66: 5111000 | O66: -4.81%
A67: 57 | B67: Technology | C67: HCLTECH | D67: 471.10 | E67: 475.83 | F67: 464.52 | G67: 457.93 | H67: 446.62 | I67: 482.42 | J67: 493.73 | K67: 500.32 | L67: 487.15 | M67: 469.25 | N67: 20630400 | O67: -4.65%
A68: 58 | B68: Finance | C68: HDFC | D68: 1712.75 | E68: 1681.13 | F68: 1642.22 | G68: 1571.68 | H68: 1532.77 | I68: 1751.67 | J68: 1790.58 | K68: 1861.12 | L68: 1720.05 | M68: 1610.6 | N68: 28651750 | O68: -1.91%
A69: 59 | B69: Banking | C69: HDFCBANK | D69: 932.95 | E69: 933.13 | F69: 922.72 | G69: 912.48 | H69: 902.07 | I69: 943.37 | J69: 953.78 | K69: 964.02 | L69: 943.55 | M69: 922.9 | N69: 29712500 | O69: -9.04%
A70: 60 | B70: Finance | C70: HDFCLIFE | D70: 485.90 | E70: 483.95 | F70: 472.90 | G70: 459.90 | H70: 448.85 | I70: 496.95 | J70: 508.00 | K70: 521.00 | L70: 495 | M70: 470.95 | N70: 11566800 | O70: 0.29%
A71: 61 | B71: Automobile | C71: HEROMOTOCO | D71: 1941.45 | E71: 1941.87 | F71: 1914.58 | G71: 1887.72 | H71: 1860.43 | I71: 1968.73 | J71: 1996.02 | K71: 2022.88 | L71: 1969.15 | M71: 1915 | N71: 2484400 | O71: -1.65%
A72: 62 | B72: Metals | C72: HINDALCO | D72: 108.90 | E72: 108.72 | F72: 106.68 | G72: 104.47 | H72: 102.43 | I72: 110.93 | J72: 112.97 | K72: 115.18 | L72: 110.75 | M72: 106.5 | N72: 30842000 | O72: -1.98%
A73: 63 | B73: Oil_Gas | C73: HINDPETRO | D73: 211.00 | E73: 212.88 | F73: 207.12 | G73: 203.23 | H73: 197.47 | I73: 216.77 | J73: 222.53 | K73: 226.42 | L73: 218.65 | M73: 209 | N73: 18173400 | O73: 9.31%
A74: 64 | B74: FMCG | C74: HINDUNILVR | D74: 2293.20 | E74: 2297.33 | F74: 2259.07 | G74: 2224.93 | H74: 2186.67 | I74: 2331.47 | J74: 2369.73 | K74: 2403.87 | L74: 2335.6 | M74: 2263.2 | N74: 12138300 | O74: -0.95%
A75: 65 | B75: Finance | C75: IBULHSGFIN | D75: 116.55 | E75: 115.73 | F75: 111.47 | G75: 106.38 | H75: 102.12 | I75: 120.82 | J75: 125.08 | K75: 130.17 | L75: 120 | M75: 110.65 | N75: 12888000 | O75: -5.69%
A76: 66 | B76: Banking | C76: ICICIBANK | D76: 360.70 | E76: 358.37 | F76: 353.08 | G76: 345.47 | H76: 340.18 | I76: 365.98 | J76: 371.27 | K76: 378.88 | L76: 363.65 | M76: 350.75 | N76: 90484625 | O76: 3.86%
A77: 67 | B77: Finance | C77: ICICIPRULI | D77: 383.15 | E77: 378.43 | F77: 372.22 | G77: 361.28 | H77: 355.07 | I77: 389.37 | J77: 395.58 | K77: 406.52 | L77: 384.65 | M77: 367.5 | N77: 9243000 | O77: 2.44%
A78: 68 | B78: Telecom | C78: IDEA | D78: 4.05 | E78: 4.08 | F78: 3.97 | G78: 3.88 | H78: 3.77 | I78: 4.17 | J78: 4.28 | K78: 4.37 | L78: 4.2 | M78: 4 | N78: 436688000 | O78: -12.93%
A79: 69 | B79: Banking | C79: IDFCFIRSTB | D79: 22.40 | E79: 22.38 | F79: 21.97 | G79: 21.53 | H79: 21.12 | I79: 22.82 | J79: 23.23 | K79: 23.67 | L79: 22.8 | M79: 21.95 | N79: 122004000 | O79: -17.00%
A80: 70 | B80: Oil_Gas | C80: IGL | D80: 467.25 | E80: 462.13 | F80: 454.27 | G80: 441.28 | H80: 433.42 | I80: 475.12 | J80: 482.98 | K80: 495.97 | L80: 470 | M80: 449.15 | N80: 6935500 | O80: 19.02%
A81: 71 | B81: Others | C81: INDIGO | D81: 911.55 | E81: 900.58 | F81: 883.37 | G81: 855.18 | H81: 837.97 | I81: 928.77 | J81: 945.98 | K81: 974.17 | L81: 917.8 | M81: 872.4 | N81: 3752700 | O81: -0.26%
A82: 72 | B82: Banking | C82: INDUSINDBK | D82: 469.30 | E82: 463.00 | F82: 436.60 | G82: 403.90 | H82: 377.50 | I82: 495.70 | J82: 522.10 | K82: 554.80 | L82: 489.4 | M82: 430.3 | N82: 19742800 | O82: 4.82%
A83: 73 | B83: Telecom | C83: INFRATEL | D83: 159.45 | E83: 158.58 | F83: 155.97 | G83: 152.48 | H83: 149.87 | I83: 162.07 | J83: 164.68 | K83: 168.17 | L83: 161.2 | M83: 155.1 | N83: 7942000 | O83: -5.92%
A84: 74 | B84: Technology | C84: INFY | D84: 660.85 | E84: 663.73 | F84: 650.27 | G84: 639.68 | H84: 626.22 | I84: 674.32 | J84: 687.78 | K84: 698.37 | L84: 677.2 | M84: 653.15 | N84: 46992000 | O84: -0.57%
A85: 75 | B85: Oil_Gas | C85: IOC | D85: 79.25 | E85: 80.00 | F85: 77.50 | G85: 75.75 | H85: 73.25 | I85: 81.75 | J85: 84.25 | K85: 86.00 | L85: 82.5 | M85: 78.25 | N85: 56528000 | O85: -8.47%
A86: 76 | B86: FMCG | C86: ITC | D86: 179.80 | E86: 179.80 | F86: 178.40 | G86: 177.00 | H86: 175.60 | I86: 181.20 | J86: 182.60 | K86: 184.00 | L86: 181.2 | M86: 178.4 | N86: 63993600 | O86: -3.18%
A87: 77 | B87: Metals | C87: JINDALSTEL | D87: 84.10 | E87: 83.42 | F87: 82.13 | G87: 80.17 | H87: 78.88 | I87: 85.38 | J87: 86.67 | K87: 88.63 | L87: 84.7 | M87: 81.45 | N87: 14425000 | O87: -11.01%
A88: 78 | B88: Metals | C88: JSWSTEEL | D88: 159.45 | E88: 158.73 | F88: 157.22 | G88: 154.98 | H88: 153.47 | I88: 160.97 | J88: 162.48 | K88: 164.72 | L88: 160.25 | M88: 156.5 | N88: 25849700 | O88: -2.98%
A89: 79 | B89: Others | C89: JUBLFOOD | D89: 1525.80 | E89: 1522.28 | F89: 1492.87 | G89: 1459.93 | H89: 1430.52 | I89: 1555.22 | J89: 1584.63 | K89: 1617.57 | L89: 1551.7 | M89: 1489.35 | N89: 2227000 | O89: -6.29%
A90: 80 | B90: Others | C90: JUSTDIAL | D90: 388.55 | E90: 383.05 | F90: 371.60 | G90: 354.65 | H90: 343.20 | I90: 400.00 | J90: 411.45 | K90: 428.40 | L90: 394.5 | M90: 366.1 | N90: 2126600 | O90: 28.08%
A91: 81 | B91: Banking | C91: KOTAKBANK | D91: 1321.75 | E91: 1320.68 | F91: 1310.07 | G91: 1298.38 | H91: 1287.77 | I91: 1332.37 | J91: 1342.98 | K91: 1354.67 | L91: 1331.3 | M91: 1309 | N91: 9062800 | O91: -5.43%
A92: 82 | B92: Finance | C92: L&TFH | D92: 64.20 | E92: 62.97 | F92: 61.43 | G92: 58.67 | H92: 57.13 | I92: 65.73 | J92: 67.27 | K92: 70.03 | L92: 64.5 | M92: 60.2 | N92: 29192800 | O92: -4.92%
A93: 83 | B93: Finance | C93: LICHSGFIN | D93: 277.15 | E93: 267.58 | F93: 255.82 | G93: 234.48 | H93: 222.72 | I93: 288.92 | J93: 300.68 | K93: 322.02 | L93: 279.35 | M93: 246.25 | N93: 8869900 | O93: -4.31%
A94: 84 | B94: Capital_Goods | C94: LT | D94: 858.20 | E94: 859.25 | F94: 850.50 | G94: 842.80 | H94: 834.05 | I94: 866.95 | J94: 875.70 | K94: 883.40 | L94: 868 | M94: 851.55 | N94: 12111375 | O94: -4.96%
A95: 85 | B95: Pharma | C95: LUPIN | D95: 853.85 | E95: 866.77 | F95: 834.53 | G95: 815.22 | H95: 782.98 | I95: 886.08 | J95: 918.32 | K95: 937.63 | L95: 899 | M95: 847.45 | N95: 10291400 | O95: -6.68%
A96: 86 | B96: Automobile | C96: M&M | D96: 336.40 | E96: 334.43 | F96: 330.67 | G96: 324.93 | H96: 321.17 | I96: 340.17 | J96: 343.93 | K96: 349.67 | L96: 338.2 | M96: 328.7 | N96: 16278000 | O96: -1.57%
A97: 87 | B97: Finance | C97: M&MFIN | D97: 154.60 | E97: 150.42 | F97: 145.28 | G97: 135.97 | H97: 130.83 | I97: 159.73 | J97: 164.87 | K97: 174.18 | L97: 155.55 | M97: 141.1 | N97: 13766400 | O97: -3.15%
A98: 88 | B98: Finance | C98: MANAPPURAM | D98: 129.65 | E98: 125.85 | F98: 120.40 | G98: 111.15 | H98: 105.70 | I98: 135.10 | J98: 140.55 | K98: 149.80 | L98: 131.3 | M98: 116.6 | N98: 14958000 | O98: 0.40%
A99: 89 | B99: FMCG | C99: MARICO | D99: 290.05 | E99: 292.83 | F99: 284.77 | G99: 279.48 | H99: 271.42 | I99: 298.12 | J99: 306.18 | K99: 311.47 | L99: 300.9 | M99: 287.55 | N99: 10730200 | O99: -2.73%
A100: 90 | B100: Automobile | C100: MARUTI | D100: 5059.25 | E100: 5049.62 | F100: 4986.68 | G100: 4914.12 | H100: 4851.18 | I100: 5122.18 | J100: 5185.12 | K100: 5257.68 | L100: 5112.55 | M100: 4977.05 | N100: 2392400 | O100: 1.23%
A101: 91 | B101: FMCG | C101: MCDOWELL-N | D101: 523.15 | E101: 523.15 | F101: 517.00 | G101: 510.85 | H101: 504.70 | I101: 529.30 | J101: 535.45 | K101: 541.60 | L101: 529.3 | M101: 517 | N101: 11685000 | O101: 0.17%
A102: 92 | B102: Finance | C102: MFSL | D102: 474.45 | E102: 466.33 | F102: 439.92 | G102: 405.38 | H102: 378.97 | I102: 500.87 | J102: 527.28 | K102: 561.82 | L102: 492.75 | M102: 431.8 | N102: 1731600 | O102: -25.75%
A103: 93 | B103: Oil_Gas | C103: MGL | D103: 957.95 | E103: 948.17 | F103: 931.53 | G103: 905.12 | H103: 888.48 | I103: 974.58 | J103: 991.22 | K103: 1017.63 | L103: 964.8 | M103: 921.75 | N103: 1371600 | O103: -1.89%
A104: 94 | B104: Technology | C104: MINDTREE | D104: 866.70 | E104: 872.67 | F104: 855.03 | G104: 843.37 | H104: 825.73 | I104: 884.33 | J104: 901.97 | K104: 913.63 | L104: 890.3 | M104: 861 | N104: 1147200 | O104: -16.63%
A105: 95 | B105: Automobile | C105: MOTHERSUMI | D105: 78.70 | E105: 78.80 | F105: 76.25 | G105: 73.80 | H105: 71.25 | I105: 81.25 | J105: 83.80 | K105: 86.25 | L105: 81.35 | M105: 76.35 | N105: 26030000 | O105: -0.86%
A106: 96 | B106: Automobile | C106: MRF | D106: 59022.20 | E106: 59061.85 | F106: 58524.85 | G106: 58027.50 | H106: 57490.50 | I106: 59559.20 | J106: 60096.20 | K106: 60593.55 | L106: 59598.85 | M106: 58564.5 | N106: 20030 | O106: 2.19%
A107: 97 | B107: Finance | C107: MUTHOOTFIN | D107: 828.65 | E107: 824.17 | F107: 812.53 | G107: 796.42 | H107: 784.78 | I107: 840.28 | J107: 851.92 | K107: 868.03 | L107: 835.8 | M107: 808.05 | N107: 2140500 | O107: 2.44%
A108: 98 | B108: Metals | C108: NATIONALUM | D108: 30.50 | E108: 30.70 | F108: 30.05 | G108: 29.60 | H108: 28.95 | I108: 31.15 | J108: 31.80 | K108: 32.25 | L108: 31.35 | M108: 30.25 | N108: 23926500 | O108: -7.55%
A109: 99 | B109: Others | C109: NAUKRI | D109: 2397.90 | E109: 2371.32 | F109: 2322.53 | G109: 2247.17 | H109: 2198.38 | I109: 2446.68 | J109: 2495.47 | K109: 2570.83 | L109: 2420.1 | M109: 2295.95 | N109: 696000 | O109: -0.94%
A110: 100 | B110: Infrastructure | C110: NCC | D110: 25.35 | E110: 25.25 | F110: 24.90 | G110: 24.45 | H110: 24.10 | I110: 25.70 | J110: 26.05 | K110: 26.50 | L110: 25.6 | M110: 24.8 | N110: 15867000 | O110: -8.22%
A111: 101 | B111: FMCG | C111: NESTLEIND | D111: 17583.40 | E111: 17678.32 | F111: 17376.73 | G111: 17170.07 | H111: 16868.48 | I111: 17884.98 | J111: 18186.57 | K111: 18393.23 | L111: 17979.9 | M111: 17471.65 | N111: 332650 | O111: -1.57%
A112: 102 | B112: Technology | C112: NIITTECH | D112: 1161.70 | E112: 1169.33 | F112: 1129.12 | G112: 1096.53 | H112: 1056.32 | I112: 1201.92 | J112: 1242.13 | K112: 1274.72 | L112: 1209.55 | M112: 1136.75 | N112: 388875 | O112: -5.56%
A113: 103 | B113: Metals | C113: NMDC | D113: 73.40 | E113: 73.62 | F113: 71.78 | G113: 70.17 | H113: 68.33 | I113: 75.23 | J113: 77.07 | K113: 78.68 | L113: 75.45 | M113: 72 | N113: 26862000 | O113: 7.96%
A114: 104 | B114: Power | C114: NTPC | D114: 90.40 | E114: 90.63 | F114: 88.62 | G114: 86.83 | H114: 84.82 | I114: 92.42 | J114: 94.43 | K114: 96.22 | L114: 92.65 | M114: 88.85 | N114: 42552000 | O114: -5.49%
A115: 105 | B115: Oil_Gas | C115: OIL | D115: 88.35 | E115: 86.90 | F115: 84.75 | G115: 81.15 | H115: 79.00 | I115: 90.50 | J115: 92.65 | K115: 96.25 | L115: 89.05 | M115: 83.3 | N115: 2810973 | O115: -24.41%
A116: 106 | B116: Oil_Gas | C116: ONGC | D116: 69.30 | E116: 68.55 | F116: 67.50 | G116: 65.70 | H116: 64.65 | I116: 70.35 | J116: 71.40 | K116: 73.20 | L116: 69.6 | M116: 66.75 | N116: 53480400 | O116: -6.51%
A117: 107 | B117: Textile | C117: PAGEIND | D117: 18260.00 | E117: 18310.38 | F117: 17939.27 | G117: 17618.53 | H117: 17247.42 | I117: 18631.12 | J117: 19002.23 | K117: 19322.97 | L117: 18681.5 | M117: 17989.65 | N117: 128050 | O117: 0.39%
A118: 108 | B118: Pharma | C118: PEL | D118: 936.25 | E118: 921.52 | F118: 900.13 | G118: 864.02 | H118: 842.63 | I118: 957.63 | J118: 979.02 | K118: 1015.13 | L118: 942.9 | M118: 885.4 | N118: 3428355 | O118: -0.24%
A119: 109 | B119: Oil_Gas | C119: PETRONET | D119: 224.00 | E119: 223.55 | F119: 219.75 | G119: 215.50 | H119: 211.70 | I119: 227.80 | J119: 231.60 | K119: 235.85 | L119: 227.35 | M119: 219.3 | N119: 11997000 | O119: -1.14%
A120: 110 | B120: Finance | C120: PFC | D120: 90.95 | E120: 91.42 | F120: 90.08 | G120: 89.22 | H120: 87.88 | I120: 92.28 | J120: 93.62 | K120: 94.48 | L120: 92.75 | M120: 90.55 | N120: 39128200 | O120: 0.72%
A121: 111 | B121: FMCG | C121: PIDILITIND | D121: 1552.90 | E121: 1549.17 | F121: 1529.33 | G121: 1505.77 | H121: 1485.93 | I121: 1572.73 | J121: 1592.57 | K121: 1616.13 | L121: 1569 | M121: 1525.6 | N121: 2513000 | O121: 1.31%
A122: 112 | B122: Banking | C122: PNB | D122: 31.35 | E122: 31.18 | F122: 30.92 | G122: 30.48 | H122: 30.22 | I122: 31.62 | J122: 31.88 | K122: 32.32 | L122: 31.45 | M122: 30.75 | N122: 51410200 | O122: -0.98%
A123: 113 | B123: Power | C123: POWERGRID | D123: 157.60 | E123: 158.23 | F123: 156.47 | G123: 155.33 | H123: 153.57 | I123: 159.37 | J123: 161.13 | K123: 162.27 | L123: 160 | M123: 157.1 | N123: 37512000 | O123: -6.53%
A124: 114 | B124: Media | C124: PVR | D124: 981.90 | E124: 974.55 | F124: 962.40 | G124: 942.90 | H124: 930.75 | I124: 994.05 | J124: 1006.20 | K124: 1025.70 | L124: 986.7 | M124: 955.05 | N124: 1515200 | O124: -5.02%
A125: 115 | B125: Cement | C125: RAMCOCEM | D125: 536.05 | E125: 534.27 | F125: 528.03 | G125: 520.02 | H125: 513.78 | I125: 542.28 | J125: 548.52 | K125: 556.53 | L125: 540.5 | M125: 526.25 | N125: 661600 | O125: -8.21%
A126: 116 | B126: Banking | C126: RBLBANK | D126: 126.60 | E126: 125.35 | F126: 122.35 | G126: 118.10 | H126: 115.10 | I126: 129.60 | J126: 132.60 | K126: 136.85 | L126: 128.35 | M126: 121.1 | N126: 27777000 | O126: -6.51%
A127: 117 | B127: Power | C127: RECLTD | D127: 89.15 | E127: 89.47 | F127: 88.53 | G127: 87.92 | H127: 86.98 | I127: 90.08 | J127: 91.02 | K127: 91.63 | L127: 90.4 | M127: 88.85 | N127: 26874000 | O127: 0.92%
A128: 118 | B128: Oil_Gas | C128: RELIANCE | D128: 1430.95 | E128: 1424.73 | F128: 1397.67 | G128: 1364.38 | H128: 1337.32 | I128: 1458.02 | J128: 1485.08 | K128: 1518.37 | L128: 1451.8 | M128: 1391.45 | N128: 42968500 | O128: -7.78%
A129: 119 | B129: Metals | C129: SAIL | D129: 26.70 | E129: 26.48 | F129: 26.07 | G129: 25.43 | H129: 25.02 | I129: 27.12 | J129: 27.53 | K129: 28.17 | L129: 26.9 | M129: 25.85 | N129: 43316300 | O129: -14.98%
A130: 120 | B130: Banking | C130: SBIN | D130: 184.55 | E130: 183.75 | F130: 182.10 | G130: 179.65 | H130: 178.00 | I130: 186.20 | J130: 187.85 | K130: 190.30 | L130: 185.4 | M130: 181.3 | N130: 90840000 | O130: 1.51%
A131: 121 | B131: Cement | C131: SHREECEM | D131: 18878.90 | E131: 19005.20 | F131: 18683.70 | G131: 18488.50 | H131: 18167.00 | I131: 19200.40 | J131: 19521.90 | K131: 19717.10 | L131: 19326.7 | M131: 18810 | N131: 141800 | O131: -0.28%
A132: 122 | B132: Capital_Goods | C132: SIEMENS | D132: 1142.55 | E132: 1155.63 | F132: 1120.92 | G132: 1099.28 | H132: 1064.57 | I132: 1177.27 | J132: 1211.98 | K132: 1233.62 | L132: 1190.35 | M132: 1134 | N132: 1438250 | O132: 0.11%
A133: 123 | B133: Textile | C133: SRF | D133: 3688.00 | E133: 3683.55 | F133: 3604.10 | G133: 3520.20 | H133: 3440.75 | I133: 3767.45 | J133: 3846.90 | K133: 3930.80 | L133: 3763 | M133: 3599.65 | N133: 615250 | O133: 9.14%
A134: 124 | B134: Finance | C134: SRTRANSFIN | D134: 696.80 | E134: 683.83 | F134: 662.97 | G134: 629.13 | H134: 608.27 | I134: 717.67 | J134: 738.53 | K134: 772.37 | L134: 704.7 | M134: 650 | N134: 2879400 | O134: -7.46%
A135: 125 | B135: Pharma | C135: SUNPHARMA | D135: 474.50 | E135: 480.18 | F135: 465.37 | G135: 456.23 | H135: 441.42 | I135: 489.32 | J135: 504.13 | K135: 513.27 | L135: 495 | M135: 471.05 | N135: 44366250 | O135: -4.81%
A136: 126 | B136: Media | C136: SUNTV | D136: 376.90 | E136: 378.43 | F136: 371.97 | G136: 367.03 | H136: 360.57 | I136: 383.37 | J136: 389.83 | K136: 394.77 | L136: 384.9 | M136: 373.5 | N136: 4245600 | O136: -8.51%
A137: 127 | B137: Fertilisers | C137: TATACHEM | D137: 285.10 | E137: 286.57 | F137: 279.93 | G137: 274.77 | H137: 268.13 | I137: 291.73 | J137: 298.37 | K137: 303.53 | L137: 293.2 | M137: 281.4 | N137: 1541700 | O137: -3.27%
A138: 128 | B138: Others | C138: TATACONSUM | D138: 343.25 | E138: 346.32 | F138: 337.23 | G138: 331.22 | H138: 322.13 | I138: 352.33 | J138: 361.42 | K138: 367.43 | L138: 355.4 | M138: 340.3 | N138: 10351800 | O138: 6.47%
A139: 129 | B139: Automobile | C139: TATAMOTORS | D139: 77.10 | E139: 76.85 | F139: 75.45 | G139: 73.80 | H139: 72.40 | I139: 78.50 | J139: 79.90 | K139: 81.55 | L139: 78.25 | M139: 75.2 | N139: 56123600 | O139: -6.81%
A140: 130 | B140: Power | C140: TATAPOWER | D140: 30.65 | E140: 30.73 | F140: 30.17 | G140: 29.68 | H140: 29.12 | I140: 31.22 | J140: 31.78 | K140: 32.27 | L140: 31.3 | M140: 30.25 | N140: 56853000 | O140: -4.14%
A141: 131 | B141: Metals | C141: TATASTEEL | D141: 272.60 | E141: 271.83 | F141: 268.92 | G141: 265.23 | H141: 262.32 | I141: 275.52 | J141: 278.43 | K141: 282.12 | L141: 274.75 | M141: 268.15 | N141: 20320500 | O141: -5.62%
A142: 132 | B142: Technology | C142: TCS | D142: 1854.90 | E142: 1849.08 | F142: 1836.02 | G142: 1817.13 | H142: 1804.07 | I142: 1867.97 | J142: 1881.03 | K142: 1899.92 | L142: 1862.15 | M142: 1830.2 | N142: 15312000 | O142: -0.05%
A143: 133 | B143: Technology | C143: TECHM | D143: 519.25 | E143: 520.27 | F143: 512.13 | G143: 505.02 | H143: 496.88 | I143: 527.38 | J143: 535.52 | K143: 542.63 | L143: 528.4 | M143: 513.15 | N143: 14739600 | O143: 0.95%
A144: 134 | B144: FMCG | C144: TITAN | D144: 933.95 | E144: 929.60 | F144: 921.20 | G144: 908.45 | H144: 900.05 | I144: 942.35 | J144: 950.75 | K144: 963.50 | L144: 938 | M144: 916.85 | N144: 7150500 | O144: -2.00%
A145: 135 | B145: Pharma | C145: TORNTPHARM | D145: 2487.45 | E145: 2507.37 | F145: 2436.43 | G145: 2385.42 | H145: 2314.48 | I145: 2558.38 | J145: 2629.32 | K145: 2680.33 | L145: 2578.3 | M145: 2456.35 | N145: 956000 | O145: 10.39%
A146: 136 | B146: Power | C146: TORNTPOWER | D146: 312.25 | E146: 311.28 | F146: 307.82 | G146: 303.38 | H146: 299.92 | I146: 315.72 | J146: 319.18 | K146: 323.62 | L146: 314.75 | M146: 306.85 | N146: 1611000 | O146: 1.32%
A147: 137 | B147: Automobile | C147: TVSMOTOR | D147: 296.45 | E147: 297.62 | F147: 290.33 | G147: 284.22 | H147: 276.93 | I147: 303.73 | J147: 311.02 | K147: 317.13 | L147: 304.9 | M147: 291.5 | N147: 5155650 | O147: -1.98%
A148: 138 | B148: FMCG | C148: UBL | D148: 932.05 | E148: 922.97 | F148: 909.28 | G148: 886.52 | H148: 872.83 | I148: 945.73 | J148: 959.42 | K148: 982.18 | L148: 936.65 | M148: 900.2 | N148: 613200 | O148: -8.27%
A149: 139 | B149: Finance | C149: UJJIVAN | D149: 175.95 | E149: 172.02 | F149: 165.33 | G149: 154.72 | H149: 148.03 | I149: 182.63 | J149: 189.32 | K149: 199.93 | L149: 178.7 | M149: 161.4 | N149: 3853900 | O149: -3.74%
A150: 140 | B150: Cement | C150: ULTRACEMCO | D150: 3396.80 | E150: 3402.13 | F150: 3359.92 | G150: 3323.03 | H150: 3280.82 | I150: 3439.02 | J150: 3481.23 | K150: 3518.12 | L150: 3444.35 | M150: 3365.25 | N150: 2144600 | O150: 3.32%
A151: 141 | B151: Fertilisers | C151: UPL | D151: 361.10 | E151: 362.78 | F151: 355.07 | G151: 349.03 | H151: 341.32 | I151: 368.82 | J151: 376.53 | K151: 382.57 | L151: 370.5 | M151: 356.75 | N151: 15827400 | O151: 2.46%
A152: 142 | B152: Metals | C152: VEDL | D152: 77.00 | E152: 77.07 | F152: 75.73 | G152: 74.47 | H152: 73.13 | I152: 78.33 | J152: 79.67 | K152: 80.93 | L152: 78.4 | M152: 75.8 | N152: 95700500 | O152: -0.25%
A153: 143 | B153: Capital_Goods | C153: VOLTAS | D153: 497.00 | E153: 497.35 | F153: 492.15 | G153: 487.30 | H153: 482.10 | I153: 502.20 | J153: 507.40 | K153: 512.25 | L153: 502.55 | M153: 492.5 | N153: 2443000 | O153: 10.34%
A154: 144 | B154: Technology | C154: WIPRO | D154: 180.10 | E154: 180.08 | F154: 178.27 | G154: 176.43 | H154: 174.62 | I154: 181.92 | J154: 183.73 | K154: 185.57 | L154: 181.9 | M154: 178.25 | N154: 24588800 | O154: -2.14%
A155: 145 | B155: Banking | C155: YESBANK | D155: 27.40 | E155: 27.40 | F155: 27.00 | G155: 26.60 | H155: 26.20 | I155: 27.80 | J155: 28.20 | K155: 28.60 | L155: 27.8 | M155: 27 | N155: 48012800 | O155: 5.80%
A156: 146 | B156: Media | C156: ZEEL | D156: 152.35 | E156: 152.63 | F156: 149.32 | G156: 146.28 | H156: 142.97 | I156: 155.67 | J156: 158.98 | K156: 162.02 | L156: 155.95 | M156: 149.6 | N156: 20082100 | O156: -7.47%
A157: 147
A175: Pivot Point: This is trigger point for intra day buy/sell based on the price range of the previous day
A176: As per the tool,the trader should take BUY position just above Pivot and keep the stop loss of pivot point and the first target would be Resistance 1(R1)
A177: If R1 is crossed then R2 becomes the next target with stop loss of at R1
A178: Similarly if price goes below pivot point then the trader should sell and keep a stop loss of pivot point and the first target would be S1
A179: If S1 is crossed then S2 becomes the next target with stop loss of at S1
A181: Disclaimer:
A182: This document has been prepared by the Retail Research Desk of Asit C Mehta
A183: Investment Intermediates Ltd. and is meant for use of the recipient only
A184: and is not for circulation. This document is not to be reported or
A185: copied or made available to others. It should not be considered to be
A186: taken as an offer to sell or a solicitation to buy any security. The
A187: information contained herein is from sources believed reliable. We do
A188: not represent that it is accurate or complete and it should not be
A189: relied upon as such. We may from time to time have positions in and buy
A190: and sell securities referred to herein

Sheet Cash Intra
M5: Back to Main Page
A6: FOR INTRA DAY TRADING | K6: =Main!B10 -> 2020-04-29
A8: Sr.no | B8: Scrip | C8: CLOSE RATE | D8: Pivot Point | E8: Supports | H8: Resistances
C9: Point | E9: S1 | F9: S2 | G9: S3 | H9: R1 | I9: R2 | J9: R3 | K9: HIGH | L9: LOW | M9: Total Trade Quanity in Lakhs
A10: 1 | B10: Nifty 50 | C10: 9380.9 | D10: 9348.43 | E10: 9292.47 | F10: 9204.03 | G10: 9148.07 | H10: 9436.87 | I10: 9492.83 | J10: 9581.27 | K10: 9404.4 | L10: 9260
A11: 2 | B11: Nifty Bank | C11: 20671.1 | D11: 20561.07 | E11: 20370.83 | F11: 20070.57 | G11: 19880.33 | H11: 20861.33 | I11: 21051.57 | J11: 21351.83 | K11: 20751.3 | L11: 20260.8
A12: 3 | B12: Nifty CPSE | C12: 1320.95 | D12: 1325.30 | E12: 1312.90 | F12: 1304.85 | G12: 1292.45 | H12: 1333.35 | I12: 1345.75 | J12: 1353.80 | K12: 1337.7 | L12: 1317.25
A13: 4 | B13: Nifty Infra | C13: 2632.55 | D13: 2637.70 | E13: 2611.55 | F13: 2590.55 | G13: 2564.40 | H13: 2658.70 | I13: 2684.85 | J13: 2705.85 | K13: 2663.85 | L13: 2616.7
A14: 5 | B14: Nifty IT | C14: 13133.65 | D14: 13172.87 | E14: 13028.53 | F14: 12923.42 | G14: 12779.08 | H14: 13277.98 | I14: 13422.32 | J14: 13527.43 | K14: 13317.2 | L14: 13067.75
A15: 6 | B15: Nifty PSE | C15: 2289.75 | D15: 2297.13 | E15: 2278.37 | F15: 2266.98 | G15: 2248.22 | H15: 2308.52 | I15: 2327.28 | J15: 2338.67 | K15: 2315.9 | L15: 2285.75
A16: 7 | B16: Nifty Midcap 50 | C16: 3597.8 | D16: 3577.73 | E16: 3548.52 | F16: 3499.23 | G16: 3470.02 | H16: 3627.02 | I16: 3656.23 | J16: 3705.52 | K16: 3606.95 | L16: 3528.45
A17: 8 | B17: ACC | C17: 1126.5 | D17: 1135.50 | E17: 1113.00 | F17: 1099.50 | G17: 1077.00 | H17: 1149.00 | I17: 1171.50 | J17: 1185.00 | K17: 1158 | L17: 1122 | M17: 10.94422
A18: 9 | B18: AUBANK | C18: 512.65 | D18: 514.12 | E18: 503.23 | F18: 493.82 | G18: 482.93 | H18: 523.53 | I18: 534.42 | J18: 543.83 | K18: 525 | L18: 504.7 | M18: 5.09561
A19: 10 | B19: ADANIPORTS | C19: 272.95 | D19: 272.55 | E19: 270.40 | F19: 267.85 | G19: 265.70 | H19: 275.10 | I19: 277.25 | J19: 279.80 | K19: 274.7 | L19: 270 | M19: 18.08291
A20: 11 | B20: ADANIPOWER | C20: 30.15 | D20: 29.95 | E20: 29.20 | F20: 28.25 | G20: 27.50 | H20: 30.90 | I20: 31.65 | J20: 32.60 | K20: 30.7 | L20: 29 | M20: 176.21342
A21: 12 | B21: ABCAPITAL | C21: 50.65 | D21: 50.05 | E21: 48.90 | F21: 47.15 | G21: 46.00 | H21: 51.80 | I21: 52.95 | J21: 54.70 | K21: 51.2 | L21: 48.3 | M21: 22.21271
A22: 13 | B22: ABFRL | C22: 115.15 | D22: 115.97 | E22: 113.93 | F22: 112.72 | G22: 110.68 | H22: 117.18 | I22: 119.22 | J22: 120.43 | K22: 118 | L22: 114.75 | M22: 19.59403
A23: 14 | B23: AJANTPHARM | C23: 1494.6 | D23: 1508.80 | E23: 1467.80 | F23: 1441.00 | G23: 1400.00 | H23: 1535.60 | I23: 1576.60 | J23: 1603.40 | K23: 1549.8 | L23: 1482 | M23: 2.07852
A24: 15 | B24: ALKEM | C24: 2699.8 | D24: 2721.90 | E24: 2642.80 | F24: 2585.80 | G24: 2506.70 | H24: 2778.90 | I24: 2858.00 | J24: 2915.00 | K24: 2801 | L24: 2664.9 | M24: 1.55012
A25: 16 | B25: AMARAJABAT | C25: 545.55 | D25: 548.85 | E25: 540.70 | F25: 535.85 | G25: 527.70 | H25: 553.70 | I25: 561.85 | J25: 566.70 | K25: 557 | L25: 544 | M25: 8.96837
A26: 17 | B26: AMBUJACEM | C26: 167.7 | D26: 171.18 | E26: 163.37 | F26: 159.03 | G26: 151.22 | H26: 175.52 | I26: 183.33 | J26: 187.67 | K26: 179 | L26: 166.85 | M26: 133.25718
A27: 18 | B27: APOLLOHOSP | C27: 1426.45 | D27: 1433.90 | E27: 1409.60 | F27: 1392.75 | G27: 1368.45 | H27: 1450.75 | I27: 1475.05 | J27: 1491.90 | K27: 1458.2 | L27: 1417.05 | M27: 12.14114
A28: 19 | B28: APOLLOTYRE | C28: 89.5 | D28: 90.37 | E28: 88.33 | F28: 87.17 | G28: 85.13 | H28: 91.53 | I28: 93.57 | J28: 94.73 | K28: 92.4 | L28: 89.2 | M28: 36.97667
A29: 20 | B29: ASHOKLEY | C29: 44.55 | D29: 44.60 | E29: 43.70 | F29: 42.85 | G29: 41.95 | H29: 45.45 | I29: 46.35 | J29: 47.20 | K29: 45.5 | L29: 43.75 | M29: 185.34578
A30: 21 | B30: ASIANPAINT | C30: 1824.4 | D30: 1831.57 | E30: 1799.13 | F30: 1773.87 | G30: 1741.43 | H30: 1856.83 | I30: 1889.27 | J30: 1914.53 | K30: 1864 | L30: 1806.3 | M30: 19.3492
A31: 22 | B31: AUROPHARMA | C31: 619.95 | D31: 626.35 | E31: 609.75 | F31: 599.55 | G31: 582.95 | H31: 636.55 | I31: 653.15 | J31: 663.35 | K31: 642.95 | L31: 616.15 | M31: 57.78269
A32: 23 | B32: DMART | C32: 2305.8 | D32: 2310.27 | E32: 2280.53 | F32: 2255.27 | G32: 2225.53 | H32: 2335.53 | I32: 2365.27 | J32: 2390.53 | K32: 2340 | L32: 2285 | M32: 8.58549
A33: 24 | B33: AXISBANK | C33: 455.45 | D33: 449.70 | E33: 441.00 | F33: 426.55 | G33: 417.85 | H33: 464.15 | I33: 472.85 | J33: 487.30 | K33: 458.4 | L33: 435.25 | M33: 439.38651
A34: 25 | B34: BAJAJ-AUTO | C34: 2463.7 | D34: 2480.48 | E34: 2414.57 | F34: 2365.43 | G34: 2299.52 | H34: 2529.62 | I34: 2595.53 | J34: 2644.67 | K34: 2546.4 | L34: 2431.35 | M34: 6.46908
A35: 26 | B35: BAJFINANCE | C35: 2228.1 | D35: 2169.07 | E35: 2094.03 | F35: 1959.97 | G35: 1884.93 | H35: 2303.13 | I35: 2378.17 | J35: 2512.23 | K35: 2244.1 | L35: 2035 | M35: 147.56379
A36: 27 | B36: BAJAJFINSV | C36: 4861.8 | D36: 4784.32 | E36: 4658.63 | F36: 4455.47 | G36: 4329.78 | H36: 4987.48 | I36: 5113.17 | J36: 5316.33 | K36: 4910 | L36: 4581.15 | M36: 15.20428
A37: 28 | B37: BAJAJHLDNG | C37: 1938.25 | D37: 1909.08 | E37: 1874.17 | F37: 1810.08 | G37: 1775.17 | H37: 1973.17 | I37: 2008.08 | J37: 2072.17 | K37: 1944 | L37: 1845 | M37: 0.48507
A38: 29 | B38: BALKRISIND | C38: 919.05 | D38: 913.68 | E38: 902.37 | F38: 885.68 | G38: 874.37 | H38: 930.37 | I38: 941.68 | J38: 958.37 | K38: 925 | L38: 897 | M38: 5.92605
A39: 30 | B39: BANDHANBNK | C39: 221.1 | D39: 219.57 | E39: 214.63 | F39: 208.17 | G39: 203.23 | H39: 226.03 | I39: 230.97 | J39: 237.43 | K39: 224.5 | L39: 213.1 | M39: 128.97638
A40: 31 | B40: BANKBARODA | C40: 47.3 | D40: 47.17 | E40: 46.83 | F40: 46.37 | G40: 46.03 | H40: 47.63 | I40: 47.97 | J40: 48.43 | K40: 47.5 | L40: 46.7 | M40: 173.2424
A41: 32 | B41: BANKINDIA | C41: 34.3 | D41: 34.23 | E41: 33.67 | F41: 33.03 | G41: 32.47 | H41: 34.87 | I41: 35.43 | J41: 36.07 | K41: 34.8 | L41: 33.6 | M41: 36.06089
A42: 33 | B42: BATAINDIA | C42: 1324.2 | D42: 1321.50 | E42: 1299.00 | F42: 1273.80 | G42: 1251.30 | H42: 1346.70 | I42: 1369.20 | J42: 1394.40 | K42: 1344 | L42: 1296.3 | M42: 22.71914
A43: 34 | B43: BERGEPAINT | C43: 529.95 | D43: 533.33 | E43: 520.12 | F43: 510.28 | G43: 497.07 | H43: 543.17 | I43: 556.38 | J43: 566.22 | K43: 546.55 | L43: 523.5 | M43: 16.096
A44: 35 | B44: BEL | C44: 73.25 | D44: 73.48 | E44: 72.47 | F44: 71.68 | G44: 70.67 | H44: 74.27 | I44: 75.28 | J44: 76.07 | K44: 74.5 | L44: 72.7 | M44: 47.12408
A45: 36 | B45: BHARATFORG | C45: 266.75 | D45: 269.30 | E45: 260.75 | F45: 254.75 | G45: 246.20 | H45: 275.30 | I45: 283.85 | J45: 289.85 | K45: 277.85 | L45: 263.3 | M45: 16.15301
A46: 37 | B46: BHEL | C46: 20.95 | D46: 20.92 | E46: 20.68 | F46: 20.42 | G46: 20.18 | H46: 21.18 | I46: 21.42 | J46: 21.68 | K46: 21.15 | L46: 20.65 | M46: 155.89273
A47: 38 | B47: BPCL | C47: 359.1 | D47: 362.72 | E47: 350.58 | F47: 342.07 | G47: 329.93 | H47: 371.23 | I47: 383.37 | J47: 391.88 | K47: 374.85 | L47: 354.2 | M47: 111.00227
A48: 39 | B48: BHARTIARTL | C48: 485.65 | D48: 489.07 | E48: 480.68 | F48: 475.72 | G48: 467.33 | H48: 494.03 | I48: 502.42 | J48: 507.38 | K48: 497.45 | L48: 484.1 | M48: 115.12936
A49: 40 | B49: INFRATEL | C49: 159.4 | D49: 158.42 | E49: 155.98 | F49: 152.57 | G49: 150.13 | H49: 161.83 | I49: 164.27 | J49: 167.68 | K49: 160.85 | L49: 155 | M49: 41.52709
A50: 41 | B50: BIOCON | C50: 352 | D50: 355.45 | E50: 344.95 | F50: 337.90 | G50: 327.40 | H50: 362.50 | I50: 373.00 | J50: 380.05 | K50: 365.95 | L50: 348.4 | M50: 63.11044
A51: 42 | B51: BBTC | C51: 927.05 | D51: 934.53 | E51: 909.17 | F51: 891.28 | G51: 865.92 | H51: 952.42 | I51: 977.78 | J51: 995.67 | K51: 959.9 | L51: 916.65 | M51: 0.77424
A52: 43 | B52: BOSCHLTD | C52: 9982.1 | D52: 10097.38 | E52: 9794.82 | F52: 9607.53 | G52: 9304.97 | H52: 10284.67 | I52: 10587.23 | J52: 10774.52 | K52: 10399.95 | L52: 9910.1 | M52: 0.42651
A53: 44 | B53: BRITANNIA | C53: 3193.95 | D53: 3214.60 | E53: 3139.35 | F53: 3084.75 | G53: 3009.50 | H53: 3269.20 | I53: 3344.45 | J53: 3399.05 | K53: 3289.85 | L53: 3160 | M53: 13.79063
A54: 45 | B54: CESC | C54: 606.9 | D54: 598.32 | E54: 584.63 | F54: 562.37 | G54: 548.68 | H54: 620.58 | I54: 634.27 | J54: 656.53 | K54: 612 | L54: 576.05 | M54: 8.30243
A55: 46 | B55: CADILAHC | C55: 325.95 | D55: 329.83 | E55: 320.12 | F55: 314.28 | G55: 304.57 | H55: 335.67 | I55: 345.38 | J55: 351.22 | K55: 339.55 | L55: 324 | M55: 48.82363
A56: 47 | B56: CANBK | C56: 83.95 | D56: 83.70 | E56: 81.40 | F56: 78.85 | G56: 76.55 | H56: 86.25 | I56: 88.55 | J56: 91.10 | K56: 86 | L56: 81.15 | M56: 117.08692
A57: 48 | B57: CASTROLIND | C57: 122.05 | D57: 122.08 | E57: 120.17 | F57: 118.28 | G57: 116.37 | H57: 123.97 | I57: 125.88 | J57: 127.77 | K57: 124 | L57: 120.2 | M57: 8.01701
A58: 49 | B58: CHOLAFIN | C58: 147.2 | D58: 143.47 | E58: 139.23 | F58: 131.27 | G58: 127.03 | H58: 151.43 | I58: 155.67 | J58: 163.63 | K58: 147.7 | L58: 135.5 | M58: 131.93551
A59: 50 | B59: CIPLA | C59: 598.6 | D59: 604.37 | E59: 587.48 | F59: 576.37 | G59: 559.48 | H59: 615.48 | I59: 632.37 | J59: 643.48 | K59: 621.25 | L59: 593.25 | M59: 81.93432
A60: 51 | B60: CUB | C60: 124.95 | D60: 123.97 | E60: 121.98 | F60: 119.02 | G60: 117.03 | H60: 126.93 | I60: 128.92 | J60: 131.88 | K60: 125.95 | L60: 121 | M60: 12.92299
A61: 52 | B61: COALINDIA | C61: 135.4 | D61: 136.47 | E61: 133.38 | F61: 131.37 | G61: 128.28 | H61: 138.48 | I61: 141.57 | J61: 143.58 | K61: 139.55 | L61: 134.45 | M61: 70.64485
A62: 53 | B62: COLPAL | C62: 1505.85 | D62: 1519.70 | E62: 1473.60 | F62: 1441.35 | G62: 1395.25 | H62: 1551.95 | I62: 1598.05 | J62: 1630.30 | K62: 1565.8 | L62: 1487.45 | M62: 12.06653
A63: 54 | B63: CONCOR | C63: 357.2 | D63: 359.20 | E63: 350.45 | F63: 343.70 | G63: 334.95 | H63: 365.95 | I63: 374.70 | J63: 381.45 | K63: 367.95 | L63: 352.45 | M63: 12.31981
A64: 55 | B64: COROMANDEL | C64: 564 | D64: 568.52 | E64: 557.03 | F64: 550.07 | G64: 538.58 | H64: 575.48 | I64: 586.97 | J64: 593.93 | K64: 580 | L64: 561.55 | M64: 1.3608
A65: 56 | B65: CROMPTON | C65: 214.75 | D65: 214.85 | E65: 210.00 | F65: 205.25 | G65: 200.40 | H65: 219.60 | I65: 224.45 | J65: 229.20 | K65: 219.7 | L65: 210.1 | M65: 7.26506
A66: 57 | B66: CUMMINSIND | C66: 386.25 | D66: 379.45 | E66: 370.45 | F66: 354.65 | G66: 345.65 | H66: 395.25 | I66: 404.25 | J66: 420.05 | K66: 388.45 | L66: 363.65 | M66: 21.75035
A67: 58 | B67: DLF | C67: 138 | D67: 136.85 | E67: 135.05 | F67: 132.10 | G67: 130.30 | H67: 139.80 | I67: 141.60 | J67: 144.55 | K67: 138.65 | L67: 133.9 | M67: 101.18659
A68: 59 | B68: DABUR | C68: 487.55 | D68: 488.12 | E68: 481.83 | F68: 476.12 | G68: 469.83 | H68: 493.83 | I68: 500.12 | J68: 505.83 | K68: 494.4 | L68: 482.4 | M68: 20.10669
A69: 60 | B69: DALBHARAT | C69: 528.5 | D69: 532.20 | E69: 519.65 | F69: 510.80 | G69: 498.25 | H69: 541.05 | I69: 553.60 | J69: 562.45 | K69: 544.75 | L69: 523.35 | M69: 0.48142
A70: 61 | B70: DIVISLAB | C70: 2363.35 | D70: 2385.78 | E70: 2326.57 | F70: 2289.78 | G70: 2230.57 | H70: 2422.57 | I70: 2481.78 | J70: 2518.57 | K70: 2445 | L70: 2349 | M70: 8.55507
A71: 62 | B71: DRREDDY | C71: 3949.75 | D71: 3959.33 | E71: 3882.47 | F71: 3815.18 | G71: 3738.32 | H71: 4026.62 | I71: 4103.48 | J71: 4170.77 | K71: 4036.2 | L71: 3892.05 | M71: 8.61168
A72: 63 | B72: EDELWEISS | C72: 37.65 | D72: 37.42 | E72: 36.53 | F72: 35.42 | G72: 34.53 | H72: 38.53 | I72: 39.42 | J72: 40.53 | K72: 38.3 | L72: 36.3 | M72: 8.73816
A73: 64 | B73: EICHERMOT | C73: 14326.85 | D73: 14270.78 | E73: 14156.57 | F73: 13986.28 | G73: 13872.07 | H73: 14441.07 | I73: 14555.28 | J73: 14725.57 | K73: 14385 | L73: 14100.5 | M73: 1.84694
A74: 65 | B74: EMAMILTD | C74: 198.85 | D74: 199.93 | E74: 196.92 | F74: 194.98 | G74: 191.97 | H74: 201.87 | I74: 204.88 | J74: 206.82 | K74: 202.95 | L74: 198 | M74: 1.26048
A75: 66 | B75: ENDURANCE | C75: 628.6 | D75: 622.12 | E75: 609.83 | F75: 591.07 | G75: 578.78 | H75: 640.88 | I75: 653.17 | J75: 671.93 | K75: 634.4 | L75: 603.35 | M75: 2.3757
A76: 67 | B76: ENGINERSIN | C76: 65.8 | D76: 66.40 | E76: 64.60 | F76: 63.40 | G76: 61.60 | H76: 67.60 | I76: 69.40 | J76: 70.60 | K76: 68.2 | L76: 65.2 | M76: 8.60266
A77: 68 | B77: ESCORTS | C77: 709.15 | D77: 701.55 | E77: 685.10 | F77: 661.05 | G77: 644.60 | H77: 725.60 | I77: 742.05 | J77: 766.10 | K77: 718 | L77: 677.5 | M77: 51.5776
A78: 69 | B78: EXIDEIND | C78: 146.1 | D78: 146.85 | E78: 143.55 | F78: 141.00 | G78: 137.70 | H78: 149.40 | I78: 152.70 | J78: 155.25 | K78: 150.15 | L78: 144.3 | M78: 20.04432
A79: 70 | B79: FEDERALBNK | C79: 46.75 | D79: 46.38 | E79: 44.77 | F79: 42.78 | G79: 41.17 | H79: 48.37 | I79: 49.98 | J79: 51.97 | K79: 48 | L79: 44.4 | M79: 254.47452
A80: 71 | B80: FORTIS | C80: 117.5 | D80: 118.38 | E80: 115.82 | F80: 114.13 | G80: 111.57 | H80: 120.07 | I80: 122.63 | J80: 124.32 | K80: 120.95 | L80: 116.7 | M80: 5.83081
A81: 72 | B81: FCONSUMER | C81: 8.45 | D81: 8.45 | E81: 8.45 | F81: 8.45 | G81: 8.45 | H81: 8.45 | I81: 8.45 | J81: 8.45 | K81: 8.45 | L81: 8.45 | M81: 18.79479
A82: 73 | B82: FRETAIL | C82: 92.25 | D82: 92.25 | E82: 92.25 | F82: 92.25 | G82: 92.25 | H82: 92.25 | I82: 92.25 | J82: 92.25 | K82: 92.25 | L82: 92.25 | M82: 1.75548
A83: 74 | B83: GAIL | C83: 84.55 | D83: 83.83 | E83: 82.52 | F83: 80.48 | G83: 79.17 | H83: 85.87 | I83: 87.18 | J83: 89.22 | K83: 85.15 | L83: 81.8 | M83: 282.29053
A84: 75 | B84: GMRINFRA | C84: 17 | D84: 17.03 | E84: 16.82 | F84: 16.63 | G84: 16.42 | H84: 17.22 | I84: 17.43 | J84: 17.62 | K84: 17.25 | L84: 16.85 | M84: 23.93674
A85: 76 | B85: GICRE | C85: 132.45 | D85: 134.27 | E85: 129.18 | F85: 125.92 | G85: 120.83 | H85: 137.53 | I85: 142.62 | J85: 145.88 | K85: 139.35 | L85: 131 | M85: 1.71753
A86: 77 | B86: GLENMARK | C86: 327.75 | D86: 333.62 | E86: 320.13 | F86: 312.52 | G86: 299.03 | H86: 341.23 | I86: 354.72 | J86: 362.33 | K86: 347.1 | L86: 326 | M86: 51.8804
A87: 78 | B87: GODREJAGRO | C87: 412.5 | D87: 409.45 | E87: 394.05 | F87: 375.60 | G87: 360.20 | H87: 427.90 | I87: 443.30 | J87: 461.75 | K87: 424.85 | L87: 391 | M87: 6.46974
A88: 79 | B88: GODREJCP | C88: 533.8 | D88: 534.47 | E88: 526.18 | F88: 518.57 | G88: 510.28 | H88: 542.08 | I88: 550.37 | J88: 557.98 | K88: 542.75 | L88: 526.85 | M88: 13.53788
A89: 80 | B89: GODREJIND | C89: 259.75 | D89: 260.37 | E89: 256.73 | F89: 253.72 | G89: 250.08 | H89: 263.38 | I89: 267.02 | J89: 270.03 | K89: 264 | L89: 257.35 | M89: 3.69256
A90: 81 | B90: GODREJPROP | C90: 663 | D90: 666.15 | E90: 656.85 | F90: 650.70 | G90: 641.40 | H90: 672.30 | I90: 681.60 | J90: 687.75 | K90: 675.45 | L90: 660 | M90: 1.74679
A91: 82 | B91: GRAPHITE | C91: 205.5 | D91: 205.50 | E91: 205.50 | F91: 205.50 | G91: 205.50 | H91: 205.50 | I91: 205.50 | J91: 205.50 | K91: 205.5 | L91: 205.5 | M91: 0.90864
A92: 83 | B92: GRASIM | C92: 497.45 | D92: 500.92 | E92: 490.33 | F92: 483.22 | G92: 472.63 | H92: 508.03 | I92: 518.62 | J92: 525.73 | K92: 511.5 | L92: 493.8 | M92: 21.20094
A93: 84 | B93: GSPL | C93: 198.2 | D93: 196.13 | E93: 191.62 | F93: 185.03 | G93: 180.52 | H93: 202.72 | I93: 207.23 | J93: 213.82 | K93: 200.65 | L93: 189.55 | M93: 4.91822
A94: 85 | B94: HEG | C94: 791.4 | D94: 802.07 | E94: 780.73 | F94: 770.07 | G94: 748.73 | H94: 812.73 | I94: 834.07 | J94: 844.73 | K94: 823.4 | L94: 791.4 | M94: 2.57648
A95: 86 | B95: HCLTECH | C95: 471.1 | D95: 476.52 | E95: 464.03 | F95: 456.97 | G95: 444.48 | H95: 483.58 | I95: 496.07 | J95: 503.13 | K95: 489 | L95: 469.45 | M95: 42.62239
A96: 87 | B96: HDFCAMC | C96: 2496.65 | D96: 2539.42 | E96: 2440.83 | F96: 2385.02 | G96: 2286.43 | H96: 2595.23 | I96: 2693.82 | J96: 2749.63 | K96: 2638 | L96: 2483.6 | M96: 4.14552
A97: 88 | B97: HDFCBANK | C97: 931.4 | D97: 932.40 | E97: 921.00 | F97: 910.60 | G97: 899.20 | H97: 942.80 | I97: 954.20 | J97: 964.60 | K97: 943.8 | L97: 922 | M97: 147.20773
A98: 89 | B98: HDFCLIFE | C98: 486.15 | D98: 484.63 | E98: 472.67 | F98: 459.18 | G98: 447.22 | H98: 498.12 | I98: 510.08 | J98: 523.57 | K98: 496.6 | L98: 471.15 | M98: 57.90882
A99: 90 | B99: HAVELLS | C99: 532.95 | D99: 533.42 | E99: 524.53 | F99: 516.12 | G99: 507.23 | H99: 541.83 | I99: 550.72 | J99: 559.13 | K99: 542.3 | L99: 525 | M99: 12.09446
A100: 91 | B100: HEROMOTOCO | C100: 1943.1 | D100: 1943.83 | E100: 1914.87 | F100: 1886.63 | G100: 1857.67 | H100: 1972.07 | I100: 2001.03 | J100: 2029.27 | K100: 1972.8 | L100: 1915.6 | M100: 10.57093
A101: 92 | B101: HEXAWARE | C101: 284.9 | D101: 286.63 | E101: 278.27 | F101: 271.63 | G101: 263.27 | H101: 293.27 | I101: 301.63 | J101: 308.27 | K101: 295 | L101: 280 | M101: 3.25084
A102: 93 | B102: HINDALCO | C102: 108.75 | D102: 108.70 | E102: 106.75 | F102: 104.75 | G102: 102.80 | H102: 110.70 | I102: 112.65 | J102: 114.65 | K102: 110.65 | L102: 106.7 | M102: 134.89959
A103: 94 | B103: HINDPETRO | C103: 210.9 | D103: 212.57 | E103: 207.13 | F103: 203.37 | G103: 197.93 | H103: 216.33 | I103: 221.77 | J103: 225.53 | K103: 218 | L103: 208.8 | M103: 96.77242
A104: 95 | B104: HINDUNILVR | C104: 2289.95 | D104: 2298.53 | E104: 2258.42 | F104: 2226.88 | G104: 2186.77 | H104: 2330.07 | I104: 2370.18 | J104: 2401.72 | K104: 2338.65 | L104: 2267 | M104: 21.64048
A105: 96 | B105: HINDZINC | C105: 165.05 | D105: 165.87 | E105: 163.18 | F105: 161.32 | G105: 158.63 | H105: 167.73 | I105: 170.42 | J105: 172.28 | K105: 168.55 | L105: 164 | M105: 1.68768
A106: 97 | B106: HUDCO | C106: 21.5 | D106: 21.42 | E106: 21.13 | F106: 20.77 | G106: 20.48 | H106: 21.78 | I106: 22.07 | J106: 22.43 | K106: 21.7 | L106: 21.05 | M106: 5.39493
A107: 98 | B107: HDFC | C107: 1715.8 | D107: 1684.48 | E107: 1643.97 | F107: 1572.13 | G107: 1531.62 | H107: 1756.32 | I107: 1796.83 | J107: 1868.67 | K107: 1725 | L107: 1612.65 | M107: 76.916
A108: 99 | B108: ICICIBANK | C108: 359.85 | D108: 357.65 | E108: 352.45 | F108: 345.05 | G108: 339.85 | H108: 365.05 | I108: 370.25 | J108: 377.65 | K108: 362.85 | L108: 350.25 | M108: 329.34538
A109: 100 | B109: ICICIGI | C109: 1195.45 | D109: 1194.12 | E109: 1181.33 | F109: 1167.22 | G109: 1154.43 | H109: 1208.23 | I109: 1221.02 | J109: 1235.13 | K109: 1206.9 | L109: 1180 | M109: 9.83106
A110: 101 | B110: ICICIPRULI | C110: 384.05 | D110: 379.30 | E110: 372.15 | F110: 360.25 | G110: 353.10 | H110: 391.20 | I110: 398.35 | J110: 410.25 | K110: 386.45 | L110: 367.4 | M110: 43.46832
A111: 102 | B111: IDBI | C111: 21 | D111: 21.03 | E111: 20.62 | F111: 20.23 | G111: 19.82 | H111: 21.42 | I111: 21.83 | J111: 22.22 | K111: 21.45 | L111: 20.65 | M111: 14.96354
A112: 103 | B112: IDFCFIRSTB | C112: 22.25 | D112: 22.28 | E112: 21.87 | F112: 21.48 | G112: 21.07 | H112: 22.67 | I112: 23.08 | J112: 23.47 | K112: 22.7 | L112: 21.9 | M112: 331.1548
A113: 104 | B113: ITC | C113: 179.45 | D113: 179.43 | E113: 178.07 | F113: 176.68 | G113: 175.32 | H113: 180.82 | I113: 182.18 | J113: 183.57 | K113: 180.8 | L113: 178.05 | M113: 178.02711
A114: 105 | B114: IBULHSGFIN | C114: 117.1 | D114: 117.23 | E114: 114.47 | F114: 111.83 | G114: 109.07 | H114: 119.87 | I114: 122.63 | J114: 125.27 | K114: 120 | L114: 114.6 | M114: 217.53321
A115: 106 | B115: IBVENTURES | C115: 102.8 | D115: 102.22 | E115: 100.78 | F115: 98.77 | G115: 97.33 | H115: 104.23 | I115: 105.67 | J115: 107.68 | K115: 103.65 | L115: 100.2 | M115: 3.48095
A116: 107 | B116: INDIANB | C116: 51.4 | D116: 50.67 | E116: 49.23 | F116: 47.07 | G116: 45.63 | H116: 52.83 | I116: 54.27 | J116: 56.43 | K116: 52.1 | L116: 48.5 | M116: 43.12035
A117: 108 | B117: INDHOTEL | C117: 75.1 | D117: 74.83 | E117: 73.67 | F117: 72.23 | G117: 71.07 | H117: 76.27 | I117: 77.43 | J117: 78.87 | K117: 76 | L117: 73.4 | M117: 29.26315
A118: 109 | B118: IOC | C118: 79.65 | D118: 80.48 | E118: 78.47 | F118: 77.28 | G118: 75.27 | H118: 81.67 | I118: 83.68 | J118: 84.87 | K118: 82.5 | L118: 79.3 | M118: 184.8416
A119: 110 | B119: IGL | C119: 466.85 | D119: 460.62 | E119: 451.23 | F119: 435.62 | G119: 426.23 | H119: 476.23 | I119: 485.62 | J119: 501.23 | K119: 470 | L119: 445 | M119: 39.86332
A120: 111 | B120: INDUSINDBK | C120: 468.05 | D120: 460.82 | E120: 437.23 | F120: 406.42 | G120: 382.83 | H120: 491.63 | I120: 515.22 | J120: 546.03 | K120: 484.4 | L120: 430 | M120: 606.1069
A121: 112 | B121: NAUKRI | C121: 2392.25 | D121: 2366.38 | E121: 2315.17 | F121: 2238.08 | G121: 2186.87 | H121: 2443.47 | I121: 2494.68 | J121: 2571.77 | K121: 2417.6 | L121: 2289.3 | M121: 3.12743
A122: 113 | B122: INFY | C122: 660.7 | D122: 663.58 | E122: 650.17 | F122: 639.63 | G122: 626.22 | H122: 674.12 | I122: 687.53 | J122: 698.07 | K122: 677 | L122: 653.05 | M122: 72.96594
A123: 114 | B123: INDIGO | C123: 908.3 | D123: 898.30 | E123: 881.60 | F123: 854.90 | G123: 838.20 | H123: 925.00 | I123: 941.70 | J123: 968.40 | K123: 915 | L123: 871.6 | M123: 29.08425
A124: 115 | B124: IPCALAB | C124: 1644.95 | D124: 1654.32 | E124: 1618.63 | F124: 1592.32 | G124: 1556.63 | H124: 1680.63 | I124: 1716.32 | J124: 1742.63 | K124: 1690 | L124: 1628 | M124: 5.73556
A125: 116 | B125: JSWENERGY | C125: 39.4 | D125: 39.33 | E125: 38.57 | F125: 37.73 | G125: 36.97 | H125: 40.17 | I125: 40.93 | J125: 41.77 | K125: 40.1 | L125: 38.5 | M125: 15.44978
A126: 117 | B126: JSWSTEEL | C126: 159.4 | D126: 158.90 | E126: 157.50 | F126: 155.60 | G126: 154.20 | H126: 160.80 | I126: 162.20 | J126: 164.10 | K126: 160.3 | L126: 157 | M126: 80.25743
A127: 118 | B127: JINDALSTEL | C127: 83.9 | D127: 83.28 | E127: 82.12 | F127: 80.33 | G127: 79.17 | H127: 85.07 | I127: 86.23 | J127: 88.02 | K127: 84.45 | L127: 81.5 | M127: 142.89354
A128: 119 | B128: JUBLFOOD | C128: 1521.55 | D128: 1519.18 | E128: 1490.37 | F128: 1459.18 | G128: 1430.37 | H128: 1550.37 | I128: 1579.18 | J128: 1610.37 | K128: 1548 | L128: 1488 | M128: 13.19156
A129: 120 | B129: JUBILANT | C129: 413.3 | D129: 420.85 | E129: 398.70 | F129: 384.10 | G129: 361.95 | H129: 435.45 | I129: 457.60 | J129: 472.20 | K129: 443 | L129: 406.25 | M129: 6.02871
A130: 121 | B130: KOTAKBANK | C130: 1326.65 | D130: 1324.42 | E130: 1312.33 | F130: 1298.02 | G130: 1285.93 | H130: 1338.73 | I130: 1350.82 | J130: 1365.13 | K130: 1336.5 | L130: 1310.1 | M130: 66.7845
A131: 122 | B131: L&TFH | C131: 64.2 | D131: 63.25 | E131: 62.00 | F131: 59.80 | G131: 58.55 | H131: 65.45 | I131: 66.70 | J131: 68.90 | K131: 64.5 | L131: 61.05 | M131: 178.73956
A132: 123 | B132: LTTS | C132: 1153.75 | D132: 1160.43 | E132: 1130.32 | F132: 1106.88 | G132: 1076.77 | H132: 1183.87 | I132: 1213.98 | J132: 1237.42 | K132: 1190.55 | L132: 1137 | M132: 0.96509
A133: 124 | B133: LICHSGFIN | C133: 276.5 | D133: 267.47 | E133: 255.93 | F133: 235.37 | G133: 223.83 | H133: 288.03 | I133: 299.57 | J133: 320.13 | K133: 279 | L133: 246.9 | M133: 105.05666
A134: 125 | B134: LTI | C134: 1465.85 | D134: 1460.93 | E134: 1449.92 | F134: 1433.98 | G134: 1422.97 | H134: 1476.87 | I134: 1487.88 | J134: 1503.82 | K134: 1471.95 | L134: 1445 | M134: 0.51626
A135: 126 | B135: LT | C135: 857.15 | D135: 858.98 | E135: 850.27 | F135: 843.38 | G135: 834.67 | H135: 865.87 | I135: 874.58 | J135: 881.47 | K135: 867.7 | L135: 852.1 | M135: 37.73038
A136: 127 | B136: LUPIN | C136: 854.35 | D136: 867.87 | E136: 834.73 | F136: 815.12 | G136: 781.98 | H136: 887.48 | I136: 920.62 | J136: 940.23 | K136: 901 | L136: 848.25 | M136: 41.21437
A137: 128 | B137: MRF | C137: 59075.7 | D137: 59141.90 | E137: 58483.80 | F137: 57891.90 | G137: 57233.80 | H137: 59733.80 | I137: 60391.90 | J137: 60983.80 | K137: 59800 | L137: 58550 | M137: 0.06233
A138: 129 | B138: MGL | C138: 959.35 | D138: 949.62 | E138: 933.73 | F138: 908.12 | G138: 892.23 | H138: 975.23 | I138: 991.12 | J138: 1016.73 | K138: 965.5 | L138: 924 | M138: 6.78818
A139: 130 | B139: M&MFIN | C139: 154.2 | D139: 150.20 | E139: 145.20 | F139: 136.20 | G139: 131.20 | H139: 159.20 | I139: 164.20 | J139: 173.20 | K139: 155.2 | L139: 141.2 | M139: 119.70759
A140: 131 | B140: M&M | C140: 335.95 | D140: 334.15 | E140: 330.30 | F140: 324.65 | G140: 320.80 | H140: 339.80 | I140: 343.65 | J140: 349.30 | K140: 338 | L140: 328.5 | M140: 42.44522
A141: 132 | B141: MANAPPURAM | C141: 129.75 | D141: 125.83 | E141: 120.12 | F141: 110.48 | G141: 104.77 | H141: 135.47 | I141: 141.18 | J141: 150.82 | K141: 131.55 | L141: 116.2 | M141: 246.96014
A142: 133 | B142: MRPL | C142: 32.35 | D142: 32.72 | E142: 31.73 | F142: 31.12 | G142: 30.13 | H142: 33.33 | I142: 34.32 | J142: 34.93 | K142: 33.7 | L142: 32.1 | M142: 3.94311
A143: 134 | B143: MARICO | C143: 290.1 | D143: 293.42 | E143: 284.83 | F143: 279.57 | G143: 270.98 | H143: 298.68 | I143: 307.27 | J143: 312.53 | K143: 302 | L143: 288.15 | M143: 46.32084
A144: 135 | B144: MARUTI | C144: 5052.7 | D144: 5054.32 | E144: 4988.63 | F144: 4924.57 | G144: 4858.88 | H144: 5118.38 | I144: 5184.07 | J144: 5248.13 | K144: 5120 | L144: 4990.25 | M144: 11.72062
A145: 136 | B145: MFSL | C145: 477.15 | D145: 466.63 | E145: 440.52 | F145: 403.88 | G145: 377.77 | H145: 503.27 | I145: 529.38 | J145: 566.02 | K145: 492.75 | L145: 430 | M145: 134.67202
A146: 137 | B146: MINDTREE | C146: 867.3 | D146: 877.78 | E146: 851.57 | F146: 835.83 | G146: 809.62 | H146: 893.52 | I146: 919.73 | J146: 935.47 | K146: 904 | L146: 862.05 | M146: 23.45174
A147: 138 | B147: MOTHERSUMI | C147: 78.3 | D147: 78.50 | E147: 75.95 | F147: 73.60 | G147: 71.05 | H147: 80.85 | I147: 83.40 | J147: 85.75 | K147: 81.05 | L147: 76.15 | M147: 261.21015
A148: 139 | B148: MPHASIS | C148: 712.55 | D148: 709.95 | E148: 702.90 | F148: 693.25 | G148: 686.20 | H148: 719.60 | I148: 726.65 | J148: 736.30 | K148: 717 | L148: 700.3 | M148: 1.58919
A149: 140 | B149: MUTHOOTFIN | C149: 826.6 | D149: 823.33 | E149: 810.67 | F149: 794.73 | G149: 782.07 | H149: 839.27 | I149: 851.93 | J149: 867.87 | K149: 836 | L149: 807.4 | M149: 16.38939
A150: 141 | B150: NATCOPHARM | C150: 623.6 | D150: 628.53 | E150: 616.07 | F150: 608.53 | G150: 596.07 | H150: 636.07 | I150: 648.53 | J150: 656.07 | K150: 641 | L150: 621 | M150: 5.0078
A151: 142 | B151: NBCC | C151: 19.3 | D151: 19.47 | E151: 19.03 | F151: 18.77 | G151: 18.33 | H151: 19.73 | I151: 20.17 | J151: 20.43 | K151: 19.9 | L151: 19.2 | M151: 28.44536
A152: 143 | B152: NHPC | C152: 20.25 | D152: 20.43 | E152: 19.97 | F152: 19.68 | G152: 19.22 | H152: 20.72 | I152: 21.18 | J152: 21.47 | K152: 20.9 | L152: 20.15 | M152: 86.54623
A153: 144 | B153: NMDC | C153: 73.25 | D153: 73.50 | E153: 71.60 | F153: 69.95 | G153: 68.05 | H153: 75.15 | I153: 77.05 | J153: 78.70 | K153: 75.4 | L153: 71.85 | M153: 62.63749
A154: 145 | B154: NTPC | C154: 90.35 | D154: 90.63 | E154: 88.37 | F154: 86.38 | G154: 84.12 | H154: 92.62 | I154: 94.88 | J154: 96.87 | K154: 92.9 | L154: 88.65 | M154: 198.15466
A155: 146 | B155: NATIONALUM | C155: 30.5 | D155: 30.73 | E155: 30.02 | F155: 29.53 | G155: 28.82 | H155: 31.22 | I155: 31.93 | J155: 32.42 | K155: 31.45 | L155: 30.25 | M155: 70.15726
A156: 147 | B156: NESTLEIND | C156: 17569.65 | D156: 17697.87 | E156: 17372.78 | F156: 17175.92 | G156: 16850.83 | H156: 17894.73 | I156: 18219.82 | J156: 18416.68 | K156: 18022.95 | L156: 17501 | M156: 1.07549
A157: 148 | B157: NAM-INDIA | C157: 234.95 | D157: 236.62 | E157: 228.33 | F157: 221.72 | G157: 213.43 | H157: 243.23 | I157: 251.52 | J157: 258.13 | K157: 244.9 | L157: 230 | M157: 28.31951
A158: 149 | B158: OBEROIRLTY | C158: 327.8 | D158: 331.35 | E158: 322.50 | F158: 317.20 | G158: 308.35 | H158: 336.65 | I158: 345.50 | J158: 350.80 | K158: 340.2 | L158: 326.05 | M158: 2.52889
A159: 150 | B159: ONGC | C159: 69.2 | D159: 68.67 | E159: 67.63 | F159: 66.07 | G159: 65.03 | H159: 70.23 | I159: 71.27 | J159: 72.83 | K159: 69.7 | L159: 67.1 | M159: 204.2314
A160: 151 | B160: OIL | C160: 88.35 | D160: 87.17 | E160: 85.33 | F160: 82.32 | G160: 80.48 | H160: 90.18 | I160: 92.02 | J160: 95.03 | K160: 89 | L160: 84.15 | M160: 26.8555
A161: 152 | B161: OFSS | C161: 2239.15 | D161: 2209.70 | E161: 2164.45 | F161: 2089.75 | G161: 2044.50 | H161: 2284.40 | I161: 2329.65 | J161: 2404.35 | K161: 2254.95 | L161: 2135 | M161: 0.6744
A162: 153 | B162: PIIND | C162: 1489.5 | D162: 1500.18 | E162: 1470.37 | F162: 1451.23 | G162: 1421.42 | H162: 1519.32 | I162: 1549.13 | J162: 1568.27 | K162: 1530 | L162: 1481.05 | M162: 1.45324
A163: 154 | B163: PNBHOUSING | C163: 202.25 | D163: 202.65 | E163: 197.80 | F163: 193.35 | G163: 188.50 | H163: 207.10 | I163: 211.95 | J163: 216.40 | K163: 207.5 | L163: 198.2 | M163: 5.60025
A164: 155 | B164: PAGEIND | C164: 18041.2 | D164: 18278.58 | E164: 17762.62 | F164: 17484.03 | G164: 16968.07 | H164: 18557.17 | I164: 19073.13 | J164: 19351.72 | K164: 18794.55 | L164: 18000 | M164: 0.42634
A165: 156 | B165: PETRONET | C165: 224.35 | D165: 224.02 | E165: 219.58 | F165: 214.82 | G165: 210.38 | H165: 228.78 | I165: 233.22 | J165: 237.98 | K165: 228.45 | L165: 219.25 | M165: 32.32974
A166: 157 | B166: PFIZER | C166: 4818.25 | D166: 4929.42 | E166: 4688.83 | F166: 4559.42 | G166: 4318.83 | H166: 5058.83 | I166: 5299.42 | J166: 5428.83 | K166: 5170 | L166: 4800 | M166: 2.62511
A167: 158 | B167: PIDILITIND | C167: 1554.45 | D167: 1550.85 | E167: 1528.55 | F167: 1502.65 | G167: 1480.35 | H167: 1576.75 | I167: 1599.05 | J167: 1624.95 | K167: 1573.15 | L167: 1524.95 | M167: 7.73625
A168: 159 | B168: PEL | C168: 933.95 | D168: 921.15 | E168: 902.80 | F168: 871.65 | G168: 853.30 | H168: 952.30 | I168: 970.65 | J168: 1001.80 | K168: 939.5 | L168: 890 | M168: 24.47231
A169: 160 | B169: PFC | C169: 90.75 | D169: 91.27 | E169: 89.68 | F169: 88.62 | G169: 87.03 | H169: 92.33 | I169: 93.92 | J169: 94.98 | K169: 92.85 | L169: 90.2 | M169: 38.42267
A170: 161 | B170: POWERGRID | C170: 157.2 | D170: 158.13 | E170: 155.87 | F170: 154.53 | G170: 152.27 | H170: 159.47 | I170: 161.73 | J170: 163.07 | K170: 160.4 | L170: 156.8 | M170: 147.00793
A171: 162 | B171: PRESTIGE | C171: 168.2 | D171: 167.25 | E171: 161.60 | F171: 155.00 | G171: 149.35 | H171: 173.85 | I171: 179.50 | J171: 186.10 | K171: 172.9 | L171: 160.65 | M171: 8.92096
A172: 163 | B172: PGHH | C172: 10536.3 | D172: 10562.02 | E172: 10374.28 | F172: 10212.27 | G172: 10024.53 | H172: 10724.03 | I172: 10911.77 | J172: 11073.78 | K172: 10749.75 | L172: 10400 | M172: 0.03045
A173: 164 | B173: PNB | C173: 31.25 | D173: 31.10 | E173: 30.85 | F173: 30.45 | G173: 30.20 | H173: 31.50 | I173: 31.75 | J173: 32.15 | K173: 31.35 | L173: 30.7 | M173: 117.8017
A174: 165 | B174: QUESS | C174: 201.45 | D174: 202.85 | E174: 199.70 | F174: 197.95 | G174: 194.80 | H174: 204.60 | I174: 207.75 | J174: 209.50 | K174: 206 | L174: 201.1 | M174: 1.32922
A175: 166 | B175: RBLBANK | C175: 126.25 | D175: 125.12 | E175: 122.33 | F175: 118.42 | G175: 115.63 | H175: 129.03 | I175: 131.82 | J175: 135.73 | K175: 127.9 | L175: 121.2 | M175: 587.3377
A176: 167 | B176: RECLTD | C176: 89.1 | D176: 89.40 | E176: 88.50 | F176: 87.90 | G176: 87.00 | H176: 90.00 | I176: 90.90 | J176: 91.50 | K176: 90.3 | L176: 88.8 | M176: 42.5554
A177: 168 | B177: RAJESHEXPO | C177: 595.9 | D177: 578.70 | E177: 537.40 | F177: 478.90 | G177: 437.60 | H177: 637.20 | I177: 678.50 | J177: 737.00 | K177: 620 | L177: 520.2 | M177: 2.60674
A178: 169 | B178: RELIANCE | C178: 1428.15 | D178: 1425.25 | E178: 1395.05 | F178: 1361.95 | G178: 1331.75 | H178: 1458.35 | I178: 1488.55 | J178: 1521.65 | K178: 1455.45 | L178: 1392.15 | M178: 358.66381
A179: 170 | B179: SBILIFE | C179: 719.85 | D179: 718.13 | E179: 708.27 | F179: 696.68 | G179: 686.82 | H179: 729.72 | I179: 739.58 | J179: 751.17 | K179: 728 | L179: 706.55 | M179: 10.0254
A180: 171 | B180: SRF | C180: 3684.9 | D180: 3681.30 | E180: 3602.60 | F180: 3520.30 | G180: 3441.60 | H180: 3763.60 | I180: 3842.30 | J180: 3924.60 | K180: 3760 | L180: 3599 | M180: 6.38368
A181: 172 | B181: SHREECEM | C181: 18865.9 | D181: 19020.30 | E181: 18645.65 | F181: 18425.40 | G181: 18050.75 | H181: 19240.55 | I181: 19615.20 | J181: 19835.45 | K181: 19394.95 | L181: 18800.05 | M181: 0.2942
A182: 173 | B182: SRTRANSFIN | C182: 695.3 | D182: 682.87 | E182: 663.73 | F182: 632.17 | G182: 613.03 | H182: 714.43 | I182: 733.57 | J182: 765.13 | K182: 702 | L182: 651.3 | M182: 48.04312
A183: 174 | B183: SIEMENS | C183: 1140.1 | D183: 1154.62 | E183: 1120.48 | F183: 1100.87 | G183: 1066.73 | H183: 1174.23 | I183: 1208.37 | J183: 1227.98 | K183: 1188.75 | L183: 1135 | M183: 5.29773
A184: 175 | B184: SBIN | C184: 184.3 | D184: 183.62 | E184: 181.88 | F184: 179.47 | G184: 177.73 | H184: 186.03 | I184: 187.77 | J184: 190.18 | K184: 185.35 | L184: 181.2 | M184: 495.90249
A185: 176 | B185: SAIL | C185: 27.4 | D185: 27.10 | E185: 26.60 | F185: 25.80 | G185: 25.30 | H185: 27.90 | I185: 28.40 | J185: 29.20 | K185: 27.6 | L185: 26.3 | M185: 117.29167
A186: 177 | B186: STRTECH | C186: 91.5 | D186: 91.73 | E186: 89.97 | F186: 88.43 | G186: 86.67 | H186: 93.27 | I186: 95.03 | J186: 96.57 | K186: 93.5 | L186: 90.2 | M186: 11.66866
A187: 178 | B187: SUNPHARMA | C187: 473.95 | D187: 479.88 | E187: 464.37 | F187: 454.78 | G187: 439.27 | H187: 489.47 | I187: 504.98 | J187: 514.57 | K187: 495.4 | L187: 470.3 | M187: 128.47952
A188: 179 | B188: SUNTV | C188: 378 | D188: 379.30 | E188: 373.15 | F188: 368.30 | G188: 362.15 | H188: 384.15 | I188: 390.30 | J188: 395.15 | K188: 385.45 | L188: 374.45 | M188: 20.06109
A189: 180 | B189: SYNGENE | C189: 309.5 | D189: 313.50 | E189: 303.00 | F189: 296.50 | G189: 286.00 | H189: 320.00 | I189: 330.50 | J189: 337.00 | K189: 324 | L189: 307 | M189: 3.64828
A190: 181 | B190: TVSMOTOR | C190: 296.3 | D190: 297.47 | E190: 290.18 | F190: 284.07 | G190: 276.78 | H190: 303.58 | I190: 310.87 | J190: 316.98 | K190: 304.75 | L190: 291.35 | M190: 39.94864
A191: 182 | B191: TCS | C191: 1859.05 | D191: 1853.22 | E191: 1838.43 | F191: 1817.82 | G191: 1803.03 | H191: 1873.83 | I191: 1888.62 | J191: 1909.23 | K191: 1868 | L191: 1832.6 | M191: 26.78512
A192: 183 | B192: TATACONSUM | C192: 342.9 | D192: 346.32 | E192: 337.03 | F192: 331.17 | G192: 321.88 | H192: 352.18 | I192: 361.47 | J192: 367.33 | K192: 355.6 | L192: 340.45 | M192: 37.67231
A193: 184 | B193: TATAMTRDVR | C193: 34.3 | D193: 34.32 | E193: 33.68 | F193: 33.07 | G193: 32.43 | H193: 34.93 | I193: 35.57 | J193: 36.18 | K193: 34.95 | L193: 33.7 | M193: 22.82255
A194: 185 | B194: TATAMOTORS | C194: 76.95 | D194: 76.78 | E194: 75.37 | F194: 73.78 | G194: 72.37 | H194: 78.37 | I194: 79.78 | J194: 81.37 | K194: 78.2 | L194: 75.2 | M194: 348.25466
A195: 186 | B195: TATAPOWER | C195: 30.7 | D195: 30.88 | E195: 30.32 | F195: 29.93 | G195: 29.37 | H195: 31.27 | I195: 31.83 | J195: 32.22 | K195: 31.45 | L195: 30.5 | M195: 106.19659
A196: 187 | B196: TATASTEEL | C196: 273.55 | D196: 272.83 | E196: 270.27 | F196: 266.98 | G196: 264.42 | H196: 276.12 | I196: 278.68 | J196: 281.97 | K196: 275.4 | L196: 269.55 | M196: 85.48134
A197: 188 | B197: TECHM | C197: 520.4 | D197: 521.48 | E197: 514.47 | F197: 508.53 | G197: 501.52 | H197: 527.42 | I197: 534.43 | J197: 540.37 | K197: 528.5 | L197: 515.55 | M197: 49.72775
A198: 189 | B198: NIACL | C198: 119.3 | D198: 120.40 | E198: 116.90 | F198: 114.50 | G198: 111.00 | H198: 122.80 | I198: 126.30 | J198: 128.70 | K198: 123.9 | L198: 118 | M198: 2.13672
A199: 190 | B199: RAMCOCEM | C199: 538 | D199: 534.33 | E199: 528.67 | F199: 519.33 | G199: 513.67 | H199: 543.67 | I199: 549.33 | J199: 558.67 | K199: 540 | L199: 525 | M199: 5.40573
A200: 191 | B200: TITAN | C200: 932.85 | D200: 929.95 | E200: 919.90 | F200: 906.95 | G200: 896.90 | H200: 942.90 | I200: 952.95 | J200: 965.90 | K200: 940 | L200: 917 | M200: 25.48183
A201: 192 | B201: TORNTPHARM | C201: 2480.65 | D201: 2505.22 | E201: 2435.43 | F201: 2390.22 | G201: 2320.43 | H201: 2550.43 | I201: 2620.22 | J201: 2665.43 | K201: 2575 | L201: 2460 | M201: 6.93564
A202: 193 | B202: TORNTPOWER | C202: 311.7 | D202: 310.38 | E202: 306.57 | F202: 301.43 | G202: 297.62 | H202: 315.52 | I202: 319.33 | J202: 324.47 | K202: 314.2 | L202: 305.25 | M202: 8.115
A203: 194 | B203: UPL | C203: 360.5 | D203: 362.50 | E203: 355.05 | F203: 349.60 | G203: 342.15 | H203: 367.95 | I203: 375.40 | J203: 380.85 | K203: 369.95 | L203: 357.05 | M203: 78.05874
A204: 195 | B204: ULTRACEMCO | C204: 3394 | D204: 3396.83 | E204: 3362.67 | F204: 3331.33 | G204: 3297.17 | H204: 3428.17 | I204: 3462.33 | J204: 3493.67 | K204: 3431 | L204: 3365.5 | M204: 7.678
A205: 196 | B205: UNIONBANK | C205: 26.8 | D205: 27.00 | E205: 26.40 | F205: 26.00 | G205: 25.40 | H205: 27.40 | I205: 28.00 | J205: 28.40 | K205: 27.6 | L205: 26.6 | M205: 62.77037
... 30 more rows

Sheet MidCap Intra
L5: Back To Main Page
A6: FOR INTRA DAY TRADING | K6: =Main!B10 -> 2020-04-29
A9: Sr.no | B9: Scrip | C9: CLOSE RATE | D9: Pivot Point | E9: Supports | H9: Resistances
C10: Point | E10: S1 | F10: S2 | G10: S3 | H10: R1 | I10: R2 | J10: R3 | K10: HIGH | L10: LOW | M10: Total Trade Quanity in Lakhs
A11: 1 | B11: 3MINDIA | C11: 19297.95 | D11: 19302.65 | E11: 18806.30 | F11: 18314.65 | G11: 17818.30 | H11: 19794.30 | I11: 20290.65 | J11: 20782.30 | K11: 19799 | L11: 18811 | M11: 0.0137
A12: 2 | B12: AARTIIND | C12: 1105.45 | D12: 1087.82 | E12: 1060.63 | F12: 1015.82 | G12: 988.63 | H12: 1132.63 | I12: 1159.82 | J12: 1204.63 | K12: 1115 | L12: 1043 | M12: 13.66824
A13: 3 | B13: AAVAS | C13: 1152.25 | D13: 1155.72 | E13: 1136.53 | F13: 1120.82 | G13: 1101.63 | H13: 1171.43 | I13: 1190.62 | J13: 1206.33 | K13: 1174.9 | L13: 1140 | M13: 0.13391
A14: 4 | B14: ABBOTINDIA | C14: 16975.05 | D14: 17148.35 | E14: 16761.70 | F14: 16548.35 | G14: 16161.70 | H14: 17361.70 | I14: 17748.35 | J14: 17961.70 | K14: 17535 | L14: 16935 | M14: 0.28443
A15: 5 | B15: ABCAPITAL | C15: 50.65 | D15: 50.05 | E15: 48.90 | F15: 47.15 | G15: 46.00 | H15: 51.80 | I15: 52.95 | J15: 54.70 | K15: 51.2 | L15: 48.3 | M15: 22.21271
A16: 6 | B16: ABFRL | C16: 115.15 | D16: 115.97 | E16: 113.93 | F16: 112.72 | G16: 110.68 | H16: 117.18 | I16: 119.22 | J16: 120.43 | K16: 118 | L16: 114.75 | M16: 19.59403
A17: 7 | B17: ACC | C17: 1126.5 | D17: 1135.50 | E17: 1113.00 | F17: 1099.50 | G17: 1077.00 | H17: 1149.00 | I17: 1171.50 | J17: 1185.00 | K17: 1158 | L17: 1122 | M17: 10.94422
A18: 8 | B18: ADANIGAS | C18: 104.1 | D18: 103.30 | E18: 99.40 | F18: 94.70 | G18: 90.80 | H18: 108.00 | I18: 111.90 | J18: 116.60 | K18: 107.2 | L18: 98.6 | M18: 61.02925
A19: 9 | B19: ADANIGREEN | C19: 203.65 | D19: 202.13 | E19: 199.62 | F19: 195.58 | G19: 193.07 | H19: 206.17 | I19: 208.68 | J19: 212.72 | K19: 204.65 | L19: 198.1 | M19: 3.3907
A20: 10 | B20: ADANIPORTS | C20: 272.95 | D20: 272.55 | E20: 270.40 | F20: 267.85 | G20: 265.70 | H20: 275.10 | I20: 277.25 | J20: 279.80 | K20: 274.7 | L20: 270 | M20: 18.08291
A21: 11 | B21: ADANIPOWER | C21: 30.15 | D21: 29.95 | E21: 29.20 | F21: 28.25 | G21: 27.50 | H21: 30.90 | I21: 31.65 | J21: 32.60 | K21: 30.7 | L21: 29 | M21: 176.21342
A22: 12 | B22: ADANITRANS | C22: 200.95 | D22: 199.25 | E22: 196.00 | F22: 191.05 | G22: 187.80 | H22: 204.20 | I22: 207.45 | J22: 212.40 | K22: 202.5 | L22: 194.3 | M22: 2.81728
A23: 13 | B23: ADVENZYMES | C23: 138.3 | D23: 140.28 | E23: 135.02 | F23: 131.73 | G23: 126.47 | H23: 143.57 | I23: 148.83 | J23: 152.12 | K23: 145.55 | L23: 137 | M23: 0.86733
A24: 14 | B24: AEGISCHEM | C24: 169.15 | D24: 170.38 | E24: 165.77 | F24: 162.38 | G24: 157.77 | H24: 173.77 | I24: 178.38 | J24: 181.77 | K24: 175 | L24: 167 | M24: 0.56527
A25: 15 | B25: AFFLE | C25: 1381 | D25: 1390.43 | E25: 1360.57 | F25: 1340.13 | G25: 1310.27 | H25: 1410.87 | I25: 1440.73 | J25: 1461.17 | K25: 1420.3 | L25: 1370 | M25: 0.2087
A26: 16 | B26: AIAENG | C26: 1490.25 | D26: 1487.73 | E26: 1466.52 | F26: 1442.78 | G26: 1421.57 | H26: 1511.47 | I26: 1532.68 | J26: 1556.42 | K26: 1508.95 | L26: 1464 | M26: 0.20732
A27: 17 | B27: AJANTPHARM | C27: 1494.6 | D27: 1508.80 | E27: 1467.80 | F27: 1441.00 | G27: 1400.00 | H27: 1535.60 | I27: 1576.60 | J27: 1603.40 | K27: 1549.8 | L27: 1482 | M27: 2.07852
A28: 18 | B28: AKZOINDIA | C28: 2023 | D28: 2034.28 | E28: 1988.62 | F28: 1954.23 | G28: 1908.57 | H28: 2068.67 | I28: 2114.33 | J28: 2148.72 | K28: 2079.95 | L28: 1999.9 | M28: 0.06759
A29: 19 | B29: ALKEM | C29: 2699.8 | D29: 2721.90 | E29: 2642.80 | F29: 2585.80 | G29: 2506.70 | H29: 2778.90 | I29: 2858.00 | J29: 2915.00 | K29: 2801 | L29: 2664.9 | M29: 1.55012
A30: 20 | B30: ALLCARGO | C30: 71.95 | D30: 71.77 | E30: 70.73 | F30: 69.52 | G30: 68.48 | H30: 72.98 | I30: 74.02 | J30: 75.23 | K30: 72.8 | L30: 70.55 | M30: 0.45196
A31: 21 | B31: AMARAJABAT | C31: 545.55 | D31: 548.85 | E31: 540.70 | F31: 535.85 | G31: 527.70 | H31: 553.70 | I31: 561.85 | J31: 566.70 | K31: 557 | L31: 544 | M31: 8.96837
A32: 22 | B32: AMBER | C32: 1085.85 | D32: 1088.90 | E32: 1072.90 | F32: 1059.95 | G32: 1043.95 | H32: 1101.85 | I32: 1117.85 | J32: 1130.80 | K32: 1104.9 | L32: 1075.95 | M32: 0.39174
A33: 23 | B33: AMBUJACEM | C33: 167.7 | D33: 171.18 | E33: 163.37 | F33: 159.03 | G33: 151.22 | H33: 175.52 | I33: 183.33 | J33: 187.67 | K33: 179 | L33: 166.85 | M33: 133.25718
A34: 24 | B34: APLAPOLLO | C34: 1242.95 | D34: 1251.53 | E34: 1214.02 | F34: 1185.08 | G34: 1147.57 | H34: 1280.47 | I34: 1317.98 | J34: 1346.92 | K34: 1289.05 | L34: 1222.6 | M34: 0.24501
A35: 25 | B35: APLLTD | C35: 761.85 | D35: 785.02 | E35: 735.03 | F35: 708.22 | G35: 658.23 | H35: 811.83 | I35: 861.82 | J35: 888.63 | K35: 835 | L35: 758.2 | M35: 8.10661
A36: 26 | B36: APOLLOHOSP | C36: 1426.45 | D36: 1433.90 | E36: 1409.60 | F36: 1392.75 | G36: 1368.45 | H36: 1450.75 | I36: 1475.05 | J36: 1491.90 | K36: 1458.2 | L36: 1417.05 | M36: 12.14114
A37: 27 | B37: APOLLOTYRE | C37: 89.5 | D37: 90.37 | E37: 88.33 | F37: 87.17 | G37: 85.13 | H37: 91.53 | I37: 93.57 | J37: 94.73 | K37: 92.4 | L37: 89.2 | M37: 36.97667
A38: 28 | B38: ARVINDFASN | C38: 137.7 | D38: 138.70 | E38: 135.40 | F38: 133.10 | G38: 129.80 | H38: 141.00 | I38: 144.30 | J38: 146.60 | K38: 142 | L38: 136.4 | M38: 0.4334
A39: 29 | B39: ASAHIINDIA | C39: 166.2 | D39: 166.40 | E39: 162.80 | F39: 159.40 | G39: 155.80 | H39: 169.80 | I39: 173.40 | J39: 176.80 | K39: 170 | L39: 163 | M39: 0.07861
A40: 30 | B40: ASHOKA | C40: 60.65 | D40: 59.53 | E40: 57.12 | F40: 53.58 | G40: 51.17 | H40: 63.07 | I40: 65.48 | J40: 69.02 | K40: 61.95 | L40: 56 | M40: 2.94064
A41: 31 | B41: ASHOKLEY | C41: 44.55 | D41: 44.60 | E41: 43.70 | F41: 42.85 | G41: 41.95 | H41: 45.45 | I41: 46.35 | J41: 47.20 | K41: 45.5 | L41: 43.75 | M41: 185.34578
A42: 32 | B42: ASIANPAINT | C42: 1824.4 | D42: 1831.57 | E42: 1799.13 | F42: 1773.87 | G42: 1741.43 | H42: 1856.83 | I42: 1889.27 | J42: 1914.53 | K42: 1864 | L42: 1806.3 | M42: 19.3492
A43: 33 | B43: ASTERDM | C43: 100.55 | D43: 101.82 | E43: 98.53 | F43: 96.52 | G43: 93.23 | H43: 103.83 | I43: 107.12 | J43: 109.13 | K43: 105.1 | L43: 99.8 | M43: 0.99538
A44: 34 | B44: ASTRAL | C44: 939.65 | D44: 948.20 | E44: 921.45 | F44: 903.25 | G44: 876.50 | H44: 966.40 | I44: 993.15 | J44: 1011.35 | K44: 974.95 | L44: 930 | M44: 1.26189
A45: 35 | B45: ASTRAZEN | C45: 2777.8 | D45: 2794.25 | E45: 2743.50 | F45: 2709.20 | G45: 2658.45 | H45: 2828.55 | I45: 2879.30 | J45: 2913.60 | K45: 2845 | L45: 2759.95 | M45: 0.16249
A46: 36 | B46: ATUL | C46: 4869.75 | D46: 4854.25 | E46: 4768.50 | F46: 4667.25 | G46: 4581.50 | H46: 4955.50 | I46: 5041.25 | J46: 5142.50 | K46: 4940 | L46: 4753 | M46: 0.87883
A47: 37 | B47: AUBANK | C47: 512.65 | D47: 514.12 | E47: 503.23 | F47: 493.82 | G47: 482.93 | H47: 523.53 | I47: 534.42 | J47: 543.83 | K47: 525 | L47: 504.7 | M47: 5.09561
A48: 38 | B48: AUROPHARMA | C48: 619.95 | D48: 626.35 | E48: 609.75 | F48: 599.55 | G48: 582.95 | H48: 636.55 | I48: 653.15 | J48: 663.35 | K48: 642.95 | L48: 616.15 | M48: 57.78269
A49: 39 | B49: AVANTIFEED | C49: 423.5 | D49: 416.83 | E49: 396.77 | F49: 370.03 | G49: 349.97 | H49: 443.57 | I49: 463.63 | J49: 490.37 | K49: 436.9 | L49: 390.1 | M49: 15.73427
A50: 40 | B50: AXISBANK | C50: 455.45 | D50: 449.70 | E50: 441.00 | F50: 426.55 | G50: 417.85 | H50: 464.15 | I50: 472.85 | J50: 487.30 | K50: 458.4 | L50: 435.25 | M50: 439.38651
A51: 41 | B51: BAJAJ-AUTO | C51: 2463.7 | D51: 2480.48 | E51: 2414.57 | F51: 2365.43 | G51: 2299.52 | H51: 2529.62 | I51: 2595.53 | J51: 2644.67 | K51: 2546.4 | L51: 2431.35 | M51: 6.46908
A52: 42 | B52: BAJAJCON | C52: 147.05 | D52: 147.10 | E52: 146.00 | F52: 144.95 | G52: 143.85 | H52: 148.15 | I52: 149.25 | J52: 150.30 | K52: 148.2 | L52: 146.05 | M52: 2.77494
A53: 43 | B53: BAJAJELEC | C53: 335.75 | D53: 336.22 | E53: 331.63 | F53: 327.52 | G53: 322.93 | H53: 340.33 | I53: 344.92 | J53: 349.03 | K53: 340.8 | L53: 332.1 | M53: 0.81734
A54: 44 | B54: BAJAJFINSV | C54: 4861.8 | D54: 4784.32 | E54: 4658.63 | F54: 4455.47 | G54: 4329.78 | H54: 4987.48 | I54: 5113.17 | J54: 5316.33 | K54: 4910 | L54: 4581.15 | M54: 15.20428
A55: 45 | B55: BAJAJHLDNG | C55: 1938.25 | D55: 1909.08 | E55: 1874.17 | F55: 1810.08 | G55: 1775.17 | H55: 1973.17 | I55: 2008.08 | J55: 2072.17 | K55: 1944 | L55: 1845 | M55: 0.48507
A56: 46 | B56: BAJFINANCE | C56: 2228.1 | D56: 2169.07 | E56: 2094.03 | F56: 1959.97 | G56: 1884.93 | H56: 2303.13 | I56: 2378.17 | J56: 2512.23 | K56: 2244.1 | L56: 2035 | M56: 147.56379
A57: 47 | B57: BALKRISIND | C57: 919.05 | D57: 913.68 | E57: 902.37 | F57: 885.68 | G57: 874.37 | H57: 930.37 | I57: 941.68 | J57: 958.37 | K57: 925 | L57: 897 | M57: 5.92605
A58: 48 | B58: BALMLAWRIE | C58: 100.95 | D58: 101.22 | E58: 99.93 | F58: 98.92 | G58: 97.63 | H58: 102.23 | I58: 103.52 | J58: 104.53 | K58: 102.5 | L58: 100.2 | M58: 0.67942
A59: 49 | B59: BALRAMCHIN | C59: 98.8 | D59: 99.70 | E59: 97.50 | F59: 96.20 | G59: 94.00 | H59: 101.00 | I59: 103.20 | J59: 104.50 | K59: 101.9 | L59: 98.4 | M59: 3.1777
A60: 50 | B60: BANDHANBNK | C60: 221.1 | D60: 219.57 | E60: 214.63 | F60: 208.17 | G60: 203.23 | H60: 226.03 | I60: 230.97 | J60: 237.43 | K60: 224.5 | L60: 213.1 | M60: 128.97638
A61: 51 | B61: BANKBARODA | C61: 47.3 | D61: 47.17 | E61: 46.83 | F61: 46.37 | G61: 46.03 | H61: 47.63 | I61: 47.97 | J61: 48.43 | K61: 47.5 | L61: 46.7 | M61: 173.2424
A62: 52 | B62: BANKINDIA | C62: 34.3 | D62: 34.23 | E62: 33.67 | F62: 33.03 | G62: 32.47 | H62: 34.87 | I62: 35.43 | J62: 36.07 | K62: 34.8 | L62: 33.6 | M62: 36.06089
A63: 53 | B63: BASF | C63: 1060.65 | D63: 1070.30 | E63: 1040.35 | F63: 1020.05 | G63: 990.10 | H63: 1090.60 | I63: 1120.55 | J63: 1140.85 | K63: 1100.25 | L63: 1050 | M63: 0.62242
A64: 54 | B64: BATAINDIA | C64: 1324.2 | D64: 1321.50 | E64: 1299.00 | F64: 1273.80 | G64: 1251.30 | H64: 1346.70 | I64: 1369.20 | J64: 1394.40 | K64: 1344 | L64: 1296.3 | M64: 22.71914
A65: 55 | B65: BAYERCROP | C65: 4386.65 | D65: 4362.73 | E65: 4293.42 | F65: 4200.18 | G65: 4130.87 | H65: 4455.97 | I65: 4525.28 | J65: 4618.52 | K65: 4432.05 | L65: 4269.5 | M65: 0.24969
A66: 56 | B66: BBTC | C66: 927.05 | D66: 934.53 | E66: 909.17 | F66: 891.28 | G66: 865.92 | H66: 952.42 | I66: 977.78 | J66: 995.67 | K66: 959.9 | L66: 916.65 | M66: 0.77424
A67: 57 | B67: BDL | C67: 214.55 | D67: 216.18 | E67: 212.37 | F67: 210.18 | G67: 206.37 | H67: 218.37 | I67: 222.18 | J67: 224.37 | K67: 220 | L67: 214 | M67: 0.2007
A68: 58 | B68: BEL | C68: 73.25 | D68: 73.48 | E68: 72.47 | F68: 71.68 | G68: 70.67 | H68: 74.27 | I68: 75.28 | J68: 76.07 | K68: 74.5 | L68: 72.7 | M68: 47.12408
A69: 59 | B69: BEML | C69: 584.95 | D69: 593.45 | E69: 573.95 | F69: 562.95 | G69: 543.45 | H69: 604.45 | I69: 623.95 | J69: 634.95 | K69: 612.95 | L69: 582.45 | M69: 5.05066
A70: 60 | B70: BERGEPAINT | C70: 529.95 | D70: 533.33 | E70: 520.12 | F70: 510.28 | G70: 497.07 | H70: 543.17 | I70: 556.38 | J70: 566.22 | K70: 546.55 | L70: 523.5 | M70: 16.096
A71: 61 | B71: BHARATFORG | C71: 266.75 | D71: 269.30 | E71: 260.75 | F71: 254.75 | G71: 246.20 | H71: 275.30 | I71: 283.85 | J71: 289.85 | K71: 277.85 | L71: 263.3 | M71: 16.15301
A72: 62 | B72: BHARTIARTL | C72: 485.65 | D72: 489.07 | E72: 480.68 | F72: 475.72 | G72: 467.33 | H72: 494.03 | I72: 502.42 | J72: 507.38 | K72: 497.45 | L72: 484.1 | M72: 115.12936
A73: 63 | B73: BHEL | C73: 20.95 | D73: 20.92 | E73: 20.68 | F73: 20.42 | G73: 20.18 | H73: 21.18 | I73: 21.42 | J73: 21.68 | K73: 21.15 | L73: 20.65 | M73: 155.89273
A74: 64 | B74: BIOCON | C74: 352 | D74: 355.45 | E74: 344.95 | F74: 337.90 | G74: 327.40 | H74: 362.50 | I74: 373.00 | J74: 380.05 | K74: 365.95 | L74: 348.4 | M74: 63.11044
A75: 65 | B75: BIRLACORPN | C75: 407 | D75: 408.47 | E75: 403.28 | F75: 399.57 | G75: 394.38 | H75: 412.18 | I75: 417.37 | J75: 421.08 | K75: 413.65 | L75: 404.75 | M75: 1.47194
A76: 66 | B76: BLISSGVS | C76: 99.55 | D76: 99.48 | E76: 97.47 | F76: 95.38 | G76: 93.37 | H76: 101.57 | I76: 103.58 | J76: 105.67 | K76: 101.5 | L76: 97.4 | M76: 0.99158
A77: 67 | B77: BLUEDART | C77: 2137.7 | D77: 2129.73 | E77: 2085.47 | F77: 2033.23 | G77: 1988.97 | H77: 2181.97 | I77: 2226.23 | J77: 2278.47 | K77: 2174 | L77: 2077.5 | M77: 0.08607
A78: 68 | B78: BLUESTARCO | C78: 536.65 | D78: 534.22 | E78: 503.43 | F78: 470.22 | G78: 439.43 | H78: 567.43 | I78: 598.22 | J78: 631.43 | K78: 565 | L78: 501 | M78: 1.52797
A79: 69 | B79: BOMDYEING | C79: 51.25 | D79: 51.67 | E79: 50.63 | F79: 50.02 | G79: 48.98 | H79: 52.28 | I79: 53.32 | J79: 53.93 | K79: 52.7 | L79: 51.05 | M79: 7.5185
A80: 70 | B80: BOSCHLTD | C80: 9982.1 | D80: 10097.38 | E80: 9794.82 | F80: 9607.53 | G80: 9304.97 | H80: 10284.67 | I80: 10587.23 | J80: 10774.52 | K80: 10399.95 | L80: 9910.1 | M80: 0.42651
A81: 71 | B81: BPCL | C81: 359.1 | D81: 362.72 | E81: 350.58 | F81: 342.07 | G81: 329.93 | H81: 371.23 | I81: 383.37 | J81: 391.88 | K81: 374.85 | L81: 354.2 | M81: 111.00227
A82: 72 | B82: BRIGADE | C82: 118.95 | D82: 119.53 | E82: 116.47 | F82: 113.98 | G82: 110.92 | H82: 122.02 | I82: 125.08 | J82: 127.57 | K82: 122.6 | L82: 117.05 | M82: 0.77287
A83: 73 | B83: BRITANNIA | C83: 3193.95 | D83: 3214.60 | E83: 3139.35 | F83: 3084.75 | G83: 3009.50 | H83: 3269.20 | I83: 3344.45 | J83: 3399.05 | K83: 3289.85 | L83: 3160 | M83: 13.79063
A84: 74 | B84: BSE | C84: 370.2 | D84: 369.20 | E84: 361.50 | F84: 352.80 | G84: 345.10 | H84: 377.90 | I84: 385.60 | J84: 394.30 | K84: 376.9 | L84: 360.5 | M84: 2.35437
A85: 75 | B85: BSOFT | C85: 72.3 | D85: 71.80 | E85: 70.60 | F85: 68.90 | G85: 67.70 | H85: 73.50 | I85: 74.70 | J85: 76.40 | K85: 73 | L85: 70.1 | M85: 4.76317
A86: 76 | B86: CADILAHC | C86: 325.95 | D86: 329.83 | E86: 320.12 | F86: 314.28 | G86: 304.57 | H86: 335.67 | I86: 345.38 | J86: 351.22 | K86: 339.55 | L86: 324 | M86: 48.82363
A87: 77 | B87: CANBK | C87: 83.95 | D87: 83.70 | E87: 81.40 | F87: 78.85 | G87: 76.55 | H87: 86.25 | I87: 88.55 | J87: 91.10 | K87: 86 | L87: 81.15 | M87: 117.08692
A88: 78 | B88: CANFINHOME | C88: 309.45 | D88: 302.95 | E88: 292.90 | F88: 276.35 | G88: 266.30 | H88: 319.50 | I88: 329.55 | J88: 346.10 | K88: 313 | L88: 286.4 | M88: 8.093
A89: 79 | B89: CAPLIPOINT | C89: 352.45 | D89: 354.43 | E89: 346.87 | F89: 341.28 | G89: 333.72 | H89: 360.02 | I89: 367.58 | J89: 373.17 | K89: 362 | L89: 348.85 | M89: 1.03432
A90: 80 | B90: CARBORUNIV | C90: 217.8 | D90: 218.32 | E90: 213.48 | F90: 209.17 | G90: 204.33 | H90: 222.63 | I90: 227.47 | J90: 231.78 | K90: 223.15 | L90: 214 | M90: 0.31377
A91: 81 | B91: CARERATING | C91: 373.75 | D91: 376.08 | E91: 367.67 | F91: 361.58 | G91: 353.17 | H91: 382.17 | I91: 390.58 | J91: 396.67 | K91: 384.5 | L91: 370 | M91: 0.84747
A92: 82 | B92: CASTROLIND | C92: 122.05 | D92: 122.08 | E92: 120.17 | F92: 118.28 | G92: 116.37 | H92: 123.97 | I92: 125.88 | J92: 127.77 | K92: 124 | L92: 120.2 | M92: 8.01701
A93: 83 | B93: CCL | C93: 190.95 | D93: 192.25 | E93: 186.75 | F93: 182.55 | G93: 177.05 | H93: 196.45 | I93: 201.95 | J93: 206.15 | K93: 197.75 | L93: 188.05 | M93: 0.9751
A94: 84 | B94: CDSL | C94: 221.6 | D94: 221.42 | E94: 218.83 | F94: 216.07 | G94: 213.48 | H94: 224.18 | I94: 226.77 | J94: 229.53 | K94: 224 | L94: 218.65 | M94: 2.49941
A95: 85 | B95: CEATLTD | C95: 783.1 | D95: 788.13 | E95: 771.27 | F95: 759.43 | G95: 742.57 | H95: 799.97 | I95: 816.83 | J95: 828.67 | K95: 805 | L95: 776.3 | M95: 1.47206
A96: 86 | B96: CENTRALBK | C96: 15.1 | D96: 15.18 | E96: 14.92 | F96: 14.73 | G96: 14.47 | H96: 15.37 | I96: 15.63 | J96: 15.82 | K96: 15.45 | L96: 15 | M96: 4.92612
A97: 87 | B97: CENTURYPLY | C97: 118.05 | D97: 118.53 | E97: 116.12 | F97: 114.18 | G97: 111.77 | H97: 120.47 | I97: 122.88 | J97: 124.82 | K97: 120.95 | L97: 116.6 | M97: 1.47461
A98: 88 | B98: CERA | C98: 2201.1 | D98: 2197.58 | E98: 2175.17 | F98: 2149.23 | G98: 2126.82 | H98: 2223.52 | I98: 2245.93 | J98: 2271.87 | K98: 2220 | L98: 2171.65 | M98: 0.03878
A99: 89 | B99: CESC | C99: 606.9 | D99: 598.32 | E99: 584.63 | F99: 562.37 | G99: 548.68 | H99: 620.58 | I99: 634.27 | J99: 656.53 | K99: 612 | L99: 576.05 | M99: 8.30243
A100: 90 | B100: CGCL | C100: 135.7 | D100: 130.68 | E100: 122.02 | F100: 108.33 | G100: 99.67 | H100: 144.37 | I100: 153.03 | J100: 166.72 | K100: 139.35 | L100: 117 | M100: 4.68981
A101: 91 | B101: CHALET | C101: 146.05 | D101: 157.08 | E101: 132.97 | F101: 119.88 | G101: 95.77 | H101: 170.17 | I101: 194.28 | J101: 207.37 | K101: 181.2 | L101: 144 | M101: 11.0853
A102: 92 | B102: CHAMBLFERT | C102: 129.75 | D102: 129.58 | E102: 127.67 | F102: 125.58 | G102: 123.67 | H102: 131.67 | I102: 133.58 | J102: 135.67 | K102: 131.5 | L102: 127.5 | M102: 7.2147
A103: 93 | B103: CHENNPETRO | C103: 62.5 | D103: 62.58 | E103: 61.52 | F103: 60.53 | G103: 59.47 | H103: 63.57 | I103: 64.63 | J103: 65.62 | K103: 63.65 | L103: 61.6 | M103: 3.04348
A104: 94 | B104: CHOLAFIN | C104: 147.2 | D104: 143.47 | E104: 139.23 | F104: 131.27 | G104: 127.03 | H104: 151.43 | I104: 155.67 | J104: 163.63 | K104: 147.7 | L104: 135.5 | M104: 131.93551
A105: 95 | B105: CHOLAHLDNG | C105: 282.6 | D105: 282.68 | E105: 280.47 | F105: 278.33 | G105: 276.12 | H105: 284.82 | I105: 287.03 | J105: 289.17 | K105: 284.9 | L105: 280.55 | M105: 0.39257
A106: 96 | B106: CIPLA | C106: 598.6 | D106: 604.37 | E106: 587.48 | F106: 576.37 | G106: 559.48 | H106: 615.48 | I106: 632.37 | J106: 643.48 | K106: 621.25 | L106: 593.25 | M106: 81.93432
A107: 97 | B107: COALINDIA | C107: 135.4 | D107: 136.47 | E107: 133.38 | F107: 131.37 | G107: 128.28 | H107: 138.48 | I107: 141.57 | J107: 143.58 | K107: 139.55 | L107: 134.45 | M107: 70.64485
A108: 98 | B108: COCHINSHIP | C108: 244.95 | D108: 246.93 | E108: 242.12 | F108: 239.28 | G108: 234.47 | H108: 249.77 | I108: 254.58 | J108: 257.42 | K108: 251.75 | L108: 244.1 | M108: 2.09106
A109: 99 | B109: COLPAL | C109: 1505.85 | D109: 1519.70 | E109: 1473.60 | F109: 1441.35 | G109: 1395.25 | H109: 1551.95 | I109: 1598.05 | J109: 1630.30 | K109: 1565.8 | L109: 1487.45 | M109: 12.06653
A110: 100 | B110: CONCOR | C110: 357.2 | D110: 359.20 | E110: 350.45 | F110: 343.70 | G110: 334.95 | H110: 365.95 | I110: 374.70 | J110: 381.45 | K110: 367.95 | L110: 352.45 | M110: 12.31981
A111: 101 | B111: COROMANDEL | C111: 564 | D111: 568.52 | E111: 557.03 | F111: 550.07 | G111: 538.58 | H111: 575.48 | I111: 586.97 | J111: 593.93 | K111: 580 | L111: 561.55 | M111: 1.3608
A112: 102 | B112: CREDITACC | C112: 446.3 | D112: 438.00 | E112: 429.70 | F112: 413.10 | G112: 404.80 | H112: 454.60 | I112: 462.90 | J112: 479.50 | K112: 446.3 | L112: 421.4 | M112: 1.08455
A113: 103 | B113: CRISIL | C113: 1456.5 | D113: 1440.13 | E113: 1417.27 | F113: 1378.03 | G113: 1355.17 | H113: 1479.37 | I113: 1502.23 | J113: 1541.47 | K113: 1463 | L113: 1400.9 | M113: 0.15705
A114: 104 | B114: CROMPTON | C114: 214.75 | D114: 214.85 | E114: 210.00 | F114: 205.25 | G114: 200.40 | H114: 219.60 | I114: 224.45 | J114: 229.20 | K114: 219.7 | L114: 210.1 | M114: 7.26506
A115: 105 | B115: CUB | C115: 124.95 | D115: 123.97 | E115: 121.98 | F115: 119.02 | G115: 117.03 | H115: 126.93 | I115: 128.92 | J115: 131.88 | K115: 125.95 | L115: 121 | M115: 12.92299
A116: 106 | B116: CUMMINSIND | C116: 386.25 | D116: 379.45 | E116: 370.45 | F116: 354.65 | G116: 345.65 | H116: 395.25 | I116: 404.25 | J116: 420.05 | K116: 388.45 | L116: 363.65 | M116: 21.75035
A117: 107 | B117: CYIENT | C117: 202.55 | D117: 204.07 | E117: 198.68 | F117: 194.82 | G117: 189.43 | H117: 207.93 | I117: 213.32 | J117: 217.18 | K117: 209.45 | L117: 200.2 | M117: 9.6727
A118: 108 | B118: DABUR | C118: 487.55 | D118: 488.12 | E118: 481.83 | F118: 476.12 | G118: 469.83 | H118: 493.83 | I118: 500.12 | J118: 505.83 | K118: 494.4 | L118: 482.4 | M118: 20.10669
A119: 109 | B119: DALBHARAT | C119: 528.5 | D119: 532.20 | E119: 519.65 | F119: 510.80 | G119: 498.25 | H119: 541.05 | I119: 553.60 | J119: 562.45 | K119: 544.75 | L119: 523.35 | M119: 0.48142
A120: 110 | B120: DBCORP | C120: 74.4 | D120: 74.57 | E120: 73.88 | F120: 73.37 | G120: 72.68 | H120: 75.08 | I120: 75.77 | J120: 76.28 | K120: 75.25 | L120: 74.05 | M120: 0.6725
A121: 111 | B121: DBL | C121: 239.8 | D121: 240.43 | E121: 235.67 | F121: 231.53 | G121: 226.77 | H121: 244.57 | I121: 249.33 | J121: 253.47 | K121: 245.2 | L121: 236.3 | M121: 1.76732
A122: 112 | B122: DCAL | C122: 84.3 | D122: 85.68 | E122: 81.67 | F122: 79.03 | G122: 75.02 | H122: 88.32 | I122: 92.33 | J122: 94.97 | K122: 89.7 | L122: 83.05 | M122: 1.13653
A123: 113 | B123: DCBBANK | C123: 80.95 | D123: 81.60 | E123: 80.00 | F123: 79.05 | G123: 77.45 | H123: 82.55 | I123: 84.15 | J123: 85.10 | K123: 83.2 | L123: 80.65 | M123: 14.92803
A124: 114 | B124: DCMSHRIRAM | C124: 281.75 | D124: 274.80 | E124: 265.00 | F124: 248.25 | G124: 238.45 | H124: 291.55 | I124: 301.35 | J124: 318.10 | K124: 284.6 | L124: 258.05 | M124: 3.88015
A125: 115 | B125: DEEPAKNTR | C125: 485.6 | D125: 488.88 | E125: 478.77 | F125: 471.93 | G125: 461.82 | H125: 495.72 | I125: 505.83 | J125: 512.67 | K125: 499 | L125: 482.05 | M125: 11.3334
A126: 116 | B126: DELTACORP | C126: 68.45 | D126: 68.73 | E126: 67.72 | F126: 66.98 | G126: 65.97 | H126: 69.47 | I126: 70.48 | J126: 71.22 | K126: 69.75 | L126: 68 | M126: 14.86715
A127: 117 | B127: DHFL | C127: 12.95 | D127: 12.95 | E127: 12.95 | F127: 12.95 | G127: 12.95 | H127: 12.95 | I127: 12.95 | J127: 12.95 | K127: 12.95 | L127: 12.95 | M127: 2.82457
A128: 118 | B128: DISHTV | C128: 4.85 | D128: 4.87 | E128: 4.78 | F128: 4.72 | G128: 4.63 | H128: 4.93 | I128: 5.02 | J128: 5.08 | K128: 4.95 | L128: 4.8 | M128: 23.14223
A129: 119 | B129: DIVISLAB | C129: 2363.35 | D129: 2385.78 | E129: 2326.57 | F129: 2289.78 | G129: 2230.57 | H129: 2422.57 | I129: 2481.78 | J129: 2518.57 | K129: 2445 | L129: 2349 | M129: 8.55507
A130: 120 | B130: DIXON | C130: 4318.35 | D130: 4264.77 | E130: 4154.58 | F130: 3990.82 | G130: 3880.63 | H130: 4428.53 | I130: 4538.72 | J130: 4702.48 | K130: 4374.95 | L130: 4101 | M130: 0.38342
A131: 121 | B131: DLF | C131: 138 | D131: 136.85 | E131: 135.05 | F131: 132.10 | G131: 130.30 | H131: 139.80 | I131: 141.60 | J131: 144.55 | K131: 138.65 | L131: 133.9 | M131: 101.18659
A132: 122 | B132: DMART | C132: 2305.8 | D132: 2310.27 | E132: 2280.53 | F132: 2255.27 | G132: 2225.53 | H132: 2335.53 | I132: 2365.27 | J132: 2390.53 | K132: 2340 | L132: 2285 | M132: 8.58549
A133: 123 | B133: DRREDDY | C133: 3949.75 | D133: 3959.33 | E133: 3882.47 | F133: 3815.18 | G133: 3738.32 | H133: 4026.62 | I133: 4103.48 | J133: 4170.77 | K133: 4036.2 | L133: 3892.05 | M133: 8.61168
A134: 124 | B134: ECLERX | C134: 465.9 | D134: 466.57 | E134: 444.33 | F134: 422.77 | G134: 400.53 | H134: 488.13 | I134: 510.37 | J134: 531.93 | K134: 488.8 | L134: 445 | M134: 0.33967
A135: 125 | B135: EDELWEISS | C135: 37.65 | D135: 37.42 | E135: 36.53 | F135: 35.42 | G135: 34.53 | H135: 38.53 | I135: 39.42 | J135: 40.53 | K135: 38.3 | L135: 36.3 | M135: 8.73816
A136: 126 | B136: EICHERMOT | C136: 14326.85 | D136: 14270.78 | E136: 14156.57 | F136: 13986.28 | G136: 13872.07 | H136: 14441.07 | I136: 14555.28 | J136: 14725.57 | K136: 14385 | L136: 14100.5 | M136: 1.84694
A137: 127 | B137: EIDPARRY | C137: 147.15 | D137: 148.03 | E137: 145.17 | F137: 143.18 | G137: 140.32 | H137: 150.02 | I137: 152.88 | J137: 154.87 | K137: 150.9 | L137: 146.05 | M137: 0.71208
A138: 128 | B138: EIHOTEL | C138: 74.65 | D138: 74.82 | E138: 73.78 | F138: 72.92 | G138: 71.88 | H138: 75.68 | I138: 76.72 | J138: 77.58 | K138: 75.85 | L138: 73.95 | M138: 0.6998
A139: 129 | B139: ELGIEQUIP | C139: 130.45 | D139: 131.28 | E139: 127.57 | F139: 124.68 | G139: 120.97 | H139: 134.17 | I139: 137.88 | J139: 140.77 | K139: 135 | L139: 128.4 | M139: 0.11984
A140: 130 | B140: EMAMILTD | C140: 198.85 | D140: 199.93 | E140: 196.92 | F140: 194.98 | G140: 191.97 | H140: 201.87 | I140: 204.88 | J140: 206.82 | K140: 202.95 | L140: 198 | M140: 1.26048
A141: 131 | B141: ENDURANCE | C141: 628.6 | D141: 622.12 | E141: 609.83 | F141: 591.07 | G141: 578.78 | H141: 640.88 | I141: 653.17 | J141: 671.93 | K141: 634.4 | L141: 603.35 | M141: 2.3757
A142: 132 | B142: ENGINERSIN | C142: 65.8 | D142: 66.40 | E142: 64.60 | F142: 63.40 | G142: 61.60 | H142: 67.60 | I142: 69.40 | J142: 70.60 | K142: 68.2 | L142: 65.2 | M142: 8.60266
A143: 133 | B143: EQUITAS | C143: 53.25 | D143: 51.73 | E143: 49.67 | F143: 46.08 | G143: 44.02 | H143: 55.32 | I143: 57.38 | J143: 60.97 | K143: 53.8 | L143: 48.15 | M143: 233.23895
A144: 134 | B144: ERIS | C144: 476.55 | D144: 481.85 | E144: 466.70 | F144: 456.85 | G144: 441.70 | H144: 491.70 | I144: 506.85 | J144: 516.70 | K144: 497 | L144: 472 | M144: 0.35143
A145: 135 | B145: ESCORTS | C145: 709.15 | D145: 701.55 | E145: 685.10 | F145: 661.05 | G145: 644.60 | H145: 725.60 | I145: 742.05 | J145: 766.10 | K145: 718 | L145: 677.5 | M145: 51.5776
A146: 136 | B146: ESSELPACK | C146: 177.65 | D146: 175.95 | E146: 171.90 | F146: 166.15 | G146: 162.10 | H146: 181.70 | I146: 185.75 | J146: 191.50 | K146: 180 | L146: 170.2 | M146: 0.82709
A147: 137 | B147: EXIDEIND | C147: 146.1 | D147: 146.85 | E147: 143.55 | F147: 141.00 | G147: 137.70 | H147: 149.40 | I147: 152.70 | J147: 155.25 | K147: 150.15 | L147: 144.3 | M147: 20.04432
A148: 138 | B148: FCONSUMER | C148: 8.45 | D148: 8.45 | E148: 8.45 | F148: 8.45 | G148: 8.45 | H148: 8.45 | I148: 8.45 | J148: 8.45 | K148: 8.45 | L148: 8.45 | M148: 18.79479
A149: 139 | B149: FDC | C149: 249.2 | D149: 252.70 | E149: 243.50 | F149: 237.80 | G149: 228.60 | H149: 258.40 | I149: 267.60 | J149: 273.30 | K149: 261.9 | L149: 247 | M149: 2.6691
A150: 140 | B150: FEDERALBNK | C150: 46.75 | D150: 46.38 | E150: 44.77 | F150: 42.78 | G150: 41.17 | H150: 48.37 | I150: 49.98 | J150: 51.97 | K150: 48 | L150: 44.4 | M150: 254.47452
A151: 141 | B151: FINCABLES | C151: 243.2 | D151: 242.90 | E151: 239.90 | F151: 236.60 | G151: 233.60 | H151: 246.20 | I151: 249.20 | J151: 252.50 | K151: 245.9 | L151: 239.6 | M151: 0.47889
A152: 142 | B152: FINEORG | C152: 1960.95 | D152: 1975.72 | E152: 1923.53 | F152: 1886.12 | G152: 1833.93 | H152: 2013.13 | I152: 2065.32 | J152: 2102.73 | K152: 2027.9 | L152: 1938.3 | M152: 0.12825
A153: 143 | B153: FINPIPE | C153: 381 | D153: 383.27 | E153: 375.73 | F153: 370.47 | G153: 362.93 | H153: 388.53 | I153: 396.07 | J153: 401.33 | K153: 390.8 | L153: 378 | M153: 0.41433
A154: 144 | B154: FLFL | C154: 142.25 | D154: 143.50 | E154: 140.60 | F154: 138.95 | G154: 136.05 | H154: 145.15 | I154: 148.05 | J154: 149.70 | K154: 146.4 | L154: 141.85 | M154: 1.25722
A155: 145 | B155: FMGOETZE | C155: 343.2 | D155: 344.50 | E155: 339.20 | F155: 335.20 | G155: 329.90 | H155: 348.50 | I155: 353.80 | J155: 357.80 | K155: 349.8 | L155: 340.5 | M155: 0.00735
A156: 146 | B156: FORTIS | C156: 117.5 | D156: 118.38 | E156: 115.82 | F156: 114.13 | G156: 111.57 | H156: 120.07 | I156: 122.63 | J156: 124.32 | K156: 120.95 | L156: 116.7 | M156: 5.83081
A157: 147 | B157: FRETAIL | C157: 92.25 | D157: 92.25 | E157: 92.25 | F157: 92.25 | G157: 92.25 | H157: 92.25 | I157: 92.25 | J157: 92.25 | K157: 92.25 | L157: 92.25 | M157: 1.75548
A158: 148 | B158: FSL | C158: 34.4 | D158: 35.00 | E158: 33.50 | F158: 32.60 | G158: 31.10 | H158: 35.90 | I158: 37.40 | J158: 38.30 | K158: 36.5 | L158: 34.1 | M158: 12.90848
A159: 149 | B159: GAIL | C159: 84.55 | D159: 83.83 | E159: 82.52 | F159: 80.48 | G159: 79.17 | H159: 85.87 | I159: 87.18 | J159: 89.22 | K159: 85.15 | L159: 81.8 | M159: 282.29053
A160: 150 | B160: GALAXYSURF | C160: 1437.95 | D160: 1455.98 | E160: 1407.02 | F160: 1376.08 | G160: 1327.12 | H160: 1486.92 | I160: 1535.88 | J160: 1566.82 | K160: 1504.95 | L160: 1425.05 | M160: 0.55339
A161: 151 | B161: GARFIBRES | C161: 1282.3 | D161: 1272.32 | E161: 1254.68 | F161: 1227.07 | G161: 1209.43 | H161: 1299.93 | I161: 1317.57 | J161: 1345.18 | K161: 1289.95 | L161: 1244.7 | M161: 0.059
A162: 152 | B162: GAYAPROJ | C162: 12.85 | D162: 12.85 | E162: 12.85 | F162: 12.85 | G162: 12.85 | H162: 12.85 | I162: 12.85 | J162: 12.85 | K162: 12.85 | L162: 12.85 | M162: 0.2631
A163: 153 | B163: GEPIL | C163: 435.9 | D163: 442.97 | E163: 426.03 | F163: 416.17 | G163: 399.23 | H163: 452.83 | I163: 469.77 | J163: 479.63 | K163: 459.9 | L163: 433.1 | M163: 0.40779
A164: 154 | B164: GESHIP | C164: 224.65 | D164: 230.08 | E164: 216.57 | F164: 208.48 | G164: 194.97 | H164: 238.17 | I164: 251.68 | J164: 259.77 | K164: 243.6 | L164: 222 | M164: 1.66634
A165: 155 | B165: GET&D | C165: 87.25 | D165: 87.17 | E165: 85.33 | F165: 83.42 | G165: 81.58 | H165: 89.08 | I165: 90.92 | J165: 92.83 | K165: 89 | L165: 85.25 | M165: 0.67552
A166: 156 | B166: GHCL | C166: 107.1 | D166: 105.87 | E166: 104.23 | F166: 101.37 | G166: 99.73 | H166: 108.73 | I166: 110.37 | J166: 113.23 | K166: 107.5 | L166: 103 | M166: 1.94358
A167: 157 | B167: GICRE | C167: 132.45 | D167: 134.27 | E167: 129.18 | F167: 125.92 | G167: 120.83 | H167: 137.53 | I167: 142.62 | J167: 145.88 | K167: 139.35 | L167: 131 | M167: 1.71753
A168: 158 | B168: GILLETTE | C168: 5298.4 | D168: 5310.47 | E168: 5267.93 | F168: 5237.47 | G168: 5194.93 | H168: 5340.93 | I168: 5383.47 | J168: 5413.93 | K168: 5353 | L168: 5280 | M168: 0.03305
A169: 159 | B169: GLAXO | C169: 1453 | D169: 1447.97 | E169: 1434.18 | F169: 1415.37 | G169: 1401.58 | H169: 1466.78 | I169: 1480.57 | J169: 1499.38 | K169: 1461.75 | L169: 1429.15 | M169: 0.34705
A170: 160 | B170: GLENMARK | C170: 327.75 | D170: 333.62 | E170: 320.13 | F170: 312.52 | G170: 299.03 | H170: 341.23 | I170: 354.72 | J170: 362.33 | K170: 347.1 | L170: 326 | M170: 51.8804
A171: 161 | B171: GMDCLTD | C171: 39 | D171: 39.38 | E171: 38.52 | F171: 38.03 | G171: 37.17 | H171: 39.87 | I171: 40.73 | J171: 41.22 | K171: 40.25 | L171: 38.9 | M171: 5.26751
A172: 162 | B172: GMRINFRA | C172: 17 | D172: 17.03 | E172: 16.82 | F172: 16.63 | G172: 16.42 | H172: 17.22 | I172: 17.43 | J172: 17.62 | K172: 17.25 | L172: 16.85 | M172: 23.93674
A173: 163 | B173: GNFC | C173: 144.35 | D173: 143.33 | E173: 140.07 | F173: 135.78 | G173: 132.52 | H173: 147.62 | I173: 150.88 | J173: 155.17 | K173: 146.6 | L173: 139.05 | M173: 13.2737
A174: 164 | B174: GODFRYPHLP | C174: 1055.1 | D174: 1042.65 | E174: 1026.10 | F174: 997.10 | G174: 980.55 | H174: 1071.65 | I174: 1088.20 | J174: 1117.20 | K174: 1059.2 | L174: 1013.65 | M174: 1.05009
A175: 165 | B175: GODREJAGRO | C175: 412.5 | D175: 409.45 | E175: 394.05 | F175: 375.60 | G175: 360.20 | H175: 427.90 | I175: 443.30 | J175: 461.75 | K175: 424.85 | L175: 391 | M175: 6.46974
A176: 166 | B176: GODREJCP | C176: 533.8 | D176: 534.47 | E176: 526.18 | F176: 518.57 | G176: 510.28 | H176: 542.08 | I176: 550.37 | J176: 557.98 | K176: 542.75 | L176: 526.85 | M176: 13.53788
A177: 167 | B177: GODREJIND | C177: 259.75 | D177: 260.37 | E177: 256.73 | F177: 253.72 | G177: 250.08 | H177: 263.38 | I177: 267.02 | J177: 270.03 | K177: 264 | L177: 257.35 | M177: 3.69256
A178: 168 | B178: GODREJPROP | C178: 663 | D178: 666.15 | E178: 656.85 | F178: 650.70 | G178: 641.40 | H178: 672.30 | I178: 681.60 | J178: 687.75 | K178: 675.45 | L178: 660 | M178: 1.74679
A179: 169 | B179: GPPL | C179: 54.65 | D179: 55.10 | E179: 53.80 | F179: 52.95 | G179: 51.65 | H179: 55.95 | I179: 57.25 | J179: 58.10 | K179: 56.4 | L179: 54.25 | M179: 6.49174
A180: 170 | B180: GRANULES | C180: 170.8 | D180: 172.42 | E180: 168.73 | F180: 166.67 | G180: 162.98 | H180: 174.48 | I180: 178.17 | J180: 180.23 | K180: 176.1 | L180: 170.35 | M180: 15.6983
A181: 171 | B181: GRAPHITE | C181: 205.5 | D181: 205.50 | E181: 205.50 | F181: 205.50 | G181: 205.50 | H181: 205.50 | I181: 205.50 | J181: 205.50 | K181: 205.5 | L181: 205.5 | M181: 0.90864
A182: 172 | B182: GRASIM | C182: 497.45 | D182: 500.92 | E182: 490.33 | F182: 483.22 | G182: 472.63 | H182: 508.03 | I182: 518.62 | J182: 525.73 | K182: 511.5 | L182: 493.8 | M182: 21.20094
A183: 173 | B183: GREAVESCOT | C183: 77.7 | D183: 77.17 | E183: 75.73 | F183: 73.77 | G183: 72.33 | H183: 79.13 | I183: 80.57 | J183: 82.53 | K183: 78.6 | L183: 75.2 | M183: 2.8547
A184: 174 | B184: GRINDWELL | C184: 499.1 | D184: 506.27 | E184: 488.53 | F184: 477.97 | G184: 460.23 | H184: 516.83 | I184: 534.57 | J184: 545.13 | K184: 524 | L184: 495.7 | M184: 0.41642
A185: 175 | B185: GSFC | C185: 44.6 | D185: 44.50 | E185: 43.25 | F185: 41.90 | G185: 40.65 | H185: 45.85 | I185: 47.10 | J185: 48.45 | K185: 45.75 | L185: 43.15 | M185: 5.85238
A186: 176 | B186: GSPL | C186: 198.2 | D186: 196.13 | E186: 191.62 | F186: 185.03 | G186: 180.52 | H186: 202.72 | I186: 207.23 | J186: 213.82 | K186: 200.65 | L186: 189.55 | M186: 4.91822
A187: 177 | B187: GUJALKALI | C187: 375.05 | D187: 379.17 | E187: 368.73 | F187: 362.42 | G187: 351.98 | H187: 385.48 | I187: 395.92 | J187: 402.23 | K187: 389.6 | L187: 372.85 | M187: 3.94547
A188: 178 | B188: GUJGASLTD | C188: 252.25 | D188: 254.72 | E188: 248.83 | F188: 245.42 | G188: 239.53 | H188: 258.13 | I188: 264.02 | J188: 267.43 | K188: 260.6 | L188: 251.3 | M188: 5.49527
A189: 179 | B189: GULFOILLUB | C189: 599 | D189: 607.00 | E189: 579.00 | F189: 559.00 | G189: 531.00 | H189: 627.00 | I189: 655.00 | J189: 675.00 | K189: 635 | L189: 587 | M189: 0.15096
A190: 180 | B190: HAL | C190: 519.7 | D190: 523.73 | E190: 514.52 | F190: 509.33 | G190: 500.12 | H190: 528.92 | I190: 538.13 | J190: 543.32 | K190: 532.95 | L190: 518.55 | M190: 0.29684
A191: 181 | B191: HATSUN | C191: 507.7 | D191: 503.57 | E191: 496.13 | F191: 484.57 | G191: 477.13 | H191: 515.13 | I191: 522.57 | J191: 534.13 | K191: 511 | L191: 492 | M191: 0.12933
A192: 182 | B192: HAVELLS | C192: 532.95 | D192: 533.42 | E192: 524.53 | F192: 516.12 | G192: 507.23 | H192: 541.83 | I192: 550.72 | J192: 559.13 | K192: 542.3 | L192: 525 | M192: 12.09446
A193: 183 | B193: HCLTECH | C193: 471.1 | D193: 476.52 | E193: 464.03 | F193: 456.97 | G193: 444.48 | H193: 483.58 | I193: 496.07 | J193: 503.13 | K193: 489 | L193: 469.45 | M193: 42.62239
A194: 184 | B194: HDFC | C194: 1715.8 | D194: 1684.48 | E194: 1643.97 | F194: 1572.13 | G194: 1531.62 | H194: 1756.32 | I194: 1796.83 | J194: 1868.67 | K194: 1725 | L194: 1612.65 | M194: 76.916
A195: 185 | B195: HDFCAMC | C195: 2496.65 | D195: 2539.42 | E195: 2440.83 | F195: 2385.02 | G195: 2286.43 | H195: 2595.23 | I195: 2693.82 | J195: 2749.63 | K195: 2638 | L195: 2483.6 | M195: 4.14552
A196: 186 | B196: HDFCBANK | C196: 931.4 | D196: 932.40 | E196: 921.00 | F196: 910.60 | G196: 899.20 | H196: 942.80 | I196: 954.20 | J196: 964.60 | K196: 943.8 | L196: 922 | M196: 147.20773
A197: 187 | B197: HDFCLIFE | C197: 486.15 | D197: 484.63 | E197: 472.67 | F197: 459.18 | G197: 447.22 | H197: 498.12 | I197: 510.08 | J197: 523.57 | K197: 496.6 | L197: 471.15 | M197: 57.90882
A198: 188 | B198: HEG | C198: 791.4 | D198: 802.07 | E198: 780.73 | F198: 770.07 | G198: 748.73 | H198: 812.73 | I198: 834.07 | J198: 844.73 | K198: 823.4 | L198: 791.4 | M198: 2.57648
A199: 189 | B199: HEIDELBERG | C199: 158.5 | D199: 159.97 | E199: 156.53 | F199: 154.57 | G199: 151.13 | H199: 161.93 | I199: 165.37 | J199: 167.33 | K199: 163.4 | L199: 158 | M199: 1.38134
A200: 190 | B200: HERITGFOOD | C200: 260.3 | D200: 264.33 | E200: 250.67 | F200: 241.03 | G200: 227.37 | H200: 273.97 | I200: 287.63 | J200: 297.27 | K200: 278 | L200: 254.7 | M200: 0.27956
A201: 191 | B201: HEROMOTOCO | C201: 1943.1 | D201: 1943.83 | E201: 1914.87 | F201: 1886.63 | G201: 1857.67 | H201: 1972.07 | I201: 2001.03 | J201: 2029.27 | K201: 1972.8 | L201: 1915.6 | M201: 10.57093
A202: 192 | B202: HEXAWARE | C202: 284.9 | D202: 286.63 | E202: 278.27 | F202: 271.63 | G202: 263.27 | H202: 293.27 | I202: 301.63 | J202: 308.27 | K202: 295 | L202: 280 | M202: 3.25084
A203: 193 | B203: HFCL | C203: 10.9 | D203: 10.98 | E203: 10.62 | F203: 10.33 | G203: 9.97 | H203: 11.27 | I203: 11.63 | J203: 11.92 | K203: 11.35 | L203: 10.7 | M203: 28.27335
A204: 194 | B204: HIMATSEIDE | C204: 54.9 | D204: 56.20 | E204: 53.40 | F204: 51.90 | G204: 49.10 | H204: 57.70 | I204: 60.50 | J204: 62.00 | K204: 59 | L204: 54.7 | M204: 1.17481
A205: 195 | B205: HINDALCO | C205: 108.75 | D205: 108.70 | E205: 106.75 | F205: 104.75 | G205: 102.80 | H205: 110.70 | I205: 112.65 | J205: 114.65 | K205: 110.65 | L205: 106.7 | M205: 134.89959
A206: 196 | B206: HINDCOPPER | C206: 25.05 | D206: 25.03 | E206: 24.62 | F206: 24.18 | G206: 23.77 | H206: 25.47 | I206: 25.88 | J206: 26.32 | K206: 25.45 | L206: 24.6 | M206: 2.72512
... 321 more rows

Sheet Bulk Deals
E6: Back To Main Page
A7: Subject : | B7: BULK DEAL | D7: =Main!B10 -> 2020-04-29
A9: Date | B9: Scrip code | C9: Scrip Name | D9: Client Name | E9: Buy / Sell | F9: Quantity Traded | G9: Trade Price / Wt.Avg.trade price | H9: Exchange
A10: 2020-04-28 | B10: 500023 | C10: ASIANHOTNR | D10: SATYA PRAKASH BAGLA | E10: BUY | F10: 99,650 | G10: 66.75 | H10: BSE
A11: 2020-04-28 | B11: 500023 | C11: ASIANHOTNR | D11: KAVITA BHATTER | E11: SELL | F11: 100,000 | G11: 66.75 | H11: BSE
A12: 2020-04-28 | B12: 541627 | C12: HITECHWIND | D12: KETAN L VORA | E12: SELL | F12: 28,080 | G12: 14.9 | H12: BSE
A13: 2020-04-28 | B13: 541627 | C13: HITECHWIND | D13: VEENA KANTILAL CHAWALLA | E13: BUY | F13: 25,900 | G13: 14.89 | H13: BSE
A14: 2020-04-28 | B14: ASIANHOTNR | C14: Asian Hotels (North) Ltd | D14: SATYA PRAKASH BAGLA | E14: BUY | F14: 175,511 | G14: 67.65 | H14: NSE
A15: 2020-04-28 | B15: EROSMEDIA | C15: Eros Intl Media Ltd | D15: ALPHA LEON ENTERPRISES LLP | E15: BUY | F15: 550,001 | G15: 19.61 | H15: NSE
A16: 2020-04-28 | B16: EVERESTIND | C16: Everest Industries Limite | D16: N.K.SECURITIES | E16: BUY | F16: 125,596 | G16: 207.48 | H16: NSE
A17: 2020-04-28 | B17: JUSTDIAL | C17: Justdial Ltd. | D17: GRAVITON RESEARCH CAPITAL LLP | E17: BUY | F17: 424,003 | G17: 384.32 | H17: NSE
A18: 2020-04-28 | B18: JUSTDIAL | C18: Justdial Ltd. | D18: TOWER RESEARCH CAPITAL MARKETS INDIA PRIVATE LIMITED | E18: BUY | F18: 346,387 | G18: 382.59 | H18: NSE
A19: 2020-04-28 | B19: JUSTDIAL | C19: Justdial Ltd. | D19: SURJECTIVE RESEARCH CAPITAL LLP | E19: BUY | F19: 414,635 | G19: 384.32 | H19: NSE
A20: 2020-04-28 | B20: RBLBANK | C20: RBL Bank Limited | D20: GRAVITON RESEARCH CAPITAL LLP | E20: BUY | F20: 2,868,139 | G20: 124.01 | H20: NSE
A21: 2020-04-28 | B21: RBLBANK | C21: RBL Bank Limited | D21: TOWER RESEARCH CAPITAL MARKETS INDIA PRIVATE LIMITED | E21: BUY | F21: 4,849,792 | G21: 124.12 | H21: NSE
A22: 2020-04-28 | B22: RELCAPITAL | C22: Reliance Capital Limited | D22: AMIT KUMAR VAISH | E22: BUY | F22: 540,000 | G22: 7.55 | H22: NSE
A23: 2020-04-28 | B23: RELCAPITAL | C23: Reliance Capital Limited | D23: SWAPNIL MEHTA | E23: BUY | F23: 1,949,024 | G23: 7.55 | H23: NSE
A24: 2020-04-28 | B24: STARPAPER | C24: Star Paper Mills Ltd | D24: ALPESH VASANJI FURIYA | E24: BUY | F24: 90,000 | G24: 105.43 | H24: NSE
A25: 2020-04-28 | B25: ASIANHOTNR | C25: Asian Hotels (North) Ltd | D25: ASIAN AGRO INDUSTRIES LTD | E25: SELL | F25: 175,000 | G25: 67.65 | H25: NSE
A26: 2020-04-28 | B26: EROSMEDIA | C26: Eros Intl Media Ltd | D26: ALPHA LEON ENTERPRISES LLP | E26: SELL | F26: 351,301 | G26: 19.6 | H26: NSE
A27: 2020-04-28 | B27: EVERESTIND | C27: Everest Industries Limite | D27: N.K.SECURITIES | E27: SELL | F27: 125,596 | G27: 207.73 | H27: NSE
A28: 2020-04-28 | B28: JUSTDIAL | C28: Justdial Ltd. | D28: SURJECTIVE RESEARCH CAPITAL LLP | E28: SELL | F28: 412,323 | G28: 384.58 | H28: NSE
A29: 2020-04-28 | B29: JUSTDIAL | C29: Justdial Ltd. | D29: TOWER RESEARCH CAPITAL MARKETS INDIA PRIVATE LIMITED | E29: SELL | F29: 355,528 | G29: 383.87 | H29: NSE
A30: 2020-04-28 | B30: JUSTDIAL | C30: Justdial Ltd. | D30: GRAVITON RESEARCH CAPITAL LLP | E30: SELL | F30: 426,803 | G30: 384.6 | H30: NSE
A31: 2020-04-28 | B31: PANACEABIO | C31: Panacea Biotec Ltd. | D31: APOORVA REALTORS & FINVEST PRIVATE LIMITED | E31: SELL | F31: 320,136 | G31: 202.02 | H31: NSE
A32: 2020-04-28 | B32: RBLBANK | C32: RBL Bank Limited | D32: TOWER RESEARCH CAPITAL MARKETS INDIA PRIVATE LIMITED | E32: SELL | F32: 4,839,861 | G32: 124.19 | H32: NSE
A33: 2020-04-28 | B33: RBLBANK | C33: RBL Bank Limited | D33: GRAVITON RESEARCH CAPITAL LLP | E33: SELL | F33: 2,953,639 | G33: 123.82 | H33: NSE
A34: 2020-04-28 | B34: RELCAPITAL | C34: Reliance Capital Limited | D34: AMIT KUMAR VAISH | E34: SELL | F34: 1,938,830 | G34: 7.55 | H34: NSE

Sheet Call Tracker (Equity & F&O)
M5: Back To Main Page
A6: Retail Research Technical Calls & Fundamental Performance Report for the month of April-2020
M7: =Main!B10 -> 2020-04-29
B8: Positional Call
A9: Sr.no | B9: Date | D9: Company | E9: Rec | F9: Rec Price | G9: Stop Loss*** | H9: Call Closed At | I9: Target | J9: Remark | K9: Profit / Loss per Share | L9: Gain / Loss % | M9: Status | N9: Closed Date | O9: NSE Closed Price
A10: 1 | B10: 2020-03-27 | D10: ULTRACEMCO | E10: Buy | F10: 3175 | G10: 2940 | H10: 3295 | I10: 3400-3500 | J10: Profit of Rs.120/- | K10: =H10-F10 -> 120 | L10: =K10/F10 -> 3.78% | M10: Successful | N10: 2020-04-07 | R10: H
A11: 2 | B11: 2020-03-31 | D11: ZEEL | E11: Buy | F11: 125.5 | G11: 118 | H11: 132 | I11: 135-140 | J11: Profit of Rs.6.5/- | K11: =H11-F11 -> 6.5 | L11: =K11/F11 -> 5.18% | M11: Successful | N11: 2020-04-07 | R11: N
A12: 3 | B12: 2020-04-01 | D12: HCLTECH | E12: Buy | F12: 423.5 | G12: 395 | H12: 442 | I12: 460-480 | J12: Profit of Rs.18.5/- | K12: 18.5 | L12: 4.37% | M12: Successful | N12: 2020-04-07 | R12: H
A13: 4 | B13: 2020-04-01 | D13: ASIANPAINT | E13: Buy | F13: 1635 | G13: 1540 | H13: 1530 | I13: 1820-1850 | J13: Loss of Rs.105/- | K13: =H13-F13 -> -105 | L13: =K13/F13 -> -6.42% | M13: Unsuccessful | N13: 2020-04-03 | R13: N
A14: 5 | B14: 2020-04-01 | D14: APOLLOHOSP | E14: Buy | F14: 1105 | G14: 1040 | H14: 1145 | I14: 1250 | J14: Profit of Rs.40/- | K14: =H14-F14 -> 40 | L14: =K14/F14 -> 3.62% | M14: Successful | N14: 2020-04-03 | R14: H
A15: 6 | B15: 2020-04-03 | D15: PIDILITIND | E15: Buy | F15: 1255 | G15: 1170 | H15: 1302.5 | I15: 1400-1420 | J15: Profit of Rs.47.5/- | K15: 47.5 | L15: 3.78% | M15: Successful | N15: 2020-04-07 | R15: H
A16: 7 | B16: 2020-04-07 | D16: DABUR | E16: Buy | F16: 436 | G16: 410 | H16: 450 | I16: 470-480 | J16: Profit of Rs.14/- | K16: =H16-F16 -> 14 | L16: =K16/F16 -> 3.21% | M16: Successful | N16: 2020-04-07 | R16: N
A17: 8 | B17: 2020-04-07 | D17: MINDTREE | E17: Buy | F17: 740 | G17: 696 | H17: 777.5 | I17: 830-840 | J17: Profit of Rs.37.50/- | K17: 37.5 | L17: 5.07% | M17: Successful | N17: 2020-04-08 | R17: N
A18: 9 | B18: 2020-04-07 | D18: KEC | E18: Buy | F18: 158 | G18: 148 | H18: 167.5 | I18: 175-180 | J18: Profit of Rs.9.50/- | K18: =H18-F18 -> 9.5 | L18: =K18/F18 -> 6.01% | M18: Successful | N18: 2020-04-15 | R18: H
A19: 10 | B19: 2020-04-08 | D19: APOLLOHOSP | E19: Buy | F19: 1220 | G19: 1140 | H19: 1275 | I19: 1350-1380 | J19: Profit of Rs.55/- | K19: =H19-F19 -> 55 | L19: =K19/F19 -> 4.51% | M19: Successful | N19: 2020-04-08 | R19: N
A20: 11 | B20: 2020-04-08 | D20: NIITTECH | E20: Buy | F20: 1080 | G20: 1015 | H20: 1135 | I20: 1200-1250 | J20: Profit of Rs.55/- | K20: =H20-F20 -> 55 | L20: =K20/F20 -> 5.09% | M20: Successful | N20: 2020-04-08 | R20: H
A21: 12 | B21: 2020-04-08 | D21: TCS | E21: Buy | F21: 1730 | G21: 1640 | H21: 1795 | I21: 1850-1900 | J21: Profit of Rs.65/- | K21: =H21-F21 -> 65 | L21: 3.76% | M21: Successful | N21: 2020-04-15 | R21: N
A22: 13 | B22: 2020-04-08 | D22: UBL | E22: Buy | F22: 910 | G22: 860 | H22: 947.5 | I22: 990-1000 | J22: Profit of Rs.37.50/- | K22: =H22-F22 -> 37.5 | L22: =K22/F22 -> 4.12% | M22: Successful | N22: 2020-04-09 | R22: N
A23: 14 | B23: 2020-04-08 | D23: GODREJIND | E23: Buy | F23: 277-281 | G23: 258 | I23: 310-320 | J23: Open | R23: H
A24: 15 | B24: 2020-04-08 | D24: MINDTREE | E24: Buy | F24: 732.5 | G24: 689 | H24: 760 | I24: 830-840 | J24: Profit of Rs.27.50/- | K24: =H24-F24 -> 27.5 | L24: =K24/F24 -> 3.75% | M24: Successful | N24: 2020-04-15 | R24: N
A25: 16 | B25: 2020-04-09 | D25: RELIANCE | E25: Buy | F25: 1200 | G25: 1130 | H25: 1250 | I25: 1340-1360 | J25: Profit of Rs.50/- | K25: =H25-F25 -> 50 | L25: 4.17% | M25: Successful | N25: 2020-04-20 | R25: N
A26: 17 | B26: 2020-04-13 | D26: MINDTREE | E26: Buy | F26: 722.5 | G26: 682 | H26: 752.5 | I26: 820-830 | J26: Profit of Rs.30/- | K26: =H26-F26 -> 30 | L26: =K26/F26 -> 4.15% | M26: Successful | N26: 2020-04-15 | R26: N
A27: 18 | B27: 2020-04-13 | D27: HCLTECH | E27: Buy | F27: 457.5 | G27: 415 | H27: 476.5 | I27: 520-540 | J27: Profit of Rs.19/- | K27: =H27-F27 -> 19 | L27: =K27/F27 -> 4.15% | M27: Successful | N27: 2020-04-15 | R27: H
A28: 19 | B28: 2020-04-15 | D28: FINPIPE | E28: Buy | F28: 417.5 | G28: 390 | H28: 435 | I28: 460-480 | J28: Profit of Rs.17.5/- | K28: 17.5 | L28: 4.19% | M28: Successful | N28: 2020-04-20 | R28: H
A29: 20 | B29: 2020-04-15 | D29: ICICIPRULI | E29: Buy | F29: 332.5 | G29: 310 | H29: 350 | I29: 360-370 | J29: Profit of Rs.17.5/- | K29: =H29-F29 -> 17.5 | L29: =K29/F29 -> 5.26% | M29: Successful | N29: 2020-04-17 | R29: N
A30: 21 | B30: 2020-04-16 | D30: HCLTECH | E30: Buy | F30: 461 | G30: 435 | H30: 475.5 | I30: 500-520 | J30: Profit of Rs.14.5/- | K30: =H30-F30 -> 14.5 | L30: =K30/F30 -> 3.15% | M30: Successful | N30: 2020-04-23 | R30: H
A31: 22 | B31: 2020-04-16 | D31: JUBILANT | E31: Buy | F31: 346.5 | G31: 326 | H31: 369 | I31: 390 | J31: Profit of Rs.22.5/- | K31: =H31-F31 -> 22.5 | L31: =K31/F31 -> 6.49% | M31: Successful | N31: 2020-04-22 | R31: N
A32: 23 | B32: 2020-04-17 | D32: MCDOWELL-N | E32: Buy | F32: 544-550 | G32: 515 | I32: 600-620 | J32: Open | R32: H
A33: 24 | B33: 2020-04-17 | D33: COLPAL | E33: Buy | F33: 1380 | G33: 1294 | H33: 1432.5 | I33: 1500-1530 | J33: Profit of Rs.52.5/- | K33: =H33-F33 -> 52.5 | L33: =K33/F33 -> 3.80% | M33: Successful | N33: 2020-04-22 | R33: N
A34: 25 | B34: 2020-04-17 | D34: VOLTAS | E34: Buy | F34: 532.5 | G34: 500 | H34: 500 | I34: 580-590 | J34: Loss of Rs.32.5/- | K34: =H34-F34 -> -32.5 | L34: =K34/F34 -> -6.10% | M34: Unsuccessful | N34: 2020-04-21 | R34: N
A35: 26 | B35: 2020-04-17 | D35: SBIN | E35: Buy | F35: 189-191 | G35: 177 | I35: 210-215 | J35: Open | R35: H
A36: 27 | B36: 2020-04-20 | D36: UPL | E36: Buy | F36: 352.5 | G36: 330 | H36: 367 | I36: 390 | J36: Profit of Rs.14.5/- | K36: =H36-F36 -> 14.5 | L36: =K36/F36 -> 4.11% | M36: Successful | N36: 2020-04-28 | R36: N
A37: 28 | B37: 2020-04-21 | D37: BATAINDIA | E37: Buy | F37: 1165 | G37: 1085 | H37: 1202.5 | I37: 1300-1320 | J37: Profit of Rs.37.5/- | K37: =H37-F37 -> 37.5 | L37: =K37/F37 -> 3.22% | M37: Successful | N37: 2020-04-21 | R37: H
A38: 29 | B38: 2020-04-21 | D38: ASIANPAINT | E38: Buy | F38: 1725 | G38: 1630 | H38: 1797.5 | I38: 1850-1880 | J38: Profit of Rs.72.5/- | K38: =H38-F38 -> 72.5 | L38: 4.20% | M38: Successful | N38: 2020-04-22 | R38: N
A39: 30 | B39: 2020-04-22 | D39: CROMPTON | E39: Buy | F39: 221.5 | G39: 208 | H39: 230.5 | I39: 240-245 | J39: Profit of Rs.9/- | K39: =H39-F39 -> 9 | L39: =K39/F39 -> 4.06% | M39: Successful | N39: 2020-04-23 | R39: N
A40: 31 | B40: 2020-04-23 | D40: GNFC | E40: Buy | F40: 141 | G40: 131 | H40: 147 | I40: 160 | J40: Profit of Rs.6/- | K40: =H40-F40 -> 6 | L40: =K40/F40 -> 4.26% | M40: Successful | N40: 2020-04-27 | R40: N
A41: 32 | B41: 2020-04-23 | D41: BAJAJFINSERV | E41: Buy | F41: 4780 | G41: 4470 | H41: 4465 | I41: 5300-5400 | J41: Loss of Rs.315/- | K41: =H41-F41 -> -315 | L41: =K41/F41 -> -6.59% | M41: Unsuccessful | N41: 2020-04-24 | R41: H
A42: 33 | B42: 2020-04-23 | D42: AXISBANK | E42: Buy | F42: 431.5 | G42: 404 | H42: 406 | I42: 490 | J42: Loss of Rs.25.5/- | K42: =H42-F42 -> -25.5 | L42: =K42/F42 -> -5.91% | M42: Unsuccessful | N42: 2020-04-24 | R42: N
A43: 34 | B43: 2020-04-24 | D43: FINPIPE | E43: Buy | F43: 386-391 | G43: 365 | I43: 440-460 | J43: Open | R43: H
A44: 35 | B44: 2020-04-24 | D44: CROMPTON | E44: Buy | F44: 219-221 | G44: 206 | I44: 240-245 | J44: Open | R44: N
A45: 36 | B45: 2020-04-27 | D45: CADILAHC | E45: Buy | F45: 330 | G45: 313 | H45: 342 | I45: 355 | J45: Profit of Rs.12/- | K45: =H45-F45 -> 12 | L45: =K45/F45 -> 3.64% | M45: Successful | N45: 2020-04-27 | R45: N
A46: 37 | B46: 2020-04-27 | D46: VOLTAS | E46: Buy | F46: 487-490 | G46: 450.00 | I46: 550-570 | J46: Open | R46: H
A47: 38 | B47: 2020-04-27 | D47: PETRONET | E47: Buy | F47: 220-223 | G47: 208.00 | I47: 245-250 | J47: Open | R47: N
A48: 39 | B48: 2020-04-27 | D48: GNFC | E48: Buy | F48: 140 | G48: 130 | H48: 146.5 | I48: 160 | J48: Profit of Rs.6.5/- | K48: =H48-F48 -> 6.5 | L48: =K48/F48 -> 4.64% | M48: Successful | N48: 2020-04-28 | R48: N
A52: CLBS = Closing Basis ***
A53: Dividend adjusted <> | F53: Reinitiated $
A54: Part book {} | F54: Revised stoploss #
B56: Momentum Call
A57: Sr.no | B57: Date | D57: Company | E57: Rec | F57: Rec Price | G57: Stop Loss | H57: Call Closed At | I57: Target | J57: Remark | K57: Profit / Loss per Share/Lot | L57: Gain / Loss % | M57: Gain / Loss per Lot | N57: Lot | O57: Status | P57: Closed Date
A58: 1 | B58: 2020-04-01 | D58: HDFCBANK | E58: Buy | F58: 842.5 | G58: 805 | H58: 832.5 | I58: 890-900 | J58: Loss of Rs.10/- | K58: =H58-F58 -> -10 | L58: =K58/F58 -> -1.19% | O58: Unsuccessful | P58: 2020-04-01 | R58: N
A59: 2 | B59: 2020-04-01 | D59: ICICIBANK | E59: Buy | F59: 317.5 | G59: 308 | H59: 312 | I59: 325-330 | J59: Loss of Rs. 5.5/- | K59: =H59-F59 -> -5.5 | L59: =K59/F59 -> -1.73% | O59: Unsuccessful | P59: 2020-04-01 | R59: H
A60: 3 | B60: 2020-04-01 | D60: TATASTEEL | E60: Buy | F60: 259 | G60: 249 | H60: 262.5 | I60: 275-280 | J60: Profit of Rs.3.5/- | K60: =H60-F60 -> 3.5 | L60: =K60/F60 -> 1.35% | O60: Successful | P60: 2020-04-01 | R60: H
A61: 4 | B61: 2020-04-03 | D61: TATASTEEL | E61: Buy | F61: 257 | G61: 248 | H61: 265.5 | I61: 275-280 | J61: Profit of Rs.8.5/- | K61: =H61-F61 -> 8.5 | L61: =K61/F61 -> 3.31% | O61: Successful | P61: 2020-04-07 | R61: H
A62: 5 | B62: 2020-04-03 | D62: EXIDEIND | E62: Buy | F62: 129.5 | G62: 125 | H62: 132.25 | I62: 140 | J62: Profit of Rs.2.75/- | K62: =H62-F62 -> 2.75 | L62: =K62/F62 -> 2.12% | O62: Successful | P62: 2020-04-03 | R62: N
A63: 6 | B63: 2020-04-03 | D63: AMBUJACEM | E63: Sell | F63: 154.5 | G63: 158.5 | H63: 154.5 | I63: 146-144 | J63: Neutral | K63: =H63-F63 -> 0 | L63: =K63/F63 -> 0.00% | O63: Neutral | P63: 2020-04-07 | R63: H
A64: 7 | B64: 2020-04-07 | D64: HDFC | E64: Buy | F64: 1525 | G64: 1470 | H64: 1550 | I64: 1580-1600 | J64: Profit of Rs.25/- | K64: =H64-F64 -> 25 | L64: =K64/F64 -> 1.64% | O64: Successful | P64: 2020-04-07 | R64: H
A65: 8 | B65: 2020-04-07 | D65: MOIL | E65: Buy | F65: 105 | G65: 102 | H65: 107 | I65: 114 | J65: Profit of Rs.2/- | K65: 2 | L65: 1.90% | O65: Successful | P65: 2020-04-08 | R65: N
A66: 9 | B66: 2020-04-08 | D66: RELIANCE | E66: Buy | F66: 1177.5 | G66: 1140 | H66: 1225 | I66: 1240-1260 | J66: Profit of Rs.47.5/- | K66: =H66-F66 -> 47.5 | L66: =K66/F66 -> 4.03% | O66: Successful | P66: 2020-04-08 | R66: H
A67: 10 | B67: 2020-04-08 | D67: NESTLEIND | E67: Buy | F67: 16600 | G67: 16000 | H67: 17000 | I67: 17500-17600 | J67: Profit of Rs.400/- | K67: =H67-F67 -> 400 | L67: =K67/F67 -> 2.41% | O67: Successful | P67: 2020-04-08 | R67: H
A68: 11 | B68: 2020-04-08 | D68: BANDHANBANK | E68: Sell | F68: 196 | G68: 205 | H68: 189 | I68: 182-180 | J68: Profit of Rs.7/- | K68: =F68-H68 -> 7 | L68: 3.57% | O68: Successful | P68: 2020-04-08 | R68: H
A69: 12 | B69: 2020-04-08 | D69: BRITANNIA | E69: Buy | F69: 2775 | G69: 2670 | H69: 2845 | I69: 2950-3000 | J69: Profit of Rs.70/- | K69: =H69-F69 -> 70 | L69: 2.52% | O69: Successful | P69: 2020-04-09 | R69: H
A70: 13 | B70: 2020-04-09 | D70: ICICIPRULI | E70: Buy | F70: 336.5 | G70: 322 | H70: 343 | I70: 360-365 | J70: Profit of Rs.6.5/- | K70: 6.5 | L70: 1.93% | O70: Successful | P70: 2020-04-09 | R70: N
A71: 14 | B71: 2020-04-09 | D71: BRITANNIA | E71: Buy | F71: 2740 | G71: 2650 | H71: 2795 | I71: 2850-2900 | J71: Profit of Rs.55/- | K71: =H71-F71 -> 55 | L71: =K71/F71 -> 2.01% | O71: Successful | P71: 2020-04-09 | R71: H
A72: 15 | B72: 2020-04-09 | D72: DABUR | E72: Buy | F72: 487.5 | G72: 475 | H72: 499 | I72: 520 | J72: Profit of Rs.11.5/- | K72: 11.5 | L72: 2.36% | O72: Successful | P72: 2020-04-15 | R72: H
A73: 16 | B73: 2020-04-13 | D73: BRITANNIA | E73: Buy | F73: 2730 | G73: 2630 | H73: 2780 | I73: 2850-2880 | J73: Profit of Rs.50/- | K73: =H73-F73 -> 50 | L73: =K73/F73 -> 1.83% | O73: Successful | P73: 2020-04-13 | R73: H
A74: 17 | B74: 2020-04-13 | D74: BRITANNIA | E74: Buy | F74: 2727.5 | G74: 2630 | H74: 2790 | I74: 2850-2880 | J74: Profit of Rs.62.5/- | K74: 62.5 | L74: 2.29% | O74: Successful | P74: 2020-04-15 | R74: H
A75: 18 | B75: 2020-04-13 | D75: AMBUJACEM | E75: Sell | F75: 166 | G75: 173 | H75: 172 | I75: 158-155 | J75: Loss of Rs. 6/- | K75: =F75-H75 -> -6 | L75: -3.61% | O75: Unsuccessful | P75: 2020-04-15 | R75: H
A76: 19 | B76: 2020-04-13 | D76: MUTHOOTFIN | E76: Buy | F76: 742 | G76: 710 | H76: 750 | I76: 800 | J76: Profit of Rs.8/- | K76: =H76-F76 -> 8 | L76: =K76/F76 -> 1.08% | O76: Successful | P76: 2020-04-13 | R76: N
A77: 20 | B77: 2020-04-15 | D77: HINDUNILVR | E77: Sell | F77: 2405 | G77: 2465 | H77: 2465 | I77: 2300-2280 | J77: Loss of Rs. 60/- | K77: =F77-H77 -> -60 | L77: -2.49% | O77: Unsuccessful | P77: 2020-04-15 | R77: H
A78: 21 | B78: 2020-04-15 | D78: SBIN | E78: Buy | F78: 189.5 | G78: 183 | H78: 183 | I78: 200-205 | J78: Loss of Rs. 6.5/- | K78: =H78-F78 -> -6.5 | L78: =K78/F78 -> -3.43% | O78: Unsuccessful | P78: 2020-04-15 | R78: N
A79: 22 | B79: 2020-04-15 | D79: BAJAJ-AUTO | E79: Sell | F79: 2470 | G79: 2555 | H79: 2420 | I79: 2350-2300 | J79: Profit of Rs. 50/- | K79: =F79-H79 -> 50 | L79: 2.02% | O79: Successful | P79: 2020-04-15 | R79: H
A80: 23 | B80: 2020-04-15 | D80: HDFCBANK | E80: Buy | F80: 897 | G80: 875 | H80: 870 | I80: 940-950 | J80: Loss of Rs. 27/- | K80: =H80-F80 -> -27 | L80: =K80/F80 -> -3.01% | O80: Unsuccessful | P80: 2020-04-15 | R80: H
A81: 24 | B81: 2020-04-16 | D81: TORNTPHARM | E81: Buy | F81: 2300 | G81: 2220 | H81: 2350 | I81: 2400-2430 | J81: Profit of Rs.50/- | K81: 50 | L81: 2.17% | O81: Successful | P81: 2020-04-16 | R81: H
A82: 25 | B82: 2020-04-17 | D82: DABUR | E82: Buy | F82: 495 | G82: 475 | H82: 497 | I82: 525-530 | J82: Profit of Rs.2/- | K82: =H82-F82 -> 2 | L82: 0.40% | O82: Neutral | P82: 2020-04-20 | R82: H
A83: 26 | B83: 2020-04-20 | D83: ULTRACEMCO | E83: Buy | F83: 3510 | G83: 3380 | H83: 3375 | I83: 3650-3680 | J83: Loss of Rs. 135/- | K83: =H83-F83 -> -135 | L83: -3.85% | O83: Unsuccessful | P83: 2020-04-24 | R83: N
A84: 27 | B84: 2020-04-21 | D84: KANSAINER | E84: Buy | F84: 390 | G84: 378 | H84: 377.5 | I84: 420-430 | J84: Loss of Rs.12.5/- | K84: =H84-F84 -> -12.5 | L84: =K84/F84 -> -3.21% | O84: Unsuccessful | P84: 2020-04-22 | R84: H
A85: 28 | B85: 2020-04-21 | D85: ICICIPRULI | E85: Buy | F85: 361 | G85: 348 | H85: 368 | I85: 380-385 | J85: Profit of Rs.7/- | K85: =H85-F85 -> 7 | L85: =K85/F85 -> 1.94% | O85: Successful | P85: 2020-04-21 | R85: N
A86: 29 | B86: 2020-04-22 | D86: HDFC | E86: Buy | F86: 1670 | G86: 1598 | H86: 1615 | I86: 1750-1800 | J86: Loss of Rs. 55/- | K86: -55 | L86: -3.29% | O86: Unsuccessful | P86: 2020-04-24 | R86: H
A87: 30 | B87: 2020-04-27 | D87: BAJAJ-AUTO | E87: Sell | F87: 2495 | G87: 2575 | H87: 2440 | I87: 2400-2350 | J87: Profit of Rs. 55/- | K87: =F87-H87 -> 55 | L87: 2.20% | O87: Successful | P87: 2020-04-28 | R87: H
A88: 31 | B88: 2020-04-28 | D88: SUNPHARMA | E88: Sell | F88: 482 | G88: 501 | H88: 473 | I88: 450-440 | J88: Profit of Rs. 9/- | K88: =F88-H88 -> 9 | L88: =K88/F88 -> 1.87% | O88: Successful | P88: 2020-04-28 | R88: H
A89: 32 | B89: 2020-04-28 | D89: INDIGO | E89: Buy | F89: 891 | G89: 865 | H89: 910 | I89: 940-950 | J89: Profit of Rs.19/- | K89: =H89-F89 -> 19 | L89: 2.13% | O89: Successful | P89: 2020-04-28 | R89: H
A90: 33 | B90: 2020-04-28 | D90: COLPAL | E90: Buy | F90: 1490-1485 | G90: 1440 | I90: 1580-1600 | J90: Open | R90: N
A91: 34 | B91: 2020-04-28 | D91: HDFCBANK | E91: Buy | F91: 920-928 | G91: 895 | I91: 970-980 | J91: Open | R91: H
A92: 35 | B92: 2020-04-28 | D92: CADILAHC | E92: Buy | F92: 326-328 | G92: 315 | I92: 350 | J92: Open | R92: N
A94: CLBS = Closing Basis ***
A95: Dividend adjusted <> | F95: Reinitiated $
F96: Revised stoploss #
A98: Master Trade High Risk
A99: Sr.no | B99: Date | D99: Company | E99: Rec | F99: Rec Price | G99: Stop Loss | H99: Call Closed At | I99: Target | J99: Remark | K99: Profit / Loss per share | L99: Gain / Loss per Lot | M99: Lot | N99: Status | O99: Closed Date
A100: 1 | B100: 2020-04-09 | D100: NIFTY APR FUT | E100: Sell | F100: 9000 | G100: 9220 | H100: 8910 | I100: 8700-8600 | J100: Profit of Rs.75/- | K100: 90 | L100: =75*75 -> 5625 | M100: 75 | N100: Successful | O100: 2020-04-09 | R100: H
D101: 30-APRIL 8600 PE | E101: Sell | F101: 285 | H101: 300 | K101: -15 | R101: H
A102: 2 | B102: 2020-04-09 | D102: NIFTY MAR FUT | E102: Sell | F102: 9020 | G102: 9220 | H102: 9100 | I102: 8700-8600 | J102: Loss of Rs.40/- | K102: -80 | L102: =-(40*75) -> -3000 | M102: 75 | N102: Unsuccessful | O102: 2020-04-09 | R102: H
D103: NIFTY 26 MARCH 11500 CE | E103: Sell | F103: 272.5 | H103: 232.5 | K103: =F103-H103 -> 40 | R103: H
A104: 3 | B104: 2020-04-16 | D104: HINDALCO APR FUT | E104: Buy | F104: 118.25 | G104: 113 | H104: 121.5 | I104: 130 | J104: Profit of Rs.3/- | K104: 3.25 | L104: =3*M104 -> 10500 | M104: 3500 | N104: Successful | O104: 2020-04-16 | R104: A
D105: HINDALCO 125 CE APR | E105: Sell | F105: 6.5 | H105: 6.75 | K105: -0.25 | R105: A
A109: Master Trade Medium Risk
A110: Sr.no | B110: Date | D110: Company | E110: Rec | F110: Rec Price | G110: Stop Loss | H110: Call Closed At | I110: Target | J110: Remark | K110: Profit/ Loss per lot | L110: Gain / Loss per Lot | M110: Lot | N110: Status | O110: Closed Date
A111: 1 | B111: 2020-04-01 | D111: NIFTY 01-APR 8500 CE | E111: Buy | F111: 40 | H111: 0 | I111: 100 | J111: Loss of Rs.40/- | K111: =L111*M111 -> -3000 | L111: =H111-F111 -> -40 | M111: 75 | N111: Unsuccessful | O111: 2020-04-01 | R111: N
A112: 2 | B112: 2020-04-08 | D112: NIFTY 8900 PE 9-APR | E112: Buy | F112: 102.5 | H112: 132.5 | I112: 200-220 | J112: Profit of Rs.30/- | K112: 2250 | L112: 30 | M112: 75 | N112: Successful | O112: 2020-04-08 | R112: A
A113: 3 | B113: 2020-04-09 | D113: NIFTY 8900 PE 9-APR | E113: Buy | F113: 52.5 | H113: 72.5 | I113: 110 | J113: Profit of Rs.20/- | K113: 1500 | L113: 20 | M113: 75 | N113: Successful | O113: 2020-04-09 | R113: A
A114: 4 | B114: 2020-04-09 | D114: HEROMOTOCO 1800 PE APR | E114: Buy | F114: 62.5 | G114: 37 | H114: 72.5 | I114: 100-120 | J114: Profit of Rs.10/- | K114: 2000 | L114: 10 | M114: 200 | N114: Successful | O114: 2020-04-13 | R114: H
A115: 5 | B115: 2020-04-13 | D115: HEROMOTOCO 1800 PE APR | E115: Buy | F115: 62 | G115: 37 | H115: 71 | I115: 100-120 | J115: Profit of Rs.9/- | K115: 1800 | L115: 9 | M115: 200 | N115: Successful | O115: 2020-04-13 | R115: H
A116: 6 | B116: 2020-04-15 | D116: BAJAJ-AUTO 2200 PE APR | E116: Buy | F116: 44.5 | G116: 24 | H116: 53.5 | I116: 70-80 | J116: Profit of Rs.9/- | K116: 2250 | L116: 9 | M116: 250 | N116: Successful | O116: 2020-04-15 | R116: H
A117: 7 | B117: 2020-04-17 | D117: DLF 125 PE APR | E117: Buy | F117: 3.75 | G117: 2 | H117: 4.5 | I117: 7.0-8.0 | J117: Profit of Rs.0.75/- | K117: 2475 | L117: 0.75 | M117: 3300 | N117: Successful | O117: 2020-04-17 | R117: H
A118: 8 | B118: 2020-04-17 | D118: KOTAKBANK 1220 CE APR | E118: Buy | F118: 36.5 | G118: 19 | H118: 44.5 | I118: 55-60 | J118: Profit of Rs.8/- | K118: =L118*M118 -> 3200 | L118: =H118-F118 -> 8 | M118: 400 | N118: Successful | O118: 2020-04-17 | R118: H
A119: 9 | B119: 2020-04-20 | D119: ZEEL 140 PE APR | E119: Buy | F119: 6.95 | G119: 4.5 | H119: 8.15 | I119: 12.0-14.0 | J119: Profit of Rs.1.2/- | K119: 2040 | L119: 1.2 | M119: 1700 | N119: Successful | O119: 2020-04-20 | R119: H
A120: 10 | B120: 2020-04-22 | D120: TCS 1800 CE APR | E120: Buy | F120: 27.5 | G120: 9 | H120: 35.5 | I120: 60-70 | J120: Profit of Rs.8/- | K120: =L120*M120 -> 2000 | L120: =H120-F120 -> 8 | M120: 250 | N120: Successful | O120: 2020-04-22 | R120: H
A121: 11 | B121: 2020-04-22 | D121: BAJAJ-AUTO 2300 PE APR | E121: Buy | F121: 42.5 | G121: 24 | H121: 25 | I121: 70-75 | J121: Loss of Rs.17.5/- | K121: -4375 | L121: -17.5 | M121: 250 | N121: Unsuccessful | O121: 2020-04-23 | R121: H
A122: 12 | B122: 2020-04-22 | D122: NIFTY 8900 PE 23-APR | E122: Buy | F122: 62.5 | G122: 30 | H122: 30 | I122: 150 | J122: Loss of Rs.32.5/- | K122: =L122*M122 -> -2437.5 | L122: =H122-F122 -> -32.5 | M122: 75 | N122: Unsuccessful | O122: 2020-04-22 | R122: N
A123: 13 | B123: 2020-04-23 | D123: DABUR 490 PE APR | E123: Buy | F123: 9 | G123: 5 | H123: 9.75 | I123: 15-17 | J123: Profit of Rs.0.75/- | K123: 937.5 | L123: 0.75 | M123: 1250 | N123: Successful | O123: 2020-04-23 | R123: H
A124: 14 | B124: 2020-04-27 | D124: BANKNIFTY 21000 CE 30-APR | E124: Buy | F124: 130 | H124: 146.5 | I124: 250 | J124: Profit of Rs.16.5/- | K124: 330 | L124: 16.5 | M124: 20 | N124: Successful | O124: 2020-04-28 | R124: H
A128: Techno -Funda (positional)
A129: Sr.no | B129: Date | D129: Company | E129: Rec | F129: Rec Price | G129: Stop Loss*** | H129: Call Closed At | I129: Target | J129: Remark | K129: Profit / Loss per Share | L129: Gain / Loss % | M129: Status | N129: Closed Date | O129: NSE Closed Price
A131: CLBS = Closing Basis *** | F131: Reinitiated $
A132: Dividend adjusted <> | F132: Revised stoploss #
B137: Investment Idea
A138: Sr.no | B138: Date | D138: Company | E138: Rec | F138: Rec Price | G138: Point of Review | H138: Close Rate | I138: Target | J138: Remark | K138: Profit / Loss per Share | L138: Gain / Loss % | M138: Status | N138: Closed Date
A139: 1 | B139: 2013-11-01 | D139: L&T Finance Holding | E139: Accu | F139: 82.00 | G139: - | H139: 100 | I139: 100.00 | J139: Target Achieved | K139: =H139-F139 -> 18.00 | L139: =K139/F139 -> 21.95% | M139: Successful | N139: 2016-10-14
A140: 2 | B140: 2014-06-04 | D140: Finolex Inds | E140: Buy | F140: 257.00 | G140: - | H140: 300 | I140: 300.00 | J140: Target Achieved | K140: 43.00 | L140: 16.73% | M140: Successful | N140: 2014-07-02
A141: 3 | B141: 2014-07-08 | D141: JK Cement | E141: Buy | F141: 393.00 | G141: - | H141: 468 | I141: 468.00 | J141: Target Achieved | K141: 75.00 | L141: 19.08% | M141: Successful | N141: 2014-08-12
A142: 4 | B142: 2014-08-06 | D142: Finolex Cables | E142: Buy | F142: 205.00 | G142: - | H142: 275 | I142: 250.00 | J142: Target Achieved | K142: 70.00 | L142: 34.15% | M142: Successful | N142: 2014-11-19
A143: 5 | B143: 2014-09-04 | D143: Exide Inds | E143: Buy | F143: 162.00 | G143: - | H143: 190 | I143: 190.00 | J143: Target Achieved | K143: 28.00 | L143: 17.28% | M143: Successful | N143: 2015-01-02
A144: 6 | B144: 2014-09-04 | D144: Deepak Nitrite | E144: Buy | F144: 75.00 | G144: - | H144: 91.5 | I144: 95-100 | J144: Profit of Rs.16.50/- | K144: 16.50 | L144: 22.00% | M144: Successful | N144: 2014-11-11
A145: 7 | B145: 2014-10-01 | D145: Mercks | E145: Buy | F145: 850.00 | G145: - | H145: 982.5 | I145: 1050.00 | J145: Profit of Rs.132.50/- | K145: 132.50 | L145: 15.59% | M145: Successful | N145: 2015-02-04
A146: 8 | B146: 2014-10-01 | D146: Grindwell Norton | E146: Buy | F146: 475.00 | G146: - | H146: 515 | I146: 600.00 | J146: Profit of Rs.40/- | K146: 40.00 | L146: 8.42% | M146: Successful | N146: 2014-10-27
A147: 9 | B147: 2014-10-01 | D147: Snowman Logistics | E147: Buy | F147: 86.00 | G147: - | H147: 99 | I147: 140.00 | J147: Profit of Rs.13.00/- | K147: 13.00 | L147: 15.12% | M147: Successful | N147: 2014-10-27
A148: 10 | B148: 2014-10-14 | D148: Birla Corp | E148: Buy | F148: 496.60 | G148: - | H148: 621 | I148: 580.00 | J148: Target Achieved | K148: 124.40 | L148: 25.05% | M148: Successful | N148: 2016-08-23
A149: 11 | B149: 2014-10-14 | D149: Ultratech Cem | E149: Buy | F149: 2481.90 | G149: - | H149: 2840 | I149: 2870.00 | J149: Profit of Rs.358.10/- | K149: 358.10 | L149: 14.43% | M149: Successful | N149: 2015-01-13
A150: 12 | B150: 2014-10-16 | D150: Sintex Inds | E150: Buy | F150: 84.50 | G150: - | H150: 93 | I150: 110.00 | J150: Profit of Rs.8.50/- | K150: 8.50 | L150: 10.06% | M150: Successful | N150: 2014-10-27
A151: 13 | B151: 2014-10-16 | D151: HSIL | E151: Buy | F151: 401.00 | G151: - | H151: 428 | I151: 450.00 | J151: Profit of Rs.27.00/- | K151: 27.00 | L151: 6.73% | M151: Successful | N151: 2015-01-16
A152: 14 | B152: 2014-10-16 | D152: Eveready Inds | E152: Buy | F152: 101.00 | G152: - | H152: 112 | I152: 120.00 | J152: Profit of Rs.11.00/- | K152: 11.00 | L152: 10.89% | M152: Successful | N152: 2014-10-27
A153: 15 | B153: 2014-11-11 | D153: Pennar Inds | E153: Buy | F153: 59.00 | G153: - | H153: 76 | I153: 76.00 | J153: Target Achieved | K153: 17.00 | L153: 28.81% | M153: Successful | N153: 2017-10-24
A154: 16 | B154: 2014-11-11 | D154: Snowman Logistics | E154: Buy | F154: 99.00 | G154: - | H154: 120 | I154: 120.00 | J154: Profit of Rs.21/- | K154: 21.00 | L154: 21.21% | M154: Successful | N154: 2014-11-17
A155: 17 | B155: 2014-11-13 | D155: Dharamsi Morarji Chem | E155: Buy | F155: 22.00 | G155: - | H155: 33.55 | I155: 32.00 | J155: Profit of Rs 11.55/- | K155: 11.55 | L155: 52.50% | M155: Successful | N155: 2015-07-03
A156: 18 | B156: 2014-12-03 | D156: Tatachem | E156: Buy | F156: 440.00 | G156: - | H156: 520 | I156: 520.00 | J156: Profit of Rs 80.00/- | K156: 80.00 | L156: 18.18% | M156: Successful | N156: 2015-07-23
A157: 19 | B157: 2014-12-03 | D157: Advanta | E157: Buy | F157: 360.00 | G157: - | H157: 427 | I157: 425.00 | J157: Profit of Rs.67.00/- | K157: 67.00 | L157: 18.61% | M157: Successful | N157: 2015-02-23
A158: 20 | B158: 2015-01-08 | D158: GDL | E158: Buy | F158: 360.00 | G158: - | H158: 455 | I158: 420.00 | J158: Profit of Rs.95.00/- | K158: 95.00 | L158: 26.39% | M158: Successful | N158: 2015-01-20
A159: 21 | B159: 2015-01-08 | D159: NRB Bearing | E159: Buy | F159: 130.00 | H159: 175.5 | I159: 165.00 | J159: Profit of Rs 45.50/- | K159: 45.50 | L159: 35.00% | M159: Successful | N159: 2017-12-19
A160: 22 | B160: 2015-02-05 | D160: GSFC | E160: Accu | F160: 98.00 | H160: 120 | I160: 120.00 | J160: Target Achieved | K160: 22.00 | L160: 22.45% | M160: Successful | N160: 2017-01-18
A161: 23 | B161: 2015-02-05 | D161: Sundrmfast | E161: Accu | F161: 196.00 | H161: 262 | I161: 255.00 | J161: Target Achieved | K161: 66.00 | L161: 33.67% | M161: Successful | N161: 2016-08-17
A162: 24 | B162: 2015-03-04 | D162: GPPL | E162: Accu | F162: 235 | H162: 77.00 | I162: 280-285 | J162: Loss of Rs.158/- | K162: -158.00 | L162: -67.23% | M162: Unsuccessful | N162: 2019-02-26
A163: 25 | B163: 2015-03-04 | D163: ORIENTCEM | E163: Accu | F163: 185.00 | H163: 224 | I163: 220-225 | J163: Target Achieved | K163: 39.00 | L163: 21.08% | M163: Successful | N163: 2016-10-04
A164: 26 | B164: 2015-03-27 | D164: PFS | E164: Accu | F164: 49.5 | H164: 15.85 | I164: 67.00 | J164: Loss of Rs.33.65/- | K164: -33.65 | L164: -68% | M164: Unsuccessful | N164: 2019-06-11
A165: 27 | B165: 2015-03-30 | D165: Walchandnagar Ind Ltd | E165: Accu | F165: 183.50 | H165: 219 | I165: 218.00 | J165: Profit of Rs.35.50/- | K165: 35.50 | L165: 19.35% | M165: Successful | N165: 2015-04-09
A166: 28 | B166: 2015-04-20 | D166: Kalpataru Power Transmission Ltd | E166: Accu | F166: =(227+237)/2 -> 232.00 | H166: 298 | I166: 298.00 | J166: Target Achieved | K166: 66.00 | L166: 28.45% | M166: Successful | N166: 2017-03-29
A167: 29 | B167: 2015-05-04 | D167: Mastek Ltd | E167: Buy | F167: 385.00 | H167: =212.5+331 -> 543.5 | I167: 510.00 | J167: Profit of Rs 158.50/- | K167: 158.50 | L167: 41.17% | M167: Successful | N167: 2015-08-19
A168: 30 | B168: 2015-05-04 | D168: Suprajit Eng | E168: Buy | F168: 115.50 | H168: 146 | I168: 142.00 | J168: Profit of Rs 30.50/- | K168: 30.50 | L168: 26.41% | M168: Successful | N168: 2015-07-17
A169: 31 | B169: 2015-05-27 | D169: TCI | E169: Buy | F169: 237.50 | H169: 279.5 | I169: 278.00 | J169: Target Achieved | K169: 42.00 | L169: 17.68% | M169: Successful | N169: 2015-08-06
A170: 32 | B170: 2015-06-19 | D170: HSIL | E170: Accu | F170: 340.00 | H170: 448 | I170: 448.00 | J170: Target Achieved | K170: 108.00 | L170: 31.76% | M170: Successful | N170: 2017-10-10
A171: 33 | B171: 2015-07-06 | D171: Capital First | E171: Accu | F171: 390.00 | H171: 460 | I171: 460.00 | J171: Target Achieved | K171: =H171-F171 -> 70.00 | L171: =K171/F171 -> 17.95% | M171: Successful | N171: 2016-04-18
A172: 34 | B172: 2015-07-10 | D172: Dolphin OffShore | E172: Accu | F172: 122.5 | H172: 61.00 | I172: 172.00 | J172: Loss of Rs.61.50/- | K172: -61.50 | L172: -50.20% | M172: Unsuccessful | N172: 2018-08-21
A173: 35 | B173: 2015-08-03 | D173: Allcargo logistics | E173: Accu | F173: 297.50 | H173: 350 | I173: 360.00 | J173: Profit of Rs 52.50/- | K173: 52.50 | L173: 17.65% | M173: Successful | N173: 2015-08-16
A174: 36 | B174: 2015-08-03 | D174: Camline Fine | E174: Accu | F174: 115.50 | H174: 149 | I174: 140.00 | J174: Profit of Rs 33.50/- | K174: 33.50 | L174: 29.00% | M174: Successful | N174: 2017-01-05
A175: 37 | B175: 2015-09-04 | D175: TCI | E175: Accu | F175: 226.00 | H175: 292 | I175: 292.00 | J175: Target Achieved | K175: 66.00 | L175: 29.20% | M175: Successful | N175: 2015-10-09
A176: 38 | B176: 2015-09-07 | D176: Kalpataru Power Transmission Ltd | E176: Accu | F176: 232.50 | H176: 312.5 | I176: 310.00 | J176: Target Achieved | K176: 80.00 | L176: 34.41% | M176: Successful | N176: 2017-03-29
A177: 39 | B177: 2015-09-21 | D177: LLOYD ELECTRIC & ENG LTD | E177: Accu | F177: 196.50 | H177: 238 | I177: 238.00 | J177: Target Achieved | K177: 41.50 | L177: 21.12% | M177: Successful | N177: 2015-10-14
A178: 40 | B178: 2015-09-24 | D178: L&T Finance Holding | E178: Accu | F178: 65.00 | H178: 82 | I178: 82.00 | J178: Target Achieved | K178: 17.00 | L178: 26.15% | M178: Successful | N178: 2016-07-27
A179: 41 | B179: 2015-10-14 | D179: KEC International ltd | E179: Accu | F179: 144.00 | H179: 182.5 | I179: 181.00 | J179: Target Achieved | K179: 38.50 | L179: 26.74% | M179: Successful | N179: 2017-03-23
A180: 42 | B180: 2015-10-14 | D180: Gruh Finance | E180: Accu | F180: 264.00 | H180: 311 | I180: 311.00 | J180: Target Achieved | K180: 47.00 | L180: 17.80% | M180: Successful | N180: 2016-08-22
A181: 43 | B181: 2015-11-10 | D181: Pidilitind | E181: Buy | F181: 549.50 | H181: 630 | I181: 630.00 | J181: Target Achieved | K181: 80.50 | L181: 14.65% | M181: Successful | N181: 2016-02-19
A182: 44 | B182: 2015-12-04 | D182: Zensar Technology | E182: Accu | F182: 1027.50 | H182: 1315 | I182: 1250.00 | J182: Target Achieved | K182: 287.50 | L182: 27.98% | M182: Successful | N182: 2018-05-24
A183: 45 | B183: 2015-12-29 | D183: Vinati Organics Ltd | E183: Accu | F183: 465.00 | H183: 540 | I183: 540.00 | J183: Target Achieved | K183: 75.00 | L183: 16.13% | M183: Successful | N183: 2016-06-09
A184: 46 | B184: 2016-01-11 | D184: GSFC | E184: Buy | F184: 81.00 | H184: 110 | I184: 110.00 | J184: Target Achieved | K184: 29.00 | L184: 35.80% | M184: Successful | N184: 2017-01-10
A185: 47 | B185: 2016-01-13 | D185: SSWL | E185: Buy | F185: 417.50 | H185: 547 | I185: 535.00 | J185: Target Achieved | K185: 129.50 | L185: 31.02% | M185: Successful | N185: 2016-07-27
A186: 48 | B186: 2016-02-08 | D186: Persistent System Ltd | E186: Accu | F186: 650.00 | H186: 800 | I186: 800.00 | J186: Target Achieved | K186: 150.00 | L186: 23.08% | M186: Successful | N186: 2018-02-23
A187: 49 | B187: 2016-03-04 | D187: UPL | E187: Accu | F187: 437.50 | H187: 504.5 | I187: 522.00 | J187: Profit of Rs.67/- | K187: 67.00 | L187: 15.31% | M187: Successful | N187: 2016-04-20
A188: 50 | B188: 2016-03-09 | D188: Ashoka Buildcon Ltd | E188: Accu | F188: 189.50 | H188: 218 | I188: 218.00 | J188: Target Achieved | K188: 28.50 | L188: 15.04% | M188: Successful | N188: 2017-10-26
A189: 51 | B189: 2016-04-11 | D189: PTC INDIA FIN SERV LTD | E189: Accu | F189: 36.5 | H189: 15.85 | I189: 60.00 | J189: Loss of Rs.20.65/- | K189: -20.65 | L189: -56.58% | M189: Unsuccessful | N189: 2019-06-11
A190: 52 | B190: 2016-04-12 | D190: CAMLINFINE $ | E190: Accu | F190: 93.00 | H190: 149 | I190: 140.00 | J190: Profit of Rs 56/- | K190: 56.00 | L190: 60.22% | M190: Successful | N190: 2017-01-05
A191: 53 | B191: 2016-04-12 | D191: Greaves Cotton Ltd. | E191: Accu | F191: 130.00 | H191: 150 | I191: 150-155 | J191: Target Achieved | K191: 20.00 | L191: 15.38% | M191: Successful | N191: 2016-07-13
A192: 54 | B192: 2016-04-13 | D192: DHFL | E192: Accu | F192: 196.00 | H192: 299 | I192: 299.00 | J192: Target Achieved | K192: 103.00 | L192: 52.55% | M192: Successful | N192: 2016-09-07
A193: 55 | B193: 2016-04-13 | D193: Magma | E193: Accu | F193: 88.00 | H193: 103 | I193: 103.00 | J193: Target Achieved | K193: 15.00 | L193: 17.05% | M193: Successful | N193: 2016-06-09
A194: 56 | B194: 2016-05-02 | D194: KEC International ltd $ | E194: Accu | F194: 127.50 | H194: 148 | I194: 148-150 | J194: Target Achieved | K194: =H194-F194 -> 20.50 | L194: =K194/F194 -> 16.08% | M194: Successful | N194: 2016-07-13
A195: 57 | B195: 2016-05-03 | D195: Mindtree | E195: Accu | F195: 675.00 | H195: 815 | I195: 790-800 | J195: Target Achieved | K195: =H195-F195 -> 140.00 | L195: =K195/F195 -> 20.74% | M195: Successful | N195: 2018-02-23
A196: 58 | B196: 2016-06-01 | D196: Atulauto | E196: Accu | F196: 500 | H196: 232.50 | I196: 565-570 | J196: Loss of Rs.267.50 /- | K196: =H196-F196 -> -267.50 | L196: =K196/F196 -> -53.50% | M196: Unsuccessful | N196: 2019-09-27
A197: 59 | B197: 2016-06-06 | D197: TRITURBINE | E197: Accu | F197: 110.00 | H197: 126.5 | I197: 125.00 | J197: Profit of Rs.16.50/- | K197: =H197-F197 -> 16.50 | L197: =K197/F197 -> 15.00% | M197: Successful | N197: 2016-07-01
A198: 60 | B198: 2016-06-17 | D198: Pennar Industries Ltd | E198: Accu | F198: 44.00 | H198: 69.5 | I198: 69.50 | J198: Profit of Rs.25.50/- | K198: =H198-F198 -> 25.50 | L198: =K198/F198 -> 57.95% | M198: Successful | N198: 2017-08-30
A199: 61 | B199: 2016-06-28 | D199: EVEREADY | E199: Accu | F199: 262.50 | H199: 340 | I199: 333.00 | J199: Profit of Rs.77.50/- | K199: 77.50 | L199: 29.52% | M199: Successful | N199: 2017-10-09
A200: 62 | B200: 2016-06-28 | D200: FIEMIND | E200: Accu | F200: 840.00 | H200: 1230 | I200: 1230.00 | J200: Target Achieved | K200: 390.00 | L200: 46.43% | M200: Successful | N200: 2016-10-06
A201: 63 | B201: 2016-07-05 | D201: Bajaj Corp Ltd | E201: Accu | F201: 395 | H201: =(468.5+342.5)/2 -> 405.50 | I201: 510.00 | J201: Profit of Rs.10.50/- | K201: =H201-F201 -> 10.50 | L201: =K201/F201 -> 3% | M201: Neutral | N201: 2019-05-21
A202: 64 | B202: 2016-08-02 | D202: GPPL $ | E202: Buy | F202: =169.5-12.8 -> 156.7 | H202: 77.00 | I202: 198-200 | J202: Loss of Rs.79.7/- | K202: -79.70 | L202: -50.86% | M202: Unsuccessful | N202: 2019-02-26
A203: 65 | B203: 2016-08-04 | D203: WONDERLA HOLIDAYS LTD | E203: Accu | F203: 400 | H203: 305.00 | I203: 475.00 | J203: Loss of Rs.95/- | K203: -95.00 | L203: -23.75% | M203: Unsuccessful | N203: 2019-05-21
A204: 66 | B204: 2016-08-11 | D204: CAMLINFINE | E204: Accu | F204: 86.50 | H204: 130 | I204: 130.00 | J204: Profit of Rs.43.50/- | K204: 43.50 | L204: 50.29% | M204: Successful | N204: 2017-12-22
A205: 67 | B205: 2016-08-18 | D205: GRANULES | E205: Accu | F205: 133.5 | H205: 126.50 | I205: 178.00 | J205: Exit | K205: -7.00 | L205: -5.24% | M205: Unsuccessful | N205: 2016-09-02
A206: 68 | B206: 2016-08-31 | D206: VA TECH WABAG | E206: Accu | F206: 560.00 | H206: 725 | I206: 725.00 | J206: Target Achieved | K206: 165.00 | L206: 29.46% | M206: Successful | N206: 2016-03-27
A207: 69 | B207: 2016-09-01 | D207: SKIPPER LIMITED | E207: Accu | F207: 160.50 | H207: 210 | I207: 210.00 | J207: Target Achieved | K207: 49.50 | L207: 30.84% | M207: Successful | N207: 2017-05-16
A208: 70 | B208: 2016-10-03 | D208: IFBIND | E208: Accu | F208: 430.00 | H208: 596 | I208: 575.00 | J208: Profit of Rs.166/- | K208: 166.00 | L208: 38.60% | M208: Successful | N208: 2017-02-03
A209: 71 | B209: 2016-10-14 | D209: ASIANTILES | E209: Accu | F209: 280.00 | H209: 345 | I209: 345.00 | J209: Target Achieved | K209: =H209-F209 -> 65.00 | L209: =K209/F209 -> 23.21% | M209: Successful | N209: 2017-03-20
A210: 72 | B210: 2016-10-14 | D210: DEEPIND | E210: Accu | F210: 245.00 | H210: 325.5 | I210: 330.00 | J210: Profit of Rs.80.5/- | K210: 80.50 | L210: =K210/F210 -> 32.86% | M210: Successful | N210: 2017-02-03
A211: 73 | B211: 2016-10-17 | D211: DCBBANK | E211: Accu | F211: 125.00 | H211: 160 | I211: 160.00 | J211: Target Achieved | K211: 35.00 | L211: 28.00% | M211: Successful | N211: 2017-03-09
A212: 74 | B212: 2016-10-17 | D212: ORIENTREF | E212: Accu | F212: 114.00 | H212: 145 | I212: 145.00 | J212: Target Achieved | K212: 31.00 | L212: =K212/F212 -> 27.19% | M212: Successful | N212: 2017-05-04
A213: 75 | B213: 2016-10-17 | D213: GANECOS | E213: Accu | F213: 212.00 | H213: 280 | I213: 276.00 | J213: Profit of Rs.68/- | K213: 68.00 | L213: =K213/F213 -> 32.08% | M213: Successful | N213: 2017-05-03
A214: 76 | B214: 2016-11-04 | D214: NBCC | E214: Accu | F214: 155.00 | H214: 210 | I214: 210.00 | J214: Profit of Rs.55/- | K214: 55.00 | L214: =K214/F214 -> 35.48% | M214: Successful | N214: 2017-07-28
A215: 77 | B215: 2016-12-06 | D215: PRECAM | E215: Accu | F215: 150.5 | H215: 72.50 | I215: 174.00 | J215: Loss of Rs.78/- | K215: -78.00 | L215: -51.83% | M215: Unsuccessful | N215: 2018-08-21
A216: 78 | B216: 2016-12-08 | D216: INFRATEL | E216: Accu | F216: 380.00 | H216: 478 | I216: 468.00 | J216: Target Achieved | K216: =H216-F216 -> 98.00 | L216: =K216/F216 -> 25.79% | M216: Successful | N216: 2017-10-17
A217: 79 | B217: 2016-12-30 | D217: GODREJPROP | E217: Accu | F217: 305.00 | H217: 375 | I217: 375.00 | J217: Target Achieved | K217: =H217-F217 -> 70.00 | L217: =K217/F217 -> 22.95% | M217: Successful | N217: 2017-02-02
A218: 80 | B218: 2017-01-04 | D218: DEEPAKNTR | E218: Accu | F218: 99.50 | H218: 158 | I218: 158.00 | J218: Target Achieved | K218: =H218-F218 -> 58.50 | L218: =K218/F218 -> 58.79% | M218: Successful | N218: 2017-06-12
A219: 81 | B219: 2017-01-04 | D219: DEEPAKNTR | E219: Accu | F219: 99.50 | H219: 158 | I219: 158.00 | J219: Target Achieved | K219: 58.50 | L219: 58.79% | M219: Successful | N219: 2017-06-12
A220: 82 | B220: 2017-02-20 | D220: RECLTD | E220: Accu | F220: 140.50 | H220: 220 | I220: 220.00 | J220: Target Achieved | K220: =H220-F220 -> 79.50 | L220: =K220/F220 -> 56.58% | M220: Successful | N220: 2017-05-09
A221: 83 | B221: 2017-02-20 | D221: SUBROS | E221: Accu | F221: 202.50 | H221: 234 | I221: 234.00 | J221: Target Achieved | K221: 31.50 | L221: 15.56% | M221: Successful | N221: 2017-04-11
... 70 more rows

Sheet Sheet2 (hidden)
A1: SYMBOL | B1: SERIES | C1: OPEN | D1: HIGH | E1: LOW | F1: CLOSE | G1: LAST | H1: PREVCLOSE | I1: TOTTRDQTY | J1: TOTTRDVAL | K1: TIMESTAMP | L1: TOTALTRADES | M1: ISIN | N1: ISIN
A2: 20MICRONS | B2: EQ | C2: 27.9 | D2: 29 | E2: 25.9 | F2: 26.2 | G2: 25.9 | H2: 27.5 | I2: 80527 | J2: 2193820.55 | K2: 2020-04-08 | L2: 1099 | M2: INE144J01027
A3: 21STCENMGM | B3: EQ | C3: 10.15 | D3: 10.5 | E3: 10.1 | F3: 10.4 | G3: 10.5 | H3: 10.3 | I3: 3205 | J3: 32728.25 | K3: 2020-04-08 | L3: 28 | M3: INE253B01015
A4: 3IINFOTECH | B4: EQ | C4: 1.35 | D4: 1.35 | E4: 1.2 | F4: 1.25 | G4: 1.25 | H4: 1.35 | I4: 2793301 | J4: 3578364.95 | K4: 2020-04-08 | L4: 46535 | M4: INE748C01020
A5: 3MINDIA | B5: EQ | C5: 18950 | D5: 19170 | E5: 18155.05 | F5: 18318.2 | G5: 18270 | H5: 18755.7 | I5: 9926 | J5: 183605811.2 | K5: 2020-04-08 | L5: 4453 | M5: INE470A01017
A6: 3PLAND | B6: EQ | C6: 3.7 | D6: 3.85 | E6: 3.7 | F6: 3.85 | G6: 3.85 | H6: 3.7 | I6: 406 | J6: 1557.85 | K6: 2020-04-08 | L6: 9 | M6: INE105C01023
A7: 5PAISA | B7: EQ | C7: 119.95 | D7: 134 | E7: 115 | F7: 123.35 | G7: 120.5 | H7: 116.4 | I7: 6500 | J7: 793277.05 | K7: 2020-04-08 | L7: 265 | M7: INE618L01018
A8: 63MOONS | B8: EQ | C8: 50.7 | D8: 55.45 | E8: 50.7 | F8: 53.7 | G8: 53.55 | H8: 50.7 | I8: 72221 | J8: 3890984.7 | K8: 2020-04-08 | L8: 3078 | M8: INE111B01023
A9: A2ZINFRA | B9: EQ | C9: 3.15 | D9: 3.25 | E9: 3.1 | F9: 3.15 | G9: 3.15 | H9: 3.15 | I9: 116011 | J9: 367778.85 | K9: 2020-04-08 | L9: 227 | M9: INE619I01012
A10: AARTIDRUGS | B10: EQ | C10: 627 | D10: 669.3 | E10: 605 | F10: 631.6 | G10: 625 | H10: 607.85 | I10: 75970 | J10: 48223549.15 | K10: 2020-04-08 | L10: 5720 | M10: INE767A01016
A11: AARTIIND | B11: EQ | C11: 839.95 | D11: 909.8 | E11: 818 | F11: 854.9 | G11: 864 | H11: 830.7 | I11: 477805 | J11: 419092386.9 | K11: 2020-04-08 | L11: 50045 | M11: INE769A01020
A12: AARVEEDEN | B12: EQ | C12: 8.95 | D12: 9.25 | E12: 7.85 | F12: 8.35 | G12: 8.45 | H12: 8.1 | I12: 9251 | J12: 77100.1 | K12: 2020-04-08 | L12: 94 | M12: INE273D01019
A13: AAVAS | B13: EQ | C13: 1101 | D13: 1183 | E13: 1101 | F13: 1135.2 | G13: 1137 | H13: 1142.35 | I13: 24179 | J13: 28073100.85 | K13: 2020-04-08 | L13: 3631 | M13: INE216P01012
A14: ABAN | B14: EQ | C14: 15.7 | D14: 16.2 | E14: 15.7 | F14: 16.2 | G14: 16.2 | H14: 15.45 | I14: 37609 | J14: 608439.6 | K14: 2020-04-08 | L14: 288 | M14: INE421A01028
A15: ABB | B15: EQ | C15: 935 | D15: 965 | E15: 910 | F15: 930.7 | G15: 928 | H15: 931.35 | I15: 87757 | J15: 82358527.9 | K15: 2020-04-08 | L15: 4699 | M15: INE117A01022
A16: ABBOTINDIA | B16: EQ | C16: 16799.45 | D16: 18250 | E16: 16750 | F16: 17481.1 | G16: 17488 | H16: 16699.7 | I16: 57991 | J16: 1023745502 | K16: 2020-04-08 | L16: 21022 | M16: INE358A01014
A17: ABCAPITAL | B17: EQ | C17: 45 | D17: 47.9 | E17: 44.25 | F17: 45.6 | G17: 45.7 | H17: 45.1 | I17: 1253267 | J17: 57952493.6 | K17: 2020-04-08 | L17: 7317 | M17: INE674K01013
A18: ABFRL | B18: EQ | C18: 148 | D18: 152.8 | E18: 146.75 | F18: 149 | G18: 148 | H18: 149.85 | I18: 416099 | J18: 62371769.1 | K18: 2020-04-08 | L18: 10148 | M18: INE647O01011
A19: ABSLNN50ET | B19: EQ | C19: 244 | D19: 248 | E19: 210 | F19: 235 | G19: 235 | H19: 244 | I19: 56 | J19: 12779.4 | K19: 2020-04-08 | L19: 13 | M19: INF209KB1B87
A20: ACC | B20: EQ | C20: 1000 | D20: 1029.9 | E20: 941.25 | F20: 956.05 | G20: 958 | H20: 1009.95 | I20: 2153627 | J20: 2101320389 | K20: 2020-04-08 | L20: 79728 | M20: INE012A01025
A21: ACCELYA | B21: EQ | C21: 874.3 | D21: 886 | E21: 862 | F21: 880.45 | G21: 879.95 | H21: 874.3 | I21: 10865 | J21: 9557704.55 | K21: 2020-04-08 | L21: 923 | M21: INE793A01012
A22: ACE | B22: EQ | C22: 32.75 | D22: 35.2 | E22: 32.55 | F22: 33.25 | G22: 33.35 | H22: 32.95 | I22: 244708 | J22: 8296578.4 | K22: 2020-04-08 | L22: 2925 | M22: INE731H01025
A23: ADANIENT | B23: EQ | C23: 136.85 | D23: 147.15 | E23: 134.9 | F23: 138.1 | G23: 137.5 | H23: 138.15 | I23: 3237290 | J23: 456492273.1 | K23: 2020-04-08 | L23: 23696 | M23: INE423A01024
A24: ADANIGAS | B24: EQ | C24: 93.9 | D24: 96.35 | E24: 90.5 | F24: 90.8 | G24: 90.65 | H24: 94 | I24: 1888606 | J24: 176837924.4 | K24: 2020-04-08 | L24: 14517 | M24: INE399L01023
A25: ADANIGREEN | B25: EQ | C25: 166.85 | D25: 166.85 | E25: 162 | F25: 166.45 | G25: 166.85 | H25: 158.95 | I25: 702014 | J25: 116248737 | K25: 2020-04-08 | L25: 10187 | M25: INE364U01010
A26: ADANIPORTS | B26: EQ | C26: 248 | D26: 255.85 | E26: 242.75 | F26: 250.85 | G26: 249.7 | H26: 248.1 | I26: 6897883 | J26: 1724830525 | K26: 2020-04-08 | L26: 81499 | M26: INE742F01042
A27: ADANIPOWER | B27: EQ | C27: 28.65 | D27: 31.15 | E27: 27.5 | F27: 28.95 | G27: 28.85 | H27: 28.8 | I27: 12308064 | J27: 361987996.9 | K27: 2020-04-08 | L27: 23153 | M27: INE814H01011
A28: ADANITRANS | B28: EQ | C28: 196.65 | D28: 202 | E28: 190 | F28: 193.65 | G28: 193.5 | H28: 198.3 | I28: 306320 | J28: 59783940.3 | K28: 2020-04-08 | L28: 4236 | M28: INE931S01010
A29: ADFFOODS | B29: EQ | C29: 187.85 | D29: 192.25 | E29: 184 | F29: 187.7 | G29: 187.3 | H29: 183.1 | I29: 22107 | J29: 4185556.05 | K29: 2020-04-08 | L29: 773 | M29: INE982B01019
A30: ADHUNIKIND | B30: EQ | C30: 13.3 | D30: 13.3 | E30: 13.3 | F30: 13.3 | G30: 13.3 | H30: 12.7 | I30: 5518 | J30: 73389.4 | K30: 2020-04-08 | L30: 21 | M30: INE452L01012
A31: ADLABS | B31: EQ | C31: 2.75 | D31: 2.85 | E31: 2.75 | F31: 2.85 | G31: 2.85 | H31: 2.75 | I31: 19360 | J31: 54965.35 | K31: 2020-04-08 | L31: 72 | M31: INE172N01012
A32: ADORWELD | B32: EQ | C32: 195.7 | D32: 201.9 | E32: 193.95 | F32: 195.1 | G32: 194.45 | H32: 196.75 | I32: 1438 | J32: 283768.75 | K32: 2020-04-08 | L32: 94 | M32: INE045A01017
A33: ADROITINFO | B33: EQ | C33: 5.5 | D33: 5.7 | E33: 5.45 | F33: 5.7 | G33: 5.7 | H33: 5.7 | I33: 691 | J33: 3857 | K33: 2020-04-08 | L33: 25 | M33: INE737B01033
A34: ADSL | B34: EQ | C34: 13.05 | D34: 13.2 | E34: 12.4 | F34: 12.5 | G34: 12.45 | H34: 12.7 | I34: 16203 | J34: 205559.25 | K34: 2020-04-08 | L34: 143 | M34: INE102I01027
A35: ADVANIHOTR | B35: EQ | C35: 30.1 | D35: 33 | E35: 30.1 | F35: 31.8 | G35: 31.5 | H35: 30.65 | I35: 5340 | J35: 169948.95 | K35: 2020-04-08 | L35: 193 | M35: INE199C01026
A36: ADVENZYMES | B36: EQ | C36: 140.2 | D36: 146.55 | E36: 137.95 | F36: 139.2 | G36: 139.75 | H36: 136.55 | I36: 77441 | J36: 11046136.15 | K36: 2020-04-08 | L36: 1990 | M36: INE837H01020
A37: AEGISCHEM | B37: EQ | C37: 150 | D37: 158.5 | E37: 147.1 | F37: 156.35 | G37: 156.05 | H37: 144.1 | I37: 175470 | J37: 27041093.9 | K37: 2020-04-08 | L37: 4268 | M37: INE208C01025
A38: AFFLE | B38: BE | C38: 1050 | D38: 1053.45 | E38: 1030 | F38: 1053.45 | G38: 1053.45 | H38: 1003.3 | I38: 8191 | J38: 8619737.5 | K38: 2020-04-08 | L38: 470 | M38: INE00WC01019
A39: AGARIND | B39: EQ | C39: 49.8 | D39: 52.85 | E39: 49.05 | F39: 52.25 | G39: 52.5 | H39: 49.95 | I39: 7826 | J39: 404450.25 | K39: 2020-04-08 | L39: 207 | M39: INE204E01012
A40: AGCNET | B40: BE | C40: 224.35 | D40: 235.55 | E40: 213.25 | F40: 234.7 | G40: 235.55 | H40: 224.35 | I40: 2524 | J40: 573063 | K40: 2020-04-08 | L40: 70 | M40: INE676A01019
A41: AGRITECH | B41: EQ | C41: 23.95 | D41: 23.95 | E41: 23.95 | F41: 23.95 | G41: 23.95 | H41: 22.85 | I41: 504 | J41: 12070.8 | K41: 2020-04-08 | L41: 18 | M41: INE449G01018
A42: AGROPHOS | B42: EQ | C42: 5.7 | D42: 5.7 | E42: 5.2 | F42: 5.7 | G42: 5.7 | H42: 5.45 | I42: 40596 | J42: 227201.55 | K42: 2020-04-08 | L42: 340 | M42: INE740V01019
A43: AHLEAST | B43: EQ | C43: 133.15 | D43: 141.85 | E43: 128.15 | F43: 131.55 | G43: 128.35 | H43: 131.5 | I43: 3303 | J43: 439718.1 | K43: 2020-04-08 | L43: 350 | M43: INE926K01017
A44: AHLUCONT | B44: EQ | C44: 145.95 | D44: 148 | E44: 136 | F44: 146.3 | G44: 148 | H44: 144.1 | I44: 153910 | J44: 21077811.2 | K44: 2020-04-08 | L44: 995 | M44: INE758C01029
A45: AHLWEST | B45: EQ | C45: 289.9 | D45: 289.9 | E45: 270.95 | F45: 275 | G45: 275 | H45: 277 | I45: 238 | J45: 67030 | K45: 2020-04-08 | L45: 91 | M45: INE915K01010
A46: AIAENG | B46: EQ | C46: 1259.45 | D46: 1291 | E46: 1229 | F46: 1255.85 | G46: 1268 | H46: 1249.9 | I46: 73842 | J46: 92756824.05 | K46: 2020-04-08 | L46: 10503 | M46: INE212H01026
A47: AIONJSW | B47: EQ | C47: 10.9 | D47: 11.1 | E47: 10.2 | F47: 11.1 | G47: 11.1 | H47: 10.6 | I47: 90347 | J47: 996144.95 | K47: 2020-04-08 | L47: 180 | M47: INE743C01021
A48: AIRAN | B48: EQ | C48: 9.8 | D48: 10.3 | E48: 9.75 | F48: 9.8 | G48: 9.75 | H48: 9.85 | I48: 1826 | J48: 18127.1 | K48: 2020-04-08 | L48: 25 | M48: INE645W01026
A49: AJANTPHARM | B49: EQ | C49: 1325.75 | D49: 1450 | E49: 1325 | F49: 1367.5 | G49: 1363 | H49: 1340.2 | I49: 166582 | J49: 233126032.5 | K49: 2020-04-08 | L49: 8748 | M49: INE031B01049
A50: AJMERA | B50: EQ | C50: 64.95 | D50: 70.5 | E50: 64.6 | F50: 68.4 | G50: 69.9 | H50: 64.65 | I50: 31766 | J50: 2167947.5 | K50: 2020-04-08 | L50: 909 | M50: INE298G01027
A51: AKASH | B51: BE | C51: 90 | D51: 90 | E51: 90 | F51: 90 | G51: 90 | H51: 90.95 | I51: 500 | J51: 45000 | K51: 2020-04-08 | L51: 1 | M51: INE737W01013
A52: AKSHARCHEM | B52: EQ | C52: 174.75 | D52: 177.6 | E52: 165.3 | F52: 169.7 | G52: 167.15 | H52: 165.25 | I52: 3130 | J52: 531878.25 | K52: 2020-04-08 | L52: 293 | M52: INE542B01011
A53: AKSHOPTFBR | B53: EQ | C53: 3.6 | D53: 3.6 | E53: 3.6 | F53: 3.6 | G53: 3.6 | H53: 3.45 | I53: 27750 | J53: 99900 | K53: 2020-04-08 | L53: 45 | M53: INE523B01011
A54: AKZOINDIA | B54: EQ | C54: 2084.95 | D54: 2133 | E54: 2030 | F54: 2047.9 | G54: 2040 | H54: 2086.75 | I54: 12835 | J54: 26789836.95 | K54: 2020-04-08 | L54: 2242 | M54: INE133A01011
A55: ALANKIT | B55: EQ | C55: 12.9 | D55: 12.9 | E55: 12.9 | F55: 12.9 | G55: 12.9 | H55: 12.3 | I55: 14247 | J55: 183786.3 | K55: 2020-04-08 | L55: 75 | M55: INE914E01040
A56: ALBERTDAVD | B56: EQ | C56: 338.8 | D56: 364.75 | E56: 338.8 | F56: 353.15 | G56: 352 | H56: 341.15 | I56: 24334 | J56: 8579416.55 | K56: 2020-04-08 | L56: 1220 | M56: INE155C01010
A57: ALCHEM | B57: BE | C57: 1.4 | D57: 1.4 | E57: 1.4 | F57: 1.4 | G57: 1.4 | H57: 1.35 | I57: 8608 | J57: 12051.2 | K57: 2020-04-08 | L57: 18 | M57: INE964B01033
A58: ALEMBICLTD | B58: EQ | C58: 43.7 | D58: 48.05 | E58: 39.7 | F58: 45.05 | G58: 45.5 | H58: 42.15 | I58: 695128 | J58: 31779132.75 | K58: 2020-04-08 | L58: 6991 | M58: INE426A01027
A59: ALICON | B59: EQ | C59: 195.95 | D59: 196 | E59: 181.05 | F59: 184.75 | G59: 184 | H59: 189.25 | I59: 3909 | J59: 722322.5 | K59: 2020-04-08 | L59: 123 | M59: INE062D01024
A60: ALKALI | B60: EQ | C60: 29.95 | D60: 31.75 | E60: 29.65 | F60: 31.75 | G60: 31.75 | H60: 28.9 | I60: 9346 | J60: 289594.95 | K60: 2020-04-08 | L60: 349 | M60: INE773I01017
A61: ALKEM | B61: EQ | C61: 2360 | D61: 2736.5 | E61: 2326.2 | F61: 2671.15 | G61: 2639 | H61: 2324.05 | I61: 371259 | J61: 967330461.6 | K61: 2020-04-08 | L61: 44106 | M61: INE540L01014
A62: ALKYLAMINE | B62: EQ | C62: 1236.6 | D62: 1398 | E62: 1222.2 | F62: 1334.05 | G62: 1334 | H62: 1232.45 | I62: 41501 | J62: 55061848.25 | K62: 2020-04-08 | L62: 3832 | M62: INE150B01021
A63: ALLCARGO | B63: EQ | C63: 63.05 | D63: 65.85 | E63: 63 | F63: 65.7 | G63: 65.85 | H63: 59.9 | I63: 300794 | J63: 19569467.05 | K63: 2020-04-08 | L63: 3098 | M63: INE418H01029
A64: ALLSEC | B64: EQ | C64: 131.7 | D64: 131.9 | E64: 129.35 | F64: 131.9 | G64: 131.9 | H64: 125.65 | I64: 1335 | J64: 175836.2 | K64: 2020-04-08 | L64: 37 | M64: INE835G01018
A65: ALOKINDS | B65: EQ | C65: 4.7 | D65: 4.7 | E65: 4.7 | F65: 4.7 | G65: 4.7 | H65: 4.5 | I65: 1698707 | J65: 7983922.9 | K65: 2020-04-08 | L65: 397 | M65: INE270A01029
A66: ALPA | B66: EQ | C66: 18.55 | D66: 20.15 | E66: 17.8 | F66: 20.15 | G66: 20.15 | H66: 16.8 | I66: 131233 | J66: 2593665.9 | K66: 2020-04-08 | L66: 858 | M66: INE385I01010
A67: ALPHAGEO | B67: EQ | C67: 126 | D67: 137.5 | E67: 126 | F67: 134.45 | G67: 133.3 | H67: 129.7 | I67: 22258 | J67: 2986986.5 | K67: 2020-04-08 | L67: 783 | M67: INE137C01018
A68: ALPSINDUS | B68: EQ | C68: 0.65 | D68: 0.75 | E68: 0.65 | F68: 0.75 | G68: 0.7 | H68: 0.7 | I68: 25369 | J68: 18108.8 | K68: 2020-04-08 | L68: 33 | M68: INE093B01015
A69: AMARAJABAT | B69: EQ | C69: 501.1 | D69: 513.65 | E69: 488.45 | F69: 502.05 | G69: 504.9 | H69: 501.1 | I69: 755312 | J69: 378881689.9 | K69: 2020-04-08 | L69: 18162 | M69: INE885A01032
A70: AMBER | B70: EQ | C70: 1189.9 | D70: 1199 | E70: 1072 | F70: 1108.05 | G70: 1109.25 | H70: 1189.9 | I70: 93512 | J70: 105805912.2 | K70: 2020-04-08 | L70: 14252 | M70: INE371P01015
A71: AMBIKCO | B71: EQ | C71: 539.25 | D71: 559 | E71: 531.05 | F71: 545.2 | G71: 536.4 | H71: 537.25 | I71: 3988 | J71: 2168349.4 | K71: 2020-04-08 | L71: 406 | M71: INE540G01014
A72: AMBUJACEM | B72: EQ | C72: 158.5 | D72: 159.5 | E72: 148.2 | F72: 149.7 | G72: 149.55 | H72: 159 | I72: 10421438 | J72: 1597618498 | K72: 2020-04-08 | L72: 84074 | M72: INE079A01024
A73: AMDIND | B73: EQ | C73: 9.9 | D73: 10.5 | E73: 9.5 | F73: 9.8 | G73: 9.55 | H73: 10 | I73: 17757 | J73: 177659.15 | K73: 2020-04-08 | L73: 707 | M73: INE005I01014
A74: AMJLAND | B74: EQ | C74: 14.3 | D74: 14.95 | E74: 13.7 | F74: 14 | G74: 14 | H74: 14.25 | I74: 12523 | J74: 176065.3 | K74: 2020-04-08 | L74: 106 | M74: INE606A01024
A75: AMRUTANJAN | B75: EQ | C75: 326 | D75: 352 | E75: 320.1 | F75: 345.45 | G75: 344.3 | H75: 324 | I75: 278725 | J75: 95586275.35 | K75: 2020-04-08 | L75: 9075 | M75: INE098F01031
A76: ANANTRAJ | B76: EQ | C76: 19.55 | D76: 20.15 | E76: 18.6 | F76: 18.75 | G76: 18.8 | H76: 19.55 | I76: 184694 | J76: 3509270.8 | K76: 2020-04-08 | L76: 1012 | M76: INE242C01024
A77: ANDHRACEMT | B77: EQ | C77: 1.8 | D77: 1.9 | E77: 1.7 | F77: 1.85 | G77: 1.9 | H77: 1.75 | I77: 105618 | J77: 196578.05 | K77: 2020-04-08 | L77: 227 | M77: INE666E01012
A78: ANDHRAPAP | B78: EQ | C78: 148.55 | D78: 148.55 | E78: 147 | F78: 148.55 | G78: 148.55 | H78: 141.5 | I78: 2622 | J78: 389210.05 | K78: 2020-04-08 | L78: 70 | M78: INE435A01028
A79: ANDHRSUGAR | B79: EQ | C79: 206.95 | D79: 212 | E79: 195 | F79: 206.05 | G79: 205.85 | H79: 203.55 | I79: 35494 | J79: 7286675.25 | K79: 2020-04-08 | L79: 1328 | M79: INE715B01013
A80: ANIKINDS | B80: EQ | C80: 7.25 | D80: 7.25 | E80: 6.65 | F80: 6.8 | G80: 6.8 | H80: 6.95 | I80: 4994 | J80: 34701.65 | K80: 2020-04-08 | L80: 35 | M80: INE087B01017
A81: ANKITMETAL | B81: EQ | C81: 0.4 | D81: 0.45 | E81: 0.35 | F81: 0.45 | G81: 0.45 | H81: 0.4 | I81: 64810 | J81: 27213.05 | K81: 2020-04-08 | L81: 29 | M81: INE106I01010
A82: ANSALAPI | B82: EQ | C82: 3.65 | D82: 3.8 | E82: 3.65 | F82: 3.8 | G82: 3.8 | H82: 3.65 | I82: 3974 | J82: 15023.75 | K82: 2020-04-08 | L82: 28 | M82: INE436A01026
A83: ANSALHSG | B83: EQ | C83: 3 | D83: 3 | E83: 2.8 | F83: 2.9 | G83: 2.9 | H83: 2.9 | I83: 31510 | J83: 91846.6 | K83: 2020-04-08 | L83: 64 | M83: INE880B01015
A84: ANUP | B84: EQ | C84: 304.75 | D84: 323.7 | E84: 303.1 | F84: 313.2 | G84: 313.05 | H84: 312.75 | I84: 11786 | J84: 3732090.6 | K84: 2020-04-08 | L84: 460 | M84: INE294Z01018
A85: APARINDS | B85: EQ | C85: 296.95 | D85: 300.35 | E85: 290.6 | F85: 295.85 | G85: 295.5 | H85: 296.05 | I85: 6051 | J85: 1806443.45 | K85: 2020-04-08 | L85: 427 | M85: INE372A01015
A86: APCL | B86: EQ | C86: 102.4 | D86: 102.4 | E86: 95.2 | F86: 97.35 | G86: 97 | H86: 98.5 | I86: 3739 | J86: 362867.6 | K86: 2020-04-08 | L86: 79 | M86: INE071F01012
A87: APCOTEXIND | B87: EQ | C87: 87.55 | D87: 94.85 | E87: 86 | F87: 87.5 | G87: 86.1 | H87: 87.45 | I87: 13115 | J87: 1175575.25 | K87: 2020-04-08 | L87: 323 | M87: INE116A01032
A88: APEX | B88: EQ | C88: 190 | D88: 201.65 | E88: 185.1 | F88: 201.65 | G88: 201.65 | H88: 183.35 | I88: 141806 | J88: 27768799.35 | K88: 2020-04-08 | L88: 3293 | M88: INE346W01013
A89: APLAPOLLO | B89: EQ | C89: 1245 | D89: 1274 | E89: 1220 | F89: 1259.5 | G89: 1258 | H89: 1231.75 | I89: 21152 | J89: 26442272.1 | K89: 2020-04-08 | L89: 3032 | M89: INE702C01019
A90: APLLTD | B90: EQ | C90: 630 | D90: 702.65 | E90: 615.5 | F90: 640.85 | G90: 626 | H90: 610.2 | I90: 540272 | J90: 353935242.1 | K90: 2020-04-08 | L90: 30323 | M90: INE901L01018
A91: APOLLO | B91: EQ | C91: 45.5 | D91: 56 | E91: 45.25 | F91: 54.3 | G91: 53.55 | H91: 46.7 | I91: 68951 | J91: 3631629.4 | K91: 2020-04-08 | L91: 1694 | M91: INE713T01010
A92: APOLLOHOSP | B92: EQ | C92: 1225.9 | D92: 1338.4 | E92: 1211 | F92: 1263.95 | G92: 1261 | H92: 1225.95 | I92: 2070270 | J92: 2654141027 | K92: 2020-04-08 | L92: 156926 | M92: INE437A01024
A93: APOLLOPIPE | B93: EQ | C93: 279.5 | D93: 304 | E93: 262.95 | F93: 281.3 | G93: 281 | H93: 280.1 | I93: 12940 | J93: 3607793.25 | K93: 2020-04-08 | L93: 543 | M93: INE126J01016
A94: APOLLOTYRE | B94: EQ | C94: 83.5 | D94: 87.15 | E94: 82 | F94: 83.4 | G94: 83.15 | H94: 83.5 | I94: 2950752 | J94: 248872037.1 | K94: 2020-04-08 | L94: 19408 | M94: INE438A01022
A95: APOLSINHOT | B95: EQ | C95: 460.35 | D95: 460.4 | E95: 421.1 | F95: 439.8 | G95: 436 | H95: 438.6 | I95: 694 | J95: 306874.65 | K95: 2020-04-08 | L95: 84 | M95: INE451F01024
A96: APTECHT | B96: EQ | C96: 85.3 | D96: 87.7 | E96: 83.55 | F96: 84.6 | G96: 84.3 | H96: 85.3 | I96: 106721 | J96: 9133416.7 | K96: 2020-04-08 | L96: 2385 | M96: INE266F01018
A97: ARCHIDPLY | B97: EQ | C97: 16.55 | D97: 17 | E97: 16.45 | F97: 16.85 | G97: 16.95 | H97: 16.75 | I97: 4083 | J97: 68300.2 | K97: 2020-04-08 | L97: 63 | M97: INE877I01016
A98: ARCHIES | B98: EQ | C98: 9.4 | D98: 9.5 | E98: 9 | F98: 9.05 | G98: 9.15 | H98: 9.45 | I98: 24343 | J98: 224667.6 | K98: 2020-04-08 | L98: 150 | M98: INE731A01020
A99: ARCOTECH | B99: EQ | C99: 0.9 | D99: 0.95 | E99: 0.85 | F99: 0.9 | G99: 0.9 | H99: 0.9 | I99: 51482 | J99: 47500.05 | K99: 2020-04-08 | L99: 77 | M99: INE574I01035
A100: ARENTERP | B100: EQ | C100: 12.65 | D100: 12.65 | E100: 12.05 | F100: 12.05 | G100: 12.05 | H100: 12.65 | I100: 63 | J100: 765.15 | K100: 2020-04-08 | L100: 4 | M100: INE610C01014
A101: ARIES | B101: EQ | C101: 44.4 | D101: 47.6 | E101: 42.65 | F101: 43.6 | G101: 44 | H101: 44.4 | I101: 50875 | J101: 2250478.25 | K101: 2020-04-08 | L101: 1080 | M101: INE298I01015
A102: ARIHANT | B102: EQ | C102: 12.05 | D102: 12.55 | E102: 11.6 | F102: 12.15 | G102: 12.5 | H102: 12.05 | I102: 964 | J102: 11418.15 | K102: 2020-04-08 | L102: 27 | M102: INE413D01011
A103: ARIHANTSUP | B103: EQ | C103: 21.4 | D103: 21.45 | E103: 19.45 | F103: 19.5 | G103: 21 | H103: 20.45 | I103: 4362 | J103: 85414.05 | K103: 2020-04-08 | L103: 80 | M103: INE643K01018
A104: ARMANFIN | B104: EQ | C104: 340 | D104: 373.2 | E104: 337.7 | F104: 373.05 | G104: 373.2 | H104: 355.45 | I104: 50867 | J104: 18465582.65 | K104: 2020-04-08 | L104: 911 | M104: INE109C01017
A105: AROGRANITE | B105: EQ | C105: 21.95 | D105: 24.5 | E105: 20.85 | F105: 24.2 | G105: 24.5 | H105: 22.35 | I105: 26052 | J105: 602565.3 | K105: 2020-04-08 | L105: 183 | M105: INE210C01013
A106: ARROWGREEN | B106: BE | C106: 33.55 | D106: 35 | E106: 33.45 | F106: 33.45 | G106: 33.45 | H106: 33.85 | I106: 5735 | J106: 195198.5 | K106: 2020-04-08 | L106: 32 | M106: INE570D01018
A107: ARSHIYA | B107: EQ | C107: 7.1 | D107: 7.6 | E107: 7.1 | F107: 7.6 | G107: 7.6 | H107: 7.25 | I107: 23178 | J107: 175819.45 | K107: 2020-04-08 | L107: 63 | M107: INE968D01022
A108: ARSSINFRA | B108: EQ | C108: 11.25 | D108: 12.3 | E108: 10.9 | F108: 11.8 | G108: 11.85 | H108: 11.15 | I108: 16388 | J108: 189874.85 | K108: 2020-04-08 | L108: 107 | M108: INE267I01010
A109: ARTEMISMED | B109: EQ | C109: 140 | D109: 147 | E109: 136.3 | F109: 138 | G109: 137 | H109: 139.15 | I109: 1729 | J109: 245138.4 | K109: 2020-04-08 | L109: 31 | M109: INE025R01013
A110: ARVIND | B110: EQ | C110: 23.5 | D110: 24.4 | E110: 22.45 | F110: 23.75 | G110: 23.75 | H110: 22.2 | I110: 2137547 | J110: 50521243.45 | K110: 2020-04-08 | L110: 7057 | M110: INE034A01011
A111: ARVINDFASN | B111: EQ | C111: 139.8 | D111: 141.9 | E111: 132.2 | F111: 133.8 | G111: 134.75 | H111: 139.85 | I111: 46445 | J111: 6387304.5 | K111: 2020-04-08 | L111: 1243 | M111: INE955V01021
A112: ARVSMART | B112: EQ | C112: 64.05 | D112: 67 | E112: 64 | F112: 65.4 | G112: 65.5 | H112: 65 | I112: 10000 | J112: 656036.65 | K112: 2020-04-08 | L112: 320 | M112: INE034S01021
A113: ASAHIINDIA | B113: EQ | C113: 152 | D113: 158 | E113: 147.05 | F113: 155.5 | G113: 152.35 | H113: 153.2 | I113: 5605 | J113: 858978.65 | K113: 2020-04-08 | L113: 218 | M113: INE439A01020
A114: ASAHISONG | B114: EQ | C114: 80.8 | D114: 88.95 | E114: 80.05 | F114: 85.25 | G114: 86 | H114: 80.9 | I114: 8055 | J114: 692533.2 | K114: 2020-04-08 | L114: 314 | M114: INE228I01012
A115: ASAL | B115: EQ | C115: 14.8 | D115: 14.9 | E115: 14.5 | F115: 14.5 | G115: 14.5 | H115: 14.25 | I115: 8037 | J115: 118819.3 | K115: 2020-04-08 | L115: 36 | M115: INE900C01027
A116: ASALCBR | B116: EQ | C116: 164.9 | D116: 175 | E116: 158 | F116: 165.7 | G116: 165 | H116: 162.9 | I116: 31033 | J116: 5116102.05 | K116: 2020-04-08 | L116: 970 | M116: INE073G01016
A117: ASHAPURMIN | B117: EQ | C117: 22.1 | D117: 22.1 | E117: 22.05 | F117: 22.1 | G117: 22.1 | H117: 21.05 | I117: 8770 | J117: 193792 | K117: 2020-04-08 | L117: 43 | M117: INE348A01023
A118: ASHIANA | B118: EQ | C118: 52.9 | D118: 52.9 | E118: 49.1 | F118: 49.95 | G118: 50 | H118: 50 | I118: 69042 | J118: 3480534.3 | K118: 2020-04-08 | L118: 621 | M118: INE365D01021
A119: ASHIMASYN | B119: EQ | C119: 3.9 | D119: 3.9 | E119: 3.9 | F119: 3.9 | G119: 3.9 | H119: 3.55 | I119: 28914 | J119: 112764.6 | K119: 2020-04-08 | L119: 46 | M119: INE440A01010
A120: ASHOKA | B120: EQ | C120: 38.35 | D120: 42.7 | E120: 37.8 | F120: 42.7 | G120: 42.7 | H120: 38.85 | I120: 1577514 | J120: 65134101.3 | K120: 2020-04-08 | L120: 8475 | M120: INE442H01029
A121: ASHOKLEY | B121: EQ | C121: 39.85 | D121: 47.8 | E121: 38.75 | F121: 43.85 | G121: 43.6 | H121: 39.85 | I121: 76817768 | J121: 3355417806 | K121: 2020-04-08 | L121: 169889 | M121: INE208A01029
A122: ASIANHOTNR | B122: EQ | C122: 70 | D122: 71.8 | E122: 66 | F122: 71.55 | G122: 71.5 | H122: 65.4 | I122: 4982 | J122: 349215.55 | K122: 2020-04-08 | L122: 198 | M122: INE363A01022
A123: ASIANPAINT | B123: EQ | C123: 1623.8 | D123: 1687.8 | E123: 1600 | F123: 1608.95 | G123: 1608 | H123: 1623.8 | I123: 2382216 | J123: 3911658954 | K123: 2020-04-08 | L123: 101146 | M123: INE021A01026
A124: ASIANTILES | B124: EQ | C124: 156 | D124: 162.9 | E124: 155 | F124: 157.6 | G124: 156.5 | H124: 157.65 | I124: 19917 | J124: 3151924.4 | K124: 2020-04-08 | L124: 431 | M124: INE022I01019
A125: ASPINWALL | B125: EQ | C125: 93 | D125: 98.7 | E125: 83.55 | F125: 93 | G125: 93 | H125: 90 | I125: 413 | J125: 38837.15 | K125: 2020-04-08 | L125: 20 | M125: INE991I01015
A126: ASTEC | B126: EQ | C126: 450.65 | D126: 465.05 | E126: 440 | F126: 460.05 | G126: 460.3 | H126: 443.9 | I126: 5283 | J126: 2392645.5 | K126: 2020-04-08 | L126: 494 | M126: INE563J01010
A127: ASTERDM | B127: EQ | C127: 96 | D127: 103.5 | E127: 93.8 | F127: 99.25 | G127: 99 | H127: 94.55 | I127: 996205 | J127: 98978623.7 | K127: 2020-04-08 | L127: 4570 | M127: INE914M01019
A128: ASTRAL | B128: EQ | C128: 962 | D128: 986 | E128: 952 | F128: 955.45 | G128: 954 | H128: 973.85 | I128: 59212 | J128: 57381672.65 | K128: 2020-04-08 | L128: 7623 | M128: INE006I01046
A129: ASTRAMICRO | B129: EQ | C129: 56.9 | D129: 62.55 | E129: 55.85 | F129: 61.7 | G129: 62.55 | H129: 56.9 | I129: 253097 | J129: 15146656.55 | K129: 2020-04-08 | L129: 1961 | M129: INE386C01029
A130: ASTRAZEN | B130: EQ | C130: 2700 | D130: 2830 | E130: 2544 | F130: 2561.6 | G130: 2549 | H130: 2693.65 | I130: 38510 | J130: 104113109 | K130: 2020-04-08 | L130: 6647 | M130: INE203A01020
A131: ASTRON | B131: EQ | C131: 26.15 | D131: 29.9 | E131: 25.3 | F131: 27.5 | G131: 27.8 | H131: 27.65 | I131: 61618 | J131: 1693449.45 | K131: 2020-04-08 | L131: 1743 | M131: INE646X01014
A132: ATFL | B132: EQ | C132: 479.65 | D132: 499 | E132: 475 | F132: 481.55 | G132: 475 | H132: 479.65 | I132: 6104 | J132: 2975754.9 | K132: 2020-04-08 | L132: 411 | M132: INE209A01019
A133: ATLANTA | B133: EQ | C133: 3 | D133: 3.15 | E133: 3 | F133: 3.15 | G133: 3.15 | H133: 3 | I133: 8624 | J133: 26936.35 | K133: 2020-04-08 | L133: 28 | M133: INE285H01022
A134: ATLASCYCLE | B134: BE | C134: 30 | D134: 31.5 | E134: 29.5 | F134: 30.7 | G134: 30.7 | H134: 30 | I134: 2000 | J134: 60118.65 | K134: 2020-04-08 | L134: 42 | M134: INE446A01025
A135: ATNINTER | B135: BE | C135: 0.1 | D135: 0.1 | E135: 0.1 | F135: 0.1 | G135: 0.1 | H135: 0.1 | I135: 12716 | J135: 1271.6 | K135: 2020-04-08 | L135: 5 | M135: INE803A01027
A136: ATUL | B136: EQ | C136: 3930 | D136: 4005 | E136: 3908.35 | F136: 3951.85 | G136: 3954.95 | H136: 3927.1 | I136: 76768 | J136: 304824820.4 | K136: 2020-04-08 | L136: 11635 | M136: INE100A01010
A137: ATULAUTO | B137: EQ | C137: 151.35 | D137: 154.05 | E137: 146.8 | F137: 153.45 | G137: 153.95 | H137: 146.75 | I137: 13699 | J137: 2093863.3 | K137: 2020-04-08 | L137: 810 | M137: INE951D01028
A138: AUBANK | B138: EQ | C138: 461.2 | D138: 490 | E138: 457 | F138: 480.3 | G138: 473 | H138: 478.4 | I138: 1791057 | J138: 837589012.6 | K138: 2020-04-08 | L138: 59410 | M138: INE949L01017
A139: AURIONPRO | B139: EQ | C139: 41.75 | D139: 43.7 | E139: 40 | F139: 42.9 | G139: 42.9 | H139: 40.95 | I139: 8828 | J139: 376649.05 | K139: 2020-04-08 | L139: 213 | M139: INE132H01018
A140: AUROPHARMA | B140: EQ | C140: 432.5 | D140: 476.3 | E140: 426.3 | F140: 438.15 | G140: 438.9 | H140: 445.7 | I140: 13186213 | J140: 5925576015 | K140: 2020-04-08 | L140: 205238 | M140: INE406A01037
A141: AUSOMENT | B141: EQ | C141: 26.1 | D141: 26.1 | E141: 26.1 | F141: 26.1 | G141: 26.1 | H141: 25 | I141: 100 | J141: 2610 | K141: 2020-04-08 | L141: 1 | M141: INE218C01016
A142: AUTOAXLES | B142: EQ | C142: 413 | D142: 423.5 | E142: 398.05 | F142: 413.45 | G142: 416 | H142: 399.3 | I142: 5448 | J142: 2244823.45 | K142: 2020-04-08 | L142: 638 | M142: INE449A01011
A143: AUTOIND | B143: EQ | C143: 11.3 | D143: 11.35 | E143: 11.1 | F143: 11.35 | G143: 11.35 | H143: 10.85 | I143: 9358 | J143: 105383.05 | K143: 2020-04-08 | L143: 68 | M143: INE718H01014
A144: AUTOLITIND | B144: EQ | C144: 13.2 | D144: 14.4 | E144: 13.2 | F144: 13.8 | G144: 13.9 | H144: 13.75 | I144: 4699 | J144: 65525.8 | K144: 2020-04-08 | L144: 68 | M144: INE448A01013
A145: AVADHSUGAR | B145: EQ | C145: 143.55 | D145: 143.55 | E145: 143.55 | F145: 143.55 | G145: 143.55 | H145: 136.75 | I145: 13174 | J145: 1891127.7 | K145: 2020-04-08 | L145: 157 | M145: INE349W01017
A146: AVANTIFEED | B146: EQ | C146: 311 | D146: 341.55 | E146: 310.5 | F146: 341.35 | G146: 341.55 | H146: 310.5 | I146: 748404 | J146: 246839085.1 | K146: 2020-04-08 | L146: 23272 | M146: INE871C01038
A147: AVTNPL | B147: EQ | C147: 25.45 | D147: 27.8 | E147: 24.25 | F147: 27.25 | G147: 27 | H147: 25.05 | I147: 213540 | J147: 5643644.4 | K147: 2020-04-08 | L147: 1601 | M147: INE488D01021
A148: AXISBANK | B148: EQ | C148: 383.75 | D148: 427.7 | E148: 373.5 | F148: 391.35 | G148: 391.4 | H148: 388.85 | I148: 64930772 | J148: 2.575974593e+10 | K148: 2020-04-08 | L148: 769506 | M148: INE238A01034
A149: AXISCADES | B149: EQ | C149: 30.9 | D149: 31.5 | E149: 28.65 | F149: 31.4 | G149: 31.5 | H149: 30 | I149: 39670 | J149: 1232336.75 | K149: 2020-04-08 | L149: 621 | M149: INE555B01013
A150: AXISGOLD | B150: EQ | C150: 3969.9 | D150: 3989 | E150: 3925 | F150: 3973.3 | G150: 3983 | H150: 3919.55 | I150: 701 | J150: 2769851.6 | K150: 2020-04-08 | L150: 206 | M150: INF846K01347
A151: AXISNIFTY | B151: EQ | C151: 1000.01 | D151: 1000.01 | E151: 1000.01 | F151: 1000.01 | G151: 1000.01 | H151: 1007 | I151: 2 | J151: 2000.02 | K151: 2020-04-08 | L151: 1 | M151: INF846K01ZL0
A152: AYMSYNTEX | B152: EQ | C152: 15.5 | D152: 16.8 | E152: 15.5 | F152: 16.5 | G152: 16.5 | H152: 16.1 | I152: 2637 | J152: 43548.55 | K152: 2020-04-08 | L152: 26 | M152: INE193B01039
A153: BAFNAPH | B153: EQ | C153: 16.05 | D153: 16.05 | E153: 16.05 | F153: 16.05 | G153: 16.05 | H153: 15.3 | I153: 272 | J153: 4365.6 | K153: 2020-04-08 | L153: 8 | M153: INE878I01022
A154: BAGFILMS | B154: BE | C154: 1.75 | D154: 1.8 | E154: 1.75 | F154: 1.8 | G154: 1.8 | H154: 1.75 | I154: 3861 | J154: 6912.3 | K154: 2020-04-08 | L154: 20 | M154: INE116D01028
A155: BAJAJ-AUTO | B155: EQ | C155: 2180 | D155: 2383.45 | E155: 2168.55 | F155: 2241.7 | G155: 2260 | H155: 2280.05 | I155: 840875 | J155: 1933266167 | K155: 2020-04-08 | L155: 59866 | M155: INE917I01010
A156: BAJAJCON | B156: EQ | C156: 136 | D156: 148.65 | E156: 135.1 | F156: 137.95 | G156: 138 | H156: 138.15 | I156: 1031633 | J156: 145711259.1 | K156: 2020-04-08 | L156: 26102 | M156: INE933K01021
A157: BAJAJELEC | B157: EQ | C157: 277.3 | D157: 294.5 | E157: 277.3 | F157: 287.8 | G157: 289 | H157: 277.3 | I157: 58251 | J157: 16797537.55 | K157: 2020-04-08 | L157: 3821 | M157: INE193E01025
A158: BAJAJFINSV | B158: EQ | C158: 4575 | D158: 4950 | E158: 4537.8 | F158: 4608.5 | G158: 4604 | H158: 4724.9 | I158: 1113057 | J158: 5259493342 | K158: 2020-04-08 | L158: 158158 | M158: INE918I01018
A159: BAJAJHIND | B159: EQ | C159: 3.05 | D159: 3.05 | E159: 3.05 | F159: 3.05 | G159: 3.05 | H159: 2.95 | I159: 80900 | J159: 246745 | K159: 2020-04-08 | L159: 110 | M159: INE306A01021
A160: BAJAJHLDNG | B160: EQ | C160: 2027.95 | D160: 2073.85 | E160: 1925 | F160: 2024.75 | G160: 2025 | H160: 1978.9 | I160: 25453 | J160: 51363834.45 | K160: 2020-04-08 | L160: 6198 | M160: INE118A01012
A161: BAJFINANCE | B161: EQ | C161: 2184 | D161: 2374 | E161: 2144.15 | F161: 2332.9 | G161: 2329 | H161: 2253.35 | I161: 9109346 | J161: 2.088826331e+10 | K161: 2020-04-08 | L161: 516967 | M161: INE296A01024
A162: BALAJITELE | B162: EQ | C162: 43 | D162: 45 | E162: 40.8 | F162: 41.9 | G162: 42.15 | H162: 43.75 | I162: 194912 | J162: 8414452.4 | K162: 2020-04-08 | L162: 1677 | M162: INE794B01026
A163: BALAMINES | B163: EQ | C163: 277 | D163: 296 | E163: 260.4 | F163: 283.65 | G163: 284.45 | H163: 271.2 | I163: 70594 | J163: 20058887.5 | K163: 2020-04-08 | L163: 2337 | M163: INE050E01027
A164: BALAXI | B164: BE | C164: 82.7 | D164: 82.7 | E164: 75.05 | F164: 79.9 | G164: 79.9 | H164: 79 | I164: 1047 | J164: 78761.9 | K164: 2020-04-08 | L164: 24 | M164: INE618N01014
A165: BALKRISHNA | B165: EQ | C165: 8.6 | D165: 8.8 | E165: 8.35 | F165: 8.8 | G165: 8.8 | H165: 8.4 | I165: 7860 | J165: 67624.35 | K165: 2020-04-08 | L165: 49 | M165: INE875R01011
A166: BALKRISIND | B166: EQ | C166: 822 | D166: 862 | E166: 815 | F166: 821.35 | G166: 818.3 | H166: 823.55 | I166: 444079 | J166: 371870250.3 | K166: 2020-04-08 | L166: 24462 | M166: INE787D01026
A167: BALLARPUR | B167: EQ | C167: 0.4 | D167: 0.4 | E167: 0.3 | F167: 0.35 | G167: 0.35 | H167: 0.35 | I167: 9769871 | J167: 3419941.15 | K167: 2020-04-08 | L167: 514 | M167: INE294A01037
A168: BALMLAWRIE | B168: EQ | C168: 84 | D168: 87.9 | E168: 81 | F168: 84.75 | G168: 85.65 | H168: 85.5 | I168: 202053 | J168: 17357055.25 | K168: 2020-04-08 | L168: 3105 | M168: INE164A01016
A169: BALPHARMA | B169: EQ | C169: 38.9 | D169: 41.7 | E169: 38.9 | F169: 41.7 | G169: 41.7 | H169: 37.95 | I169: 40933 | J169: 1688199.5 | K169: 2020-04-08 | L169: 518 | M169: INE083D01012
A170: BALRAMCHIN | B170: EQ | C170: 123.85 | D170: 126.4 | E170: 123 | F170: 126.4 | G170: 126.4 | H170: 120.4 | I170: 642515 | J170: 80884980.2 | K170: 2020-04-08 | L170: 7125 | M170: INE119A01028
A171: BANARBEADS | B171: EQ | C171: 30.25 | D171: 32.5 | E171: 29.6 | F171: 29.75 | G171: 29.75 | H171: 31.5 | I171: 160 | J171: 4873.85 | K171: 2020-04-08 | L171: 26 | M171: INE655B01011
A172: BANARISUG | B172: EQ | C172: 900 | D172: 925 | E172: 880 | F172: 886.1 | G172: 880 | H172: 893.1 | I172: 410 | J172: 368979.1 | K172: 2020-04-08 | L172: 94 | M172: INE459A01010
A173: BANCOINDIA | B173: EQ | C173: 65.45 | D173: 67.5 | E173: 64.1 | F173: 65.95 | G173: 66 | H173: 65.45 | I173: 40062 | J173: 2654130.6 | K173: 2020-04-08 | L173: 1013 | M173: INE213C01025
A174: BANDHANBNK | B174: EQ | C174: 167.95 | D174: 209.05 | E174: 167.5 | F174: 193.75 | G174: 195.25 | H174: 167.25 | I174: 30692919 | J174: 5833285762 | K174: 2020-04-08 | L174: 332020 | M174: INE545U01014
A175: BANG | B175: EQ | C175: 12.05 | D175: 13.1 | E175: 11.9 | F175: 13.1 | G175: 13.1 | H175: 12.5 | I175: 1590 | J175: 20489 | K175: 2020-04-08 | L175: 31 | M175: INE863I01016
A176: BANKBARODA | B176: EQ | C176: 48 | D176: 51.5 | E176: 47.3 | F176: 48.35 | G176: 48.45 | H176: 48.15 | I176: 27159204 | J176: 1340103716 | K176: 2020-04-08 | L176: 77070 | M176: INE028A01039
A177: BANKBEES | B177: EQ | C177: 190 | D177: 205.4 | E177: 186.06 | F177: 191.28 | G177: 191.4 | H177: 192.12 | I177: 676832 | J177: 131368353.2 | K177: 2020-04-08 | L177: 10023 | M177: INF204KB15I9
A178: BANKINDIA | B178: EQ | C178: 32.7 | D178: 34.75 | E178: 32.5 | F178: 33.35 | G178: 33.25 | H178: 32.95 | I178: 1236627 | J178: 41574499.75 | K178: 2020-04-08 | L178: 6257 | M178: INE084A01016
A179: BANSWRAS | B179: EQ | C179: 77.4 | D179: 77.4 | E179: 70.2 | F179: 71.15 | G179: 70.2 | H179: 73.75 | I179: 22922 | J179: 1667255.55 | K179: 2020-04-08 | L179: 137 | M179: INE629D01012
A180: BASF | B180: EQ | C180: 1154 | D180: 1154 | E180: 1105 | F180: 1119.95 | G180: 1120.5 | H180: 1138.25 | I180: 26139 | J180: 29425244.35 | K180: 2020-04-08 | L180: 2640 | M180: INE373A01013
A181: BASML | B181: EQ | C181: 74.05 | D181: 84 | E181: 74.05 | F181: 80 | G181: 80 | H181: 78.7 | I181: 1648 | J181: 135366.45 | K181: 2020-04-08 | L181: 154 | M181: INE186H01014
A182: BATAINDIA | B182: EQ | C182: 1246.5 | D182: 1339 | E182: 1228 | F182: 1240.05 | G182: 1238.95 | H182: 1246.4 | I182: 1346088 | J182: 1726485633 | K182: 2020-04-08 | L182: 66274 | M182: INE176A01028
A183: BAYERCROP | B183: EQ | C183: 3500 | D183: 3946.6 | E183: 3499.3 | F183: 3818.15 | G183: 3772.15 | H183: 3510 | I183: 32833 | J183: 125437264 | K183: 2020-04-08 | L183: 6737 | M183: INE462A01022
A184: BBL | B184: EQ | C184: 590 | D184: 621.25 | E184: 590 | F184: 613.05 | G184: 621.25 | H184: 589.55 | I184: 9335 | J184: 5684085.45 | K184: 2020-04-08 | L184: 804 | M184: INE464A01028
A185: BBTC | B185: EQ | C185: 810 | D185: 854.3 | E185: 774 | F185: 784.2 | G185: 787.95 | H185: 788.4 | I185: 76612 | J185: 62014517.65 | K185: 2020-04-08 | L185: 5281 | M185: INE050A01025
A186: BCG | B186: EQ | C186: 3.6 | D186: 3.65 | E186: 3.55 | F186: 3.65 | G186: 3.65 | H186: 3.5 | I186: 305718 | J186: 1113234.95 | K186: 2020-04-08 | L186: 149 | M186: INE425B01027
A187: BCP | B187: EQ | C187: 10.75 | D187: 10.75 | E187: 10.5 | F187: 10.75 | G187: 10.75 | H187: 10.25 | I187: 8192 | J187: 87934.6 | K187: 2020-04-08 | L187: 28 | M187: INE905P01028
A188: BDL | B188: EQ | C188: 191 | D188: 229 | E188: 188.2 | F188: 218.2 | G188: 216.4 | H188: 191.4 | I188: 448405 | J188: 97968192.25 | K188: 2020-04-08 | L188: 13672 | M188: INE171Z01018
A189: BEARDSELL | B189: EQ | C189: 6.7 | D189: 7.3 | E189: 6.7 | F189: 7.3 | G189: 7.3 | H189: 7.05 | I189: 1250 | J189: 8417 | K189: 2020-04-08 | L189: 4 | M189: INE520H01022
A190: BEDMUTHA | B190: EQ | C190: 12.8 | D190: 13.05 | E190: 12.45 | F190: 12.45 | G190: 12.45 | H190: 13.1 | I190: 19584 | J190: 245429.15 | K190: 2020-04-08 | L190: 32 | M190: INE844K01012
A191: BEL | B191: EQ | C191: 69 | D191: 71.3 | E191: 65.1 | F191: 66.4 | G191: 66.5 | H191: 69 | I191: 16699885 | J191: 1138705070 | K191: 2020-04-08 | L191: 69587 | M191: INE263A01024
A192: BEML | B192: EQ | C192: 492 | D192: 523.5 | E192: 492 | F192: 503.6 | G192: 503 | H192: 475.95 | I192: 890527 | J192: 458689246.6 | K192: 2020-04-08 | L192: 23670 | M192: INE258A01016
A193: BEPL | B193: EQ | C193: 31 | D193: 32.75 | E193: 30.3 | F193: 31.25 | G193: 31.6 | H193: 30.25 | I193: 333595 | J193: 10578641.1 | K193: 2020-04-08 | L193: 3321 | M193: INE922A01025
A194: BERGEPAINT | B194: EQ | C194: 479.9 | D194: 487.65 | E194: 460 | F194: 463.5 | G194: 462 | H194: 479.2 | I194: 1729062 | J194: 817908730.6 | K194: 2020-04-08 | L194: 32950 | M194: INE463A01038
A195: BFINVEST | B195: EQ | C195: 258 | D195: 268.8 | E195: 244.6 | F195: 246.3 | G195: 248.95 | H195: 257.45 | I195: 4938 | J195: 1236639.95 | K195: 2020-04-08 | L195: 244 | M195: INE878K01010
A196: BFUTILITIE | B196: EQ | C196: 158.35 | D196: 158.35 | E196: 151.05 | F196: 154.05 | G196: 153.7 | H196: 150.85 | I196: 138134 | J196: 21700813.75 | K196: 2020-04-08 | L196: 1649 | M196: INE243D01012
A197: BGRENERGY | B197: EQ | C197: 22.1 | D197: 22.85 | E197: 20.95 | F197: 21.1 | G197: 21.15 | H197: 22.2 | I197: 172282 | J197: 3763089.75 | K197: 2020-04-08 | L197: 1108 | M197: INE661I01014
A198: BHAGERIA | B198: EQ | C198: 85 | D198: 91.05 | E198: 80.65 | F198: 81.6 | G198: 82.3 | H198: 84.2 | I198: 34795 | J198: 2944870.7 | K198: 2020-04-08 | L198: 925 | M198: INE354C01027
A199: BHAGYANGR | B199: EQ | C199: 14.05 | D199: 15.2 | E199: 14 | F199: 14.4 | G199: 14.4 | H199: 14.4 | I199: 1338 | J199: 19622.25 | K199: 2020-04-08 | L199: 50 | M199: INE458B01036
A200: BHAGYAPROP | B200: EQ | C200: 18 | D200: 20 | E200: 18 | F200: 20 | G200: 20 | H200: 19 | I200: 999 | J200: 19011 | K200: 2020-04-08 | L200: 5 | M200: INE363W01018
... 1470 more rows

Sheet Sheet1 (hidden)

Sheet Sheet3 (hidden)

Sheet Sheet4 (hidden)

Sheet Sheet5 (hidden)
